{"text_format":"1","workbook":"xlsx","n_sheets":41,"sheets":["INICIO","Brecha de Liquidez","Prev. 1.1","Prev. 1.2","Prev. 1.3","Prev. 1.4","Prev. 1.5","Prev. 1.6","Prev. 1.7","Prev. 1.8","Prev. 1.9","Prev. Depositos Vista","Prev. Depositos Plazo","Concentración de Créditos","Concentración de Créditos Venc.","Concentración Ahorros","Concentración Ahorros Vista","Concentración Ahorros Plazo","Prev sobre Bienes adjudicados","Prev s Otros Activos Riesgos","Prev s Otras Inversiones","Depreciación","Ejecución Presupuestaria","Depositos Bancos Gs","Depositos Bancos Ext","Depositos Financieras Gs","Depositos Financieras Ext","Depositos Coop. Gs","Depositos Coop. Ext","Depositos Centrales Gs","Depositos Centrales Ext","Clasificación de Créditos","Modificación de términos","Socios","Activos y Pasivos en ME","Patrimonio Efectivo","Activos ponderados","Balance General","Cuadro de Resultado","Cuenta de Orden","Indicadores"],"not_rendered":{"charts":0,"images":1,"macros":1,"external_links":0,"defined_names":0,"comments":0,"pivot_tables":0},"unopened":[],"bounds":{"document_bytes":16777216,"sheet_cells":100000,"rows_first":2000,"rows_last":500,"rows_between":2000,"halvings":0,"cell_chars":16384,"cell_head_chars":4096},"cells_cut":0,"cells_raw":0,"read":"whole","date_system":"1900"}

{"sheet":"INICIO","index":0,"n_rows":6,"n_cols":1,"rows_kept":6,"cut":false,"hidden":false,"merged":[[5,0,5,2],[2,0,4,10]]}
[]
[]
["[Nombre Cooperativa]"]
[]
[]
["DIA/MES/AÑO"]

{"sheet":"Brecha de Liquidez","index":1,"n_rows":30,"n_cols":7,"rows_kept":30,"cut":false,"hidden":false,"merged":[[27,1,27,3],[21,1,21,3],[22,1,22,3],[23,1,23,3],[24,1,24,3],[25,1,25,3],[26,1,26,3],[29,1,29,10],[8,1,8,3],[2,1,2,4],[4,1,4,3],[6,1,6,3],[7,1,7,3],[15,1,15,3],[16,1,16,3],[19,1,19,3],[20,1,20,3],[9,1,9,3],[10,1,10,3],[11,1,11,3],[12,1,12,3],[13,1,13,3],[14,1,14,3]]}
[]
[]
[null,"BRECHA DE LIQUIDEZ (*)",null,null,null,"Fecha:"," DD/MM/AA"]
[null,null,null,null,"Montos","Montos","Montos"]
[null,"CALCE DE PLAZOS",null,null,"30 días","60 días","90 días"]
[]
[null,"ACTIVO - INGRESOS",null,null,{"$f":"SUM(E8:E17)","v":0},{"$f":"SUM(F8:F17)","v":0},0]
[null,"Fondos de la Empresa"]
[null,"Deposito a la Vista"]
[null,"Deposito a Vencer"]
[null,"Intereses sobre Depósitos a Cobrar"]
[null,"Intereses sobre Inversiones a Cobrar"]
[null,"Amortización de Capital sobre Préstamos a Cobrar"]
[null,"Intereses a Cobrar sobre Préstamos"]
[null,"Intereses sobre Tarjetas de Créditos a Cobrar"]
[null,"Deudores por Ventas a Cobrar"]
[null,"Otros Créditos a Cobrar"]
[]
[null,null,null,null,"Montos","Montos","Montos"]
[null,"PASIVOS - EGRESOS",null,null,{"$f":"SUM(E21:E28)","v":0},{"$f":"SUM(F21:F28)","v":0},0]
[null,"Depositos Ahorros a la Vista"]
[null,"Depositos Ahorros a Plazo Fijo a vencer"]
[null,"Intereses sobre Ahorros a Pagar"]
[null,"Capital a Amortizar de Créditos Externos"]
[null,"Intereses sobre Créditos Externos"]
[null,"Deudas no financieras a pagar"]
[null,"Prestamos a Desembolsar"]
[null,"Aportaciones a retornar"]
[]
[null,"(*)  El INCOOP podrá exigir a las cooperativas, en cualquier momento y más aún cuando han presentado problemas de índice de liquidez, el cálculo de brechas de liquidez, de acuerdo al numeral 4.4 del Marco Regulatorio."]

{"sheet":"Prev. 1.1","index":2,"n_rows":29,"n_cols":11,"rows_kept":29,"cut":false,"hidden":false,"merged":[[18,0,18,4],[11,0,11,2],[28,0,28,2],[1,0,1,8]]}
[]
["CLASIFICACIÓN DE CARTERA DE CREDITOS Y PREVISIONES.  CARTERA TOTAL",null,null,null,null,null,null,null,null,"Fecha: ","DD/MM/AA"]
["Categoria","DEFINICIÓN","% de Previsiones a Aplicar","Saldo contable antes de previsiones","Aportes","Garantias Hipotecaria","Garantias Prendarias","Caución de Ahorros","Previsiones a Aplicar","Previsiones Constituidas","Saldo Contable despúes de Previsiones"]
["A","Saldo de Préstamos cuyos pagos se encuentran al día.",0,null,0,null,0,0]
["B","Saldo de Préstamos con atrasos desde 1 día y hasta 30 días.",0,null,0,null,0,0]
["C","Saldo de Préstamos con atrasos desde 31 días y hasta 60 días.",0,null,0,null,0,0]
["D","Saldo de Préstamos con atrasos desde 61 días y hasta 90 días. ",5,null,0,null,0,0]
["E","Saldo de Préstamos con atrasos desde 91 días y hasta 150 días.",30,null,0,null,0,0]
["F","Saldo de Préstamos con atrasos desde 151 días y hasta 240 días.",50,null,0,null,0,0]
["G","Saldo de Préstamos con atrasos desde 241 días y hasta 360 días.",80,null,0,null,0,0]
["H","Saldo de Préstamos con atrasos mayores a 361 días.",100,null,0,null,0,0]
["TOTAL",null,null,{"$f":"SUM(D4:D11)","v":0},0,0,0,0,0,0,{"$f":"SUM(K4:K11)","v":0}]
[]
[]
[]
[]
[]
[]
["CLASIFICACIÓN DE CARTERA DE CREDITOS Y PREVISIONES.  CARTERA TOTAL",null,null,null,null,"Fecha: ","DD/MM/AA"]
["Categoria","DEFINICIÓN","% de Previsiones a Aplicar","Intereses devengados reconocidos no cobrados","Previsiones a Aplicar","Previsiones Constituidas","Saldo Contable despúes de Previsiones"]
["A","Saldo de Préstamos cuyos pagos se encuentran al día.",0]
["B","Saldo de Préstamos con atrasos desde 1 día y hasta 30 días.",0]
["C","Saldo de Préstamos con atrasos desde 31 días y hasta 60 días.",0]
["D","Saldo de Préstamos con atrasos desde 61 días y hasta 90 días. ",5]
["E","Saldo de Préstamos con atrasos desde 91 días y hasta 150 días.",30]
["F","Saldo de Préstamos con atrasos desde 151 días y hasta 240 días.",50]
["G","Saldo de Préstamos con atrasos desde 241 días y hasta 360 días.",80]
["H","Saldo de Préstamos con atrasos mayores a 361 días.",100]
["TOTAL",null,null,{"$f":"SUM(D21:D28)","v":0},0,0,{"$f":"SUM(G21:G28)","v":0}]

{"sheet":"Prev. 1.2","index":3,"n_rows":28,"n_cols":11,"rows_kept":28,"cut":false,"hidden":false,"merged":[[27,0,27,2],[1,9,1,10],[1,0,1,8],[11,0,11,2],[17,0,17,4],[17,5,17,6]]}
[]
["CLASIFICACIÓN DE CARTERA DE CREDITOS Y PREVISIONES.  CARTERA DE CRÉDITOS VINCULADOS.",null,null,null,null,null,null,null,null,"Fecha: DD/MM/AA"]
["Categoria","DEFINICIÓN","% de Previsiones a Aplicar","Saldo contable antes de previsiones","Aportes","Garantias Hipotecaria","Garantias Prendarias","Caución de Ahorros","Previsiones a Aplicar","Previsiones Constituidas","Saldo Contable despúes de Previsiones"]
["A","Saldo de Préstamos cuyos pagos se encuentran al día.",0,null,0,null,0,0]
["B","Saldo de Préstamos con atrasos desde 1 día y hasta 30 días.",0,null,0,null,0,0]
["C","Saldo de Préstamos con atrasos desde 31 días y hasta 60 días.",0,null,0,null,0,0]
["D","Saldo de Préstamos con atrasos desde 61 días y hasta 90 días. ",5,null,0,null,0]
["E","Saldo de Préstamos con atrasos desde 91 días y hasta 150 días.",30,null,0,null,0]
["F","Saldo de Préstamos con atrasos desde 151 días y hasta 240 días.",50,null,0,null,0,0]
["G","Saldo de Préstamos con atrasos desde 241 días y hasta 360 días.",80,null,0,null,0,0]
["H","Saldo de Préstamos con atrasos mayores a 361 días.",100,null,0,null,0]
["TOTAL",null,null,{"$f":"SUM(D4:D11)","v":0},0,0,0,0,0,0,0]
[]
[]
[]
[]
[]
["CLASIFICACIÓN DE CARTERA DE CREDITOS Y PREVISIONES.  CARTERA DE CRÉDITOS VÍNCULADOS",null,null,null,null,"Fecha: DD/MM/AA"]
["Categoria","DEFINICIÓN","% de Previsiones a Aplicar","Intereses devengados reconocidos no cobrados","Previsiones a Aplicar","Previsiones Constituidas","Saldo Contable despúes de Previsiones"]
["A","Saldo de Préstamos cuyos pagos se encuentran al día.",0]
["B","Saldo de Préstamos con atrasos desde 1 día y hasta 30 días.",0]
["C","Saldo de Préstamos con atrasos desde 31 días y hasta 60 días.",0]
["D","Saldo de Préstamos con atrasos desde 61 días y hasta 90 días. ",5]
["E","Saldo de Préstamos con atrasos desde 91 días y hasta 150 días.",30]
["F","Saldo de Préstamos con atrasos desde 151 días y hasta 240 días.",50]
["G","Saldo de Préstamos con atrasos desde 241 días y hasta 360 días.",80]
["H","Saldo de Préstamos con atrasos mayores a 361 días.",100]
["TOTAL",null,null,{"$f":"SUM(D20:D27)","v":0},0,0,0]

{"sheet":"Prev. 1.3","index":4,"n_rows":26,"n_cols":11,"rows_kept":26,"cut":false,"hidden":false,"merged":[[11,0,11,2],[1,9,1,10],[15,0,15,4],[15,5,15,6],[25,0,25,2],[1,0,1,8]]}
[]
["CLASIFICACIÓN DE CARTERA DE CREDITOS Y PREVISIONES.  CARTERA DE CRÉDITOS DE DIRECTIVOS Y CONYUGES.",null,null,null,null,null,null,null,null,"Fecha: DD/MM/AA"]
["Categoria","DEFINICIÓN","% de Previsiones a Aplicar","Saldo contable antes de previsiones","Aportes","Garantias Hipotecaria","Garantias Prendarias","Caución de Ahorros","Previsiones a Aplicar","Previsiones Constituidas","Saldo Contable despúes de Previsiones"]
["A","Saldo de Préstamos cuyos pagos se encuentran al día.",0]
["B","Saldo de Préstamos con atrasos desde 1 día y hasta 30 días.",0]
["C","Saldo de Préstamos con atrasos desde 31 días y hasta 60 días.",0]
["D","Saldo de Préstamos con atrasos desde 61 días y hasta 90 días. ",5]
["E","Saldo de Préstamos con atrasos desde 91 días y hasta 150 días.",30]
["F","Saldo de Préstamos con atrasos desde 151 días y hasta 240 días.",50]
["G","Saldo de Préstamos con atrasos desde 241 días y hasta 360 días.",80]
["H","Saldo de Préstamos con atrasos mayores a 361 días.",100]
["TOTAL",null,null,{"$f":"SUM(D4:D11)","v":0},0,0,0,0,0,0,0]
[]
[]
[]
["CLASIFICACIÓN DE CARTERA DE CREDITOS Y PREVISIONES.  CARTERA DE CRÉDITOS DE DIRECTIVOS Y CONYUGES.",null,null,null,null,"Fecha: DD/MM/AA"]
["Categoria","DEFINICIÓN","% de Previsiones a Aplicar","Intereses devengados reconocidos no cobrados","Previsiones a Aplicar","Previsiones Constituidas","Saldo Contable despúes de Previsiones"]
["A","Saldo de Préstamos cuyos pagos se encuentran al día.",0]
["B","Saldo de Préstamos con atrasos desde 1 día y hasta 30 días.",0]
["C","Saldo de Préstamos con atrasos desde 31 días y hasta 60 días.",0]
["D","Saldo de Préstamos con atrasos desde 61 días y hasta 90 días. ",5]
["E","Saldo de Préstamos con atrasos desde 91 días y hasta 150 días.",30]
["F","Saldo de Préstamos con atrasos desde 151 días y hasta 240 días.",50]
["G","Saldo de Préstamos con atrasos desde 241 días y hasta 360 días.",80]
["H","Saldo de Préstamos con atrasos mayores a 361 días.",100]
["TOTAL",null,null,{"$f":"SUM(D18:D25)","v":0},0,0,0]

{"sheet":"Prev. 1.4","index":5,"n_rows":28,"n_cols":11,"rows_kept":28,"cut":false,"hidden":false,"merged":[[27,0,27,2],[1,9,1,10],[11,0,11,2],[17,0,17,4],[17,5,17,6],[1,0,1,8]]}
[]
["CLASIFICACIÓN DE CARTERA DE CREDITOS Y PREVISIONES.  CARTERA DE CRÉDITOS DE MIEMBROS DE COMITES Y CONYUGES.",null,null,null,null,null,null,null,null,"Fecha: DD/MM/AA"]
["Categoria","DEFINICIÓN","% de Previsiones a Aplicar","Saldo contable antes de previsiones","Aportes","Garantias Hipotecaria","Garantias Prendarias","Caución de Ahorros","Previsiones a Aplicar","Previsiones Constituidas","Saldo Contable despúes de Previsiones"]
["A","Saldo de Préstamos cuyos pagos se encuentran al día.",0]
["B","Saldo de Préstamos con atrasos desde 1 día y hasta 30 días.",0]
["C","Saldo de Préstamos con atrasos desde 31 días y hasta 60 días.",0]
["D","Saldo de Préstamos con atrasos desde 61 días y hasta 90 días. ",5]
["E","Saldo de Préstamos con atrasos desde 91 días y hasta 150 días.",30]
["F","Saldo de Préstamos con atrasos desde 151 días y hasta 240 días.",50]
["G","Saldo de Préstamos con atrasos desde 241 días y hasta 360 días.",80]
["H","Saldo de Préstamos con atrasos mayores a 361 días.",100]
["TOTAL",null,null,{"$f":"SUM(D4:D11)","v":0},0,0,0,0,0,0,{"$f":"SUM(K4:K11)","v":0}]
[]
[]
[]
[]
[]
["CLASIFICACIÓN DE CARTERA DE CREDITOS Y PREVISIONES.  CARTERA DE CRÉDITOS DE MIEMBROS DE COMITES Y CONYUGES.",null,null,null,null,"Fecha: DD/MM/AA"]
["Categoria","DEFINICIÓN","% de Previsiones a Aplicar","Intereses devengados reconocidos no cobrados","Previsiones a Aplicar","Previsiones Constituidas","Previsiones Constituidas"]
["A","Saldo de Préstamos cuyos pagos se encuentran al día.",0]
["B","Saldo de Préstamos con atrasos desde 1 día y hasta 30 días.",0]
["C","Saldo de Préstamos con atrasos desde 31 días y hasta 60 días.",0]
["D","Saldo de Préstamos con atrasos desde 61 días y hasta 90 días. ",5]
["E","Saldo de Préstamos con atrasos desde 91 días y hasta 150 días.",30]
["F","Saldo de Préstamos con atrasos desde 151 días y hasta 240 días.",50]
["G","Saldo de Préstamos con atrasos desde 241 días y hasta 360 días.",80]
["H","Saldo de Préstamos con atrasos mayores a 361 días.",100]
["TOTAL",null,null,{"$f":"SUM(D20:D27)","v":0},0,0,0]

{"sheet":"Prev. 1.5","index":6,"n_rows":28,"n_cols":11,"rows_kept":28,"cut":false,"hidden":false,"merged":[[27,0,27,2],[1,0,1,8],[1,9,1,10],[11,0,11,2],[17,0,17,4],[17,5,17,6]]}
[]
["CLASIFICACIÓN DE CARTERA DE CREDITOS Y PREVISIONES.  CARTERA DE CRÉDITOS DE EMPLEADOS CON POTESTAD DE OTORGAR CRÉDITOS Y CONYUGES.",null,null,null,null,null,null,null,null,"Fecha: DD/MM/AA"]
["Categoria","DEFINICIÓN","% de Previsiones a Aplicar","Saldo contable antes de previsiones","Aportes","Garantias Hipotecaria","Garantias Prendarias","Caución de Ahorros","Previsiones a Aplicar","Previsiones Constituidas","Saldo Contable despúes de Previsiones"]
["A","Saldo de Préstamos cuyos pagos se encuentran al día.",0]
["B","Saldo de Préstamos con atrasos desde 1 día y hasta 30 días.",0]
["C","Saldo de Préstamos con atrasos desde 31 días y hasta 60 días.",0]
["D","Saldo de Préstamos con atrasos desde 61 días y hasta 90 días. ",5]
["E","Saldo de Préstamos con atrasos desde 91 días y hasta 150 días.",30]
["F","Saldo de Préstamos con atrasos desde 151 días y hasta 240 días.",50]
["G","Saldo de Préstamos con atrasos desde 241 días y hasta 360 días.",80]
["H","Saldo de Préstamos con atrasos mayores a 361 días.",100]
["TOTAL",null,null,{"$f":"SUM(D4:D11)","v":0},0,0,0,0,0,0,0]
[]
[]
[]
[]
[]
["CLASIFICACIÓN DE CARTERA DE CREDITOS Y PREVISIONES.  CARTERA DE CRÉDITOS DE EMPLEADOS CON POTESTAD DE OTORGAR CRÉDITOS Y CONYUGES.",null,null,null,null,"Fecha: DD/MM/AA"]
["Categoria","DEFINICIÓN","% de Previsiones a Aplicar","Intereses devengados reconocidos no cobrados","Previsiones a Aplicar","Previsiones Constituidas","Previsiones Constituidas"]
["A","Saldo de Préstamos cuyos pagos se encuentran al día.",0]
["B","Saldo de Préstamos con atrasos desde 1 día y hasta 30 días.",0]
["C","Saldo de Préstamos con atrasos desde 31 días y hasta 60 días.",0]
["D","Saldo de Préstamos con atrasos desde 61 días y hasta 90 días. ",5]
["E","Saldo de Préstamos con atrasos desde 91 días y hasta 150 días.",30]
["F","Saldo de Préstamos con atrasos desde 151 días y hasta 240 días.",50]
["G","Saldo de Préstamos con atrasos desde 241 días y hasta 360 días.",80]
["H","Saldo de Préstamos con atrasos mayores a 361 días.",100]
["TOTAL",null,null,{"$f":"SUM(D20:D27)","v":0},0,0,0]

{"sheet":"Prev. 1.6","index":7,"n_rows":29,"n_cols":11,"rows_kept":29,"cut":false,"hidden":false,"merged":[[18,5,18,6],[28,0,28,2],[1,9,1,10],[11,0,11,2]]}
[]
["CLASIFICACIÓN DE CARTERA DE CREDITOS Y PREVISIONES.  CARTERA DE CRÉDITOS APROBADOS POR OFICIALES DE CRÉDITO.",null,null,null,null,null,null,null,null,"Fecha: DD/MM/AA"]
["Categoria","DEFINICIÓN","% de Previsiones a Aplicar","Saldo contable antes de previsiones","Aportes","Garantias Hipotecaria","Garantias Prendarias","Caución de Ahorros","Previsiones a Aplicar","Previsiones Constituidas","Saldo Contable despúes de Previsiones"]
["A","Saldo de Préstamos cuyos pagos se encuentran al día.",0]
["B","Saldo de Préstamos con atrasos desde 1 día y hasta 30 días.",0]
["C","Saldo de Préstamos con atrasos desde 31 días y hasta 60 días.",0]
["D","Saldo de Préstamos con atrasos desde 61 días y hasta 90 días. ",5]
["E","Saldo de Préstamos con atrasos desde 91 días y hasta 150 días.",30]
["F","Saldo de Préstamos con atrasos desde 151 días y hasta 240 días.",50]
["G","Saldo de Préstamos con atrasos desde 241 días y hasta 360 días.",80]
["H","Saldo de Préstamos con atrasos mayores a 361 días.",100]
["TOTAL",null,null,{"$f":"SUM(D4:D11)","v":0},0,0,0,0,0,0,{"$f":"SUM(K4:K11)","v":0}]
[]
[]
[]
[]
[]
[]
["CLASIFICACIÓN DE CARTERA DE CREDITOS Y PREVISIONES.  CARTERA DE CRÉDITOS APROBADOS POR OFICIALES DE CRÉDITO.",null,null,null,null,"Fecha: DD/MM/AA"]
["Categoria","DEFINICIÓN","% de Previsiones a Aplicar","Intereses devengados reconocidos no cobrados","Previsiones a Aplicar","Previsiones Constituidas","Saldo Contable despúes de Previsiones"]
["A","Saldo de Préstamos cuyos pagos se encuentran al día.",0]
["B","Saldo de Préstamos con atrasos desde 1 día y hasta 30 días.",0]
["C","Saldo de Préstamos con atrasos desde 31 días y hasta 60 días.",0]
["D","Saldo de Préstamos con atrasos desde 61 días y hasta 90 días. ",5]
["E","Saldo de Préstamos con atrasos desde 91 días y hasta 150 días.",30]
["F","Saldo de Préstamos con atrasos desde 151 días y hasta 240 días.",50]
["G","Saldo de Préstamos con atrasos desde 241 días y hasta 360 días.",80]
["H","Saldo de Préstamos con atrasos mayores a 361 días.",100]
["TOTAL",null,null,{"$f":"SUM(D21:D28)","v":0},0,0,0]

{"sheet":"Prev. 1.7","index":8,"n_rows":29,"n_cols":11,"rows_kept":29,"cut":false,"hidden":false,"merged":[[28,0,28,2],[1,0,1,8],[18,0,18,5],[1,9,1,10],[11,0,11,2]]}
[]
["CLASIFICACIÓN DE CARTERA DE CREDITOS Y PREVISIONES.  CARTERA DE CRÉDITOS APROBADOS POR JEFES Y/O GERENTES",null,null,null,null,null,null,null,null,"Fecha: DD/MM/AA"]
["Categoria","DEFINICIÓN","% de Previsiones a Aplicar","Saldo contable antes de previsiones","Aportes","Garantias Hipotecaria","Garantias Prendarias","Caución de Ahorros","Previsiones a Aplicar","Previsiones Constituidas","Saldo Contable despúes de Previsiones"]
["A","Saldo de Préstamos cuyos pagos se encuentran al día.",0]
["B","Saldo de Préstamos con atrasos desde 1 día y hasta 30 días.",0]
["C","Saldo de Préstamos con atrasos desde 31 días y hasta 60 días.",0]
["D","Saldo de Préstamos con atrasos desde 61 días y hasta 90 días. ",5]
["E","Saldo de Préstamos con atrasos desde 91 días y hasta 150 días.",30]
["F","Saldo de Préstamos con atrasos desde 151 días y hasta 240 días.",50]
["G","Saldo de Préstamos con atrasos desde 241 días y hasta 360 días.",80]
["H","Saldo de Préstamos con atrasos mayores a 361 días.",100]
["TOTAL",null,null,{"$f":"SUM(D4:D11)","v":0},0,0,0,0,0,0,{"$f":"SUM(K4:K11)","v":0}]
[]
[]
[]
[]
[]
[]
["CLASIFICACIÓN DE CARTERA DE CREDITOS Y PREVISIONES.  CARTERA DE CRÉDITOS APROBADOS POR JEFES Y/O GERENTES",null,null,null,null,null,"Fecha: DD/MM/AA"]
["Categoria","DEFINICIÓN","% de Previsiones a Aplicar","Intereses devengados reconocidos no cobrados","Previsiones a Aplicar","Previsiones Constituidas","Saldo Contable despúes de Previsiones"]
["A","Saldo de Préstamos cuyos pagos se encuentran al día.",0]
["B","Saldo de Préstamos con atrasos desde 1 día y hasta 30 días.",0]
["C","Saldo de Préstamos con atrasos desde 31 días y hasta 60 días.",0]
["D","Saldo de Préstamos con atrasos desde 61 días y hasta 90 días. ",5]
["E","Saldo de Préstamos con atrasos desde 91 días y hasta 150 días.",30]
["F","Saldo de Préstamos con atrasos desde 151 días y hasta 240 días.",50]
["G","Saldo de Préstamos con atrasos desde 241 días y hasta 360 días.",80]
["H","Saldo de Préstamos con atrasos mayores a 361 días.",100]
["TOTAL",null,null,{"$f":"SUM(D21:D28)","v":0},0,0,0]

{"sheet":"Prev. 1.8","index":9,"n_rows":29,"n_cols":11,"rows_kept":29,"cut":false,"hidden":false,"merged":[[28,0,28,2],[1,0,1,8],[18,0,18,5],[1,9,1,10],[11,0,11,2]]}
[]
["CLASIFICACIÓN DE CARTERA DE CREDITOS Y PREVISIONES.  CARTERA DE CRÉDITOS APROBADOS POR COMITÉ DE CREDITO.",null,null,null,null,null,null,null,null,"Fecha: DD/MM/AA"]
["Categoria","DEFINICIÓN","% de Previsiones a Aplicar","Saldo contable antes de previsiones","Aportes","Garantias Hipotecaria","Garantias Prendarias","Caución de Ahorros","Previsiones a Aplicar","Previsiones Constituidas","Saldo Contable despúes de Previsiones"]
["A","Saldo de Préstamos cuyos pagos se encuentran al día.",0]
["B","Saldo de Préstamos con atrasos desde 1 día y hasta 30 días.",0]
["C","Saldo de Préstamos con atrasos desde 31 días y hasta 60 días.",0]
["D","Saldo de Préstamos con atrasos desde 61 días y hasta 90 días. ",5]
["E","Saldo de Préstamos con atrasos desde 91 días y hasta 150 días.",30]
["F","Saldo de Préstamos con atrasos desde 151 días y hasta 240 días.",50]
["G","Saldo de Préstamos con atrasos desde 241 días y hasta 360 días.",80]
["H","Saldo de Préstamos con atrasos mayores a 361 días.",100]
["TOTAL",null,null,{"$f":"SUM(D4:D11)","v":0},0,0,0,0,0,0,{"$f":"SUM(K4:K11)","v":0}]
[]
[]
[]
[]
[]
[]
["CLASIFICACIÓN DE CARTERA DE CREDITOS Y PREVISIONES.  CARTERA DE CRÉDITOS APROBADOS POR COMITÉ DE CREDITO.",null,null,null,null,null,"Fecha: DD/MM/AA"]
["Categoria","DEFINICIÓN","% de Previsiones a Aplicar","Intereses devengados reconocidos no cobrados","Previsiones a Aplicar","Previsiones Constituidas","Saldo Contable despúes de Previsiones"]
["A","Saldo de Préstamos cuyos pagos se encuentran al día.",0]
["B","Saldo de Préstamos con atrasos desde 1 día y hasta 30 días.",0]
["C","Saldo de Préstamos con atrasos desde 31 días y hasta 60 días.",0]
["D","Saldo de Préstamos con atrasos desde 61 días y hasta 90 días. ",5]
["E","Saldo de Préstamos con atrasos desde 91 días y hasta 150 días.",30]
["F","Saldo de Préstamos con atrasos desde 151 días y hasta 240 días.",50]
["G","Saldo de Préstamos con atrasos desde 241 días y hasta 360 días.",80]
["H","Saldo de Préstamos con atrasos mayores a 361 días.",100]
["TOTAL",null,null,{"$f":"SUM(D21:D28)","v":0},0,0,0]

{"sheet":"Prev. 1.9","index":10,"n_rows":29,"n_cols":11,"rows_kept":29,"cut":false,"hidden":false,"merged":[[28,0,28,2],[1,0,1,8],[18,0,18,5],[1,9,1,10],[11,0,11,2]]}
[]
["CLASIFICACIÓN DE CARTERA DE CREDITOS Y PREVISIONES.  CARTERA DE CRÉDITOS APROBADOS POR COMITÉ EJECUTIVO Y/O CONSEJO DE ADMINISTRACIÓN.",null,null,null,null,null,null,null,null,"Fecha: DD/MM/AA"]
["Categoria","DEFINICIÓN","% de Previsiones a Aplicar","Saldo contable antes de previsiones","Aportes","Garantias Hipotecaria","Garantias Prendarias","Caución de Ahorros","Previsiones a Aplicar","Previsiones Constituidas","Saldo Contable despúes de Previsiones"]
["A","Saldo de Préstamos cuyos pagos se encuentran al día.",0]
["B","Saldo de Préstamos con atrasos desde 1 día y hasta 30 días.",0]
["C","Saldo de Préstamos con atrasos desde 31 días y hasta 60 días.",0]
["D","Saldo de Préstamos con atrasos desde 61 días y hasta 90 días. ",5]
["E","Saldo de Préstamos con atrasos desde 91 días y hasta 150 días.",30]
["F","Saldo de Préstamos con atrasos desde 151 días y hasta 240 días.",50]
["G","Saldo de Préstamos con atrasos desde 241 días y hasta 360 días.",80]
["H","Saldo de Préstamos con atrasos mayores a 361 días.",100]
["TOTAL",null,null,{"$f":"SUM(D4:D11)","v":0},0,0,0,0,0,0,{"$f":"SUM(K4:K11)","v":0}]
[]
[]
[]
[]
[]
[]
["CLASIFICACIÓN DE CARTERA DE CREDITOS Y PREVISIONES.  CARTERA DE CRÉDITOS APROBADOS POR COMITÉ EJECUTIVO Y/O CONSEJO DE ADMINISTRACIÓN.",null,null,null,null,null,"Fecha: DD/MM/AA"]
["Categoria","DEFINICIÓN","% de Previsiones a Aplicar","Intereses devengados reconocidos no cobrados","Previsiones a Aplicar","Previsiones Constituidas","Saldo Contable despúes de Previsiones"]
["A","Saldo de Préstamos cuyos pagos se encuentran al día.",0]
["B","Saldo de Préstamos con atrasos desde 1 día y hasta 30 días.",0]
["C","Saldo de Préstamos con atrasos desde 31 días y hasta 60 días.",0]
["D","Saldo de Préstamos con atrasos desde 61 días y hasta 90 días. ",5]
["E","Saldo de Préstamos con atrasos desde 91 días y hasta 150 días.",30]
["F","Saldo de Préstamos con atrasos desde 151 días y hasta 240 días.",50]
["G","Saldo de Préstamos con atrasos desde 241 días y hasta 360 días.",80]
["H","Saldo de Préstamos con atrasos mayores a 361 días.",100]
["TOTAL",null,null,{"$f":"SUM(D21:D28)","v":0},0,0,0]

{"sheet":"Prev. Depositos Vista","index":11,"n_rows":11,"n_cols":6,"rows_kept":11,"cut":false,"hidden":false,"merged":[[2,1,2,4]]}
[]
[]
[null,"PREVISIONES SOBRE DEPÓSITOS A LA VISTA",null,null,null,"Fecha: DD/MM/AA"]
[null,"Categoria de Riesgos","DÍAS DE NO RECUPERACIÓN","% de Previsiones Requeridas sobre el capital en riesgo","Cartera de Depósitos a la Vista","Previsiones"]
[null,null,"Hasta 15 días",0]
[null,1,"De 16 a 30 días",0.15]
[null,2,"De 31 a 45 días",0.3]
[null,3,"De 46 a 60 días",0.45]
[null,4,"De 61 a 75 días",0.7]
[null,5,"Más de 75 días",1]
[null,null,null,null,{"$f":"E6+E7+E8+E9+E10","v":0},{"$f":"F6+F7+F8+F9+F10","v":0}]

{"sheet":"Prev. Depositos Plazo","index":12,"n_rows":11,"n_cols":6,"rows_kept":11,"cut":false,"hidden":false,"merged":[[2,1,2,4]]}
[]
[]
[null,"PREVISIONES SOBRE DEPÓSITOS A PLAZOS Y OTRAS INVERSIONES FINANCIERAS",null,null,null,"Fecha: DD/MM/AA"]
[null,"Categoria de Riesgo","DÍAS DE NO RECUPERACIÓN ","% de Previsiones Requeridas sobre el capital en riesgo","Cartera de Depósitos a Plazos y Otras Inversiones","Previsiones"]
[null,null,"Al día (*)",0]
[null,1,"De 1 a 60 días",0.15]
[null,2,"De 61 a 120 días",0.3]
[null,3,"De 121 a 180 días",0.45]
[null,4,"De 181 a 360 días",0.7]
[null,5,"Más de 360 días",1]
[null,"(*)  Depósitos a plazos y otras inversiones financieras que aún no vencen.",null,null,{"$f":"E6+E7+E8+E9+E10+E5","v":0},{"$f":"F6+F7+F8+F9+F10+F5","v":0}]

{"sheet":"Concentración de Créditos","index":13,"n_rows":31,"n_cols":4,"rows_kept":31,"cut":false,"hidden":false,"merged":[[2,2,3,3]]}
[]
[]
[null,null,"Concentración de la Cartera de Créditos por Socios"]
[]
[null,null,null,"Fecha: DD/MM/AA"]
[null,null,"Número de Socios","Montos"]
[null,null,"Mayor Deudor"]
[null,null,"2° Mayor Deudor"]
[null,null,"3° Mayor Deudor"]
[null,null,"4° Mayor Deudor"]
[null,null,"5° Mayor Deudor"]
[null,null,"6° Mayor Deudor"]
[null,null,"7° Mayor Deudor"]
[null,null,"8° Mayor Deudor"]
[null,null,"9° Mayor Deudor"]
[null,null,"10 Mayores Deudores"]
[null,null,"20 Mayores Deudores"]
[null,null,"50 Mayores Deudores"]
[null,null,"100 Mayores Deudores"]
[null,null,"Demás Deudores"]
[null,null,"Total de Cartera",{"$f":"SUM(D19:D20)","v":0}]
[]
[null,null,"Mayor deudor: se registrará el monto mayor de crédito, o créditos que sumen el mayor monto, otorgado a un solo socio."]
[null,null,"2° Mayor deudor: se registrará el monto del crédito, o créditos, que sea el segundo en cuanto al monto otorgado a un solo socio."]
[null,null,"3° Mayor Deudor: se registrará el monto del crédito, o créditos, que ocupe el tercer lugar en cuanto a monto otorgado a un solo socio."]
[null,null,"10 Mayores deudores: se registrará la suma de los créditos otorgados a los 10 mayores deudores."]
[null,null,"20 Mayores deudores: se registrará la suma de los créditos otorgados a los 20 mayores deudores (incluye a los 10 mayores deudores)."]
[null,null,"50 Mayores deudores: se registrará la suma de los créditos otorgados a los 50 mayores deudores (incluye a los 20 mayores deudores)."]
[null,null,"100 Mayores deudores: se registrará la suma de los créditos otorgados a los 100 mayores deudores (incluye a los 50 mayores deudores)."]
[null,null,"Demás deudores: se registra el resto de la cartera, que será igual a la cartera bruta total menos los 100 mayores deudores."]
[null,null,"Cartera total: se registra el total de la cartera bruta de créditos."]

{"sheet":"Concentración de Créditos Venc.","index":14,"n_rows":30,"n_cols":4,"rows_kept":30,"cut":false,"hidden":false,"merged":[[2,2,3,3]]}
[]
[]
[null,null,"Concentración de la Cartera de Créditos Vencida por Socios"]
[]
[null,null,null,"Fecha: DD/MM/AA"]
[null,null,"Número de Socios","Montos"]
[null,null,"Mayor Deudor en mora"]
[null,null,"2° Mayor Deudor en mora"]
[null,null,"3° Mayor Deudor en mora"]
[null,null,"4° Mayor Deudor en mora"]
[null,null,"5° Mayor Deudor en mora"]
[null,null,"6° Mayor Deudor en mora"]
[null,null,"7° Mayor Deudor en mora"]
[null,null,"8° Mayor Deudor en mora"]
[null,null,"9° Mayor Deudor en mora"]
[null,null,"10 Mayores Deudores en mora"]
[null,null,"20 Mayores Deudores en mora"]
[null,null,"50 Mayores Deudores en mora"]
[null,null,"100 Mayores Deudores en mora"]
[null,null,"Demás Deudores en mora"]
[null,null,"Total de Cartera en mora",{"$f":"SUM(D19:D20)","v":0}]
[null,null,"Mayor deudor en mora: se registrará el monto mayor de crédito, o créditos que sumen el mayor monto, otorgado a un solo socio con mora mayor a 60 días."]
[null,null,"2° Mayor deudor en mora: se registrará el monto del crédito, o créditos, que sea el segundo en cuanto al monto otorgado a un solo socio con mora mayor a 60 días."]
[null,null,"3° Mayor deudor en mora: se registrará el monto del crédito, o créditos, que sea el tercero en cuanto al monto otorgado a un solo socio con mora mayor a 60 días."]
[null,null,"10 Mayores deudores en mora: se registrará la suma de los créditos en mora con mayores montos correspondiente a primeros 10 socios."]
[null,null,"20 Mayores deudores en mora: se registrará la suma de los créditos en mora con mayores montos correspondiente a primeros 20 socios (incluye a los 10 mayores deudores en mora)."]
[null,null,"50 Mayores deudores en mora: se registrará la suma de los créditos en mora con mayores montos correspondiente a primeros 50 socios (incluye a los 20 mayores deudores en mora)."]
[null,null,"100 Mayores deudores en mora: se registrará la suma de los créditos en mora con mayores montos correspondiente a primeros 100 socios (incluye a los 50 mayores deudores en mora)."]
[null,null,"Demás deudores en mora: se registra el resto de la cartera, que será igual a la cartera bruta total menos los 100 mayores deudores."]
[null,null,"Cartera Total en mora: se registra la cartera total en mora."]

{"sheet":"Concentración Ahorros","index":15,"n_rows":30,"n_cols":4,"rows_kept":30,"cut":false,"hidden":false,"merged":[[2,2,3,3]]}
[]
[]
[null,null,"Concentración de Ahorros por Socios."]
[]
[null,null,null,"Fecha: dd/mm/aa"]
[null,null,"Número de Socios","Montos"]
[null,null,"Mayor Ahorrista"]
[null,null,"2° Mayor Ahorrista"]
[null,null,"3° Mayor Ahorrista"]
[null,null,"4° Mayor Ahorrista"]
[null,null,"5° Mayor Ahorrista"]
[null,null,"6° Mayor Ahorrista"]
[null,null,"7° Mayor Ahorrista"]
[null,null,"8° Mayor Ahorrista"]
[null,null,"9° Mayor Ahorrista"]
[null,null,"10 Mayores Ahorristas"]
[null,null,"20 Mayores Ahorristas"]
[null,null,"50 Mayores Ahorristas"]
[null,null,"100 Mayores Ahorristas"]
[null,null,"Demás Ahorristas"]
[null,null,"Total de Cartera",{"$f":"SUM(D19:D20)","v":0}]
[null,null,"Mayor ahorrista: se registrará el mayor monto de ahorros (a la vista + a plazos) acumulado por un socio."]
[null,null,"2° Mayor Ahorrista: se registrará el segundo mayor monto de ahorros acumulado por un socio."]
[null,null,"3° Mayor Ahorrista: se registrará el tercer mayor monto de ahorros acumulado por un socio."]
[null,null,"10 Mayores Ahorristas: se registrará suma de ahorros correspondientes a los 10 socios con mayores montos acumulados bajo esta modalidad."]
[null,null,"20 Mayores Ahorristas: se registrará suma de ahorros correspondiente a los 20 socios con mayores montos acumulados bajo esta modalidad (incluye a los 10 Mayores ahorristas)."]
[null,null,"50 Mayores Ahorristas: se registrará suma de ahorros correspondientes a los 50 socios con mayores montos acumulados bajo esta modalidad (incluye a los 20 Mayores ahorristas)."]
[null,null,"100 Mayores Ahorristas: se registrará suma de ahorros correspondientes a los 100 socios con mayores montos acumulados bajo esta modalidad (incluye a los 50 Mayores ahorristas)."]
[null,null,"Demás Ahorristas: se registra el resto de la cartera de ahorro, que será igual a la cartera total menos los 100 mayores ahorristas."]
[null,null,"Total de cartera de ahorros: se registra la cartera total de los ahorros."]

{"sheet":"Concentración Ahorros Vista","index":16,"n_rows":30,"n_cols":4,"rows_kept":30,"cut":false,"hidden":false,"merged":[[2,2,3,3]]}
[]
[]
[null,null,"Concentración de Ahorros a la Vista por Socios."]
[]
[null,null,null,"Fecha: DD/MM/AA"]
[null,null,"Número de Socios","Montos"]
[null,null,"Mayor Ahorrista"]
[null,null,"2° Mayor Ahorrista"]
[null,null,"3° Mayor Ahorrista"]
[null,null,"4° Mayor Ahorrista"]
[null,null,"5° Mayor Ahorrista"]
[null,null,"6° Mayor Ahorrista"]
[null,null,"7° Mayor Ahorrista"]
[null,null,"8° Mayor Ahorrista"]
[null,null,"9° Mayor Ahorrista"]
[null,null,"10 Mayores Ahorristas"]
[null,null,"20 Mayores Ahorristas"]
[null,null,"50 Mayores Ahorristas"]
[null,null,"100 Mayores Ahorristas"]
[null,null,"Demás Ahorristas"]
[null,null,"Total de Cartera",{"$f":"SUM(D19:D20)","v":0}]
[null,null,"Mayor ahorrista: se registrará el mayor monto de ahorro a la vista acumulado por un socio."]
[null,null,"2° Mayor Ahorrista: se registrará el segundo mayor monto de ahorro a la vista acumulado por un socio."]
[null,null,"3° Mayor Ahorrista: se registrará el tercer mayor monto de ahorro a la vista acumulado por un socio."]
[null,null,"10 Mayores Ahorristas: se registrará suma de ahorros a la vista correspondiente a los 10 socios con mayores montos acumulados bajo esta modalidad."]
[null,null,"20 Mayores Ahorristas: se registrará suma de ahorros a la vista correspondiente a los 20 socios con mayores montos acumulados bajo esta modalidad (incluye a los 10 Mayores ahorristas)."]
[null,null,"50 Mayores Ahorristas: se registrará suma de ahorros a la vista correspondiente a los 50 socios con mayores montos acumulados bajo esta modalidad (incluye a los 20 Mayores ahorristas)."]
[null,null,"100 Mayores Ahorristas: se registrará suma de ahorros a la vista correspondiente a los 100 socios con mayores montos acumulados bajo esta modalidad (incluye a los 50 Mayores ahorristas)."]
[null,null,"Demás Ahorristas: se registra el resto de la cartera de ahorro a la vista, que será igual a la cartera total de ahorro a la vista menos los 100 mayores ahorristas a la vista."]
[null,null,"Total de cartera de ahorros a la vista: se registra la cartera total de los ahorros a la vista."]

{"sheet":"Concentración Ahorros Plazo","index":17,"n_rows":30,"n_cols":4,"rows_kept":30,"cut":false,"hidden":false,"merged":[[2,2,3,3]]}
[]
[]
[null,null,"Concentración de Ahorros a Plazos por Socios."]
[]
[null,null,null,"Fecha: dd/mm/aa"]
[null,null,"Número de Socios","Montos"]
[null,null,"Mayor Ahorrista"]
[null,null,"2° Mayor Ahorrista"]
[null,null,"3° Mayor Ahorrista"]
[null,null,"4° Mayor Ahorrista"]
[null,null,"5° Mayor Ahorrista"]
[null,null,"6° Mayor Ahorrista"]
[null,null,"7° Mayor Ahorrista"]
[null,null,"8° Mayor Ahorrista"]
[null,null,"9° Mayor Ahorrista"]
[null,null,"10 Mayores Ahorristas"]
[null,null,"20 Mayores Ahorristas"]
[null,null,"50 Mayores Ahorristas"]
[null,null,"100 Mayores Ahorristas"]
[null,null,"Demás Ahorristas"]
[null,null,"Total de Cartera",{"$f":"SUM(D19:D20)","v":0}]
[null,null,"Mayor ahorrista: se registrará el mayor monto de ahorros  a plazos acumulado por un socio."]
[null,null,"2° Mayor Ahorrista: se registrará el segundo mayor monto de ahorros a plazos acumulado por un socio."]
[null,null,"3° Mayor Ahorrista: se registrará el tercer mayor monto de ahorros a plazos acumulado por un socio."]
[null,null,"10 Mayores Ahorristas: se registrará suma de ahorros a plazos correspondientes a los 10 socios con mayores montos acumulados bajo esta modalidad."]
[null,null,"20 Mayores Ahorristas: se registrará suma de ahorros a plazos correspondiente a los 20 socios con mayores montos acumulados bajo esta modalidad (incluye a los 10 Mayores ahorristas)."]
[null,null,"50 Mayores Ahorristas: se registrará suma de ahorros a plazos correspondientes a los 50 socios con mayores montos acumulados bajo esta modalidad (incluye a los 20 Mayores ahorristas)."]
[null,null,"100 Mayores Ahorristas: se registrará suma de ahorros a plazos correspondientes a los 100 socios con mayores montos acumulados bajo esta modalidad (incluye a los 50 Mayores ahorristas)."]
[null,null,"Demás Ahorristas: se registra el resto de la cartera de ahorro a plazos, que será igual a la cartera total a plazos menos los 100 mayores ahorristas a plazos."]
[null,null,"Total de cartera de ahorros a plazos: se registra la cartera total de los ahorros a plazos."]

{"sheet":"Prev sobre Bienes adjudicados","index":18,"n_rows":8,"n_cols":8,"rows_kept":8,"cut":false,"hidden":false,"merged":[[2,2,2,5]]}
[]
[]
[null,null,"PREVISIONES SOBRE BIENES ADJUDICADOS O RECIBIDOS EN DACIÓN DE PAGO",null,null,null,"FECHA: ","DD/MM/AA"]
[null,null,"Categoria","DÍAS DE NO ENAJENACIÓN","% de Previsión sobre valor del bien","Valor del Bien","Previsiones Requeridas","Previsiones constituidas"]
[null,null,1,"De 1 a 1080 días",0,null,{"$f":"F5*E5","v":0}]
[null,null,2,"De 1081 a 1440 días",0.5,null,{"$f":"F6*E6","v":0}]
[null,null,3,"Más de 1440 días",1,null,{"$f":"F7*E7","v":0}]
[null,null,null,"Total",null,{"$f":"F5+F6+F7","v":0},{"$f":"G5+G6+G7","v":0},{"$f":"H6+H7","v":0}]

{"sheet":"Prev s Otros Activos Riesgos","index":19,"n_rows":9,"n_cols":7,"rows_kept":9,"cut":false,"hidden":false,"merged":[[2,1,2,4]]}
[]
[]
[null,"PREVISIONES SOBRE OTROS ACTIVOS DE RIESGO.",null,null,null,"Fecha: ","DD/MM/AA"]
[null,"Categoria","DÍAS DE ANTIGÜEDAD","% de Previsiones Requeridas","Saldos","Previsiones Requeridas","Previsiones Constituidas"]
[null,null,"De 1 a 29 días","0% sobre el saldo",null,{"$f":"E5*0","v":0}]
[null,1,"De 30 a 60 días","25% sobre el saldo",null,{"$f":"E6*0.25","v":0}]
[null,2,"De 61 a 90 días","50% sobre el saldo",null,{"$f":"E7*0.5","v":0}]
[null,3,"Más de 90 días","100% sobre el saldo",null,{"$f":"E8*1","v":0}]
[null,null,"Total",null,{"$f":"E5+E6+E7+E8","v":0},{"$f":"F5+F6+F7+F8","v":0},{"$f":"G5+G6+G7+G8","v":0}]

{"sheet":"Prev s Otras Inversiones","index":20,"n_rows":9,"n_cols":7,"rows_kept":9,"cut":false,"hidden":false,"merged":[[2,1,2,4]]}
[]
[]
[null,"PREVISIONES SOBRE OTRAS INVERSIONES.",null,null,null,"Fecha:"," DD/MM/AA"]
[null,"Categoria","PROPORCIÓN DE LAS PÉRDIDAS DE LA SOCIEDAD","% de Previsiones Requeridas","Saldos","Previsiones Requeridas","Previsiones Constituidas"]
[null,1,"Desde el 50%",0.3,null,{"$f":"E5*D5","v":0}]
[null,2,"De 51% a 60%",0.5,null,{"$f":"E6*D6","v":0}]
[null,3,"De 61% a 80%",0.7,null,0]
[null,4,"De 81% a 100%",1,null,0]
[null,null,"TOTAL",null,{"$f":"SUM(E5:E8)","v":0},{"$f":"SUM(F5:F8)","v":0},{"$f":"SUM(G5:G8)","v":0}]

{"sheet":"Depreciación","index":21,"n_rows":17,"n_cols":6,"rows_kept":17,"cut":false,"hidden":false,"merged":[[2,1,2,3]]}
[]
[]
[null,"CUADRO DE REVALÚO Y DEPRECIACIÓN (**)",null,null,"Fecha: ","DD/MM/AA"]
[null,"Concepto","Tasa de Depreciación en % anual","Valor de Costo Revaluado","Depreciación Acumulada","Valor contable neto de depreciación"]
[null,"Inmuebles- Terreno"]
[null,"Inmuebles- Edificios",3.3300000000000003E-2]
[null,"Equipos e Instalaciones",0.1]
[null,"Construcciones en Curso"]
[null,"Maquinarias y Equipos",0.1]
[null,"Herramientas"]
[null,"Rodados"]
[null,"Muebles de Oficina",0.2]
[null,"Equipos  informáticos  y Software",0.5]
[null,"Bibliotecas, Obras de Arte y Otros.",0.1]
[null,"Bienes Tomados en Arrendamiento Financiero",0.25]
[null,"Total",null,{"$f":"SUM(INDIRECT(\"D5:D\"&ROW()-1))","v":0},{"$f":"SUM(INDIRECT(\"E5:E\"&ROW()-1))","v":0},{"$f":"SUM(INDIRECT(\"F5:F\"&ROW()-1))","v":0}]
[null,"(**)  Presentación al cierre de cada ejercicio."]

{"sheet":"Ejecución Presupuestaria","index":22,"n_rows":318,"n_cols":7,"rows_kept":318,"cut":false,"hidden":false,"merged":[[3,1,3,2],[2,5,2,6],[2,1,2,4]]}
[]
[]
[null,"EJECUCIÓN PRESUPUESTARIA ",null,null,null,"AL DIA/MES/AÑO"]
[null,"Tipo de Saldo: Acumulado.",null,"Ejecutado","Presupuestado","Diferencia","Variación %"]
[null,"I4","INGRESOS",null,null,{"$f":"E5-D5","v":0},{"$f":"IFERROR((D5*100/E5)-100,0)","v":0}]
[null,"I41","INGRESOS Operativos",null,null,{"$f":"E6-D6","v":0},{"$f":"IFERROR((D6*100/E6)-100,0)","v":0}]
[null,"I411","Ingresos Operativos por Serv Financieros",null,null,0,0]
[null,"I41101","Intereses y Comisiones Cobrados por Créditos",null,null,0,0]
[null,"I4110101","Intereses Compensatorios Cobrados sobre Créditos",null,null,0,0]
[null,"I411010101","Intereses Compensatorios s/Amortizables",null,null,0,0]
[null,"I411010102","Intereses Compensatorios s/Plazo Único",null,null,0,0]
[null,"I411010103","Intereses Compensatorios p/Descuento de Documentos",null,null,0,0]
[null,"I411010104","Intereses Compensatorios s/Présta Cooperativas y Entidades sin Fines de Lucro",null,null,0,0]
[null,"I411010105","Intereses Compensatorios s/ Créditos Vinculados",null,null,0,0]
[null,"I411010106","Intereses Compensatorios s/ Préstamos a Ex Socios",null,null,0,0]
[null,"I411010107","Intereses Compensatorios s/ Créditos Judicializados",null,null,0,0]
[null,"I411010108","Intereses Compensatorios s/ Créditos Refinanciados",null,null,0,0]
[null,"I411010109","Intereses Compensatorios s/ Tarjetas de Crédito",null,null,0,0]
[null,"I411010110","Intereses Compensatorios s/ Créditos para Compra de Vivienda",null,null,0,0]
[null,"I411010111","Intereses Compensatorios s/ Créditos para remodelación de Vivienda",null,null,0,0]
[null,"I411010112","Intereses Compensatorios s/ Créditos Otorgados por las EIC",null,null,0,0]
[null,"I4110102","Comisiones Cobradas",null,null,0,0]
[null,"I411010201","Comisiones s/Amortizables",null,null,0,0]
[null,"I411010202","Comisiones s/Plazo Único",null,null,0,0]
[null,"I411010203","Comisiones p/Descuento de Documentos",null,null,0,0]
[null,"I411010204","Comisiones s/Présta Cooperativas y Entidades sin Fines de Lucro",null,null,0,0]
[null,"I411010205","Comisiones s/ Créditos Vinculados",null,null,0,0]
[null,"I411010206","Comisiones s/ Préstamos a Ex Socios",null,null,0,0]
[null,"I411010207","Comisiones s/ Créditos Judicializados",null,null,0,0]
[null,"I411010208","Comisiones s/ Créditos Refinanciados",null,null,0,0]
[null,"I411010209","Comisiones s/ Tarjetas de Crédito",null,null,0,0]
[null,"I411010210","Comisiones s/ Créditos para Compra de Vivienda",null,null,0,0]
[null,"I411010211","Comisiones s/ Créditos para remodelación de Vivienda",null,null,0,0]
[null,"I411010212","Comisiones s/ Créditos Otorgados por las EIC",null,null,0,0]
[null,"I4110103","Intereses Moratorios Cobrados",null,null,0,0]
[null,"I411010301","Intereses Moratorios s/Amortizables",null,null,0,0]
[null,"I411010302","Intereses Moratorios s/Plazo Único",null,null,0,0]
[null,"I411010303","Intereses Moratorios p/Descuento de Documentos",null,null,0,0]
[null,"I411010304","Intereses Moratorios s/Présta Cooperativas y Entidades sin Fines de Lucro",null,null,0,0]
[null,"I411010305","Intereses Moratorios s/ Créditos Vinculados",null,null,0,0]
[null,"I411010306","Intereses Moratorios s/ Préstamos a Ex Socios",null,null,0,0]
[null,"I411010307","Intereses Moratorios s/ Créditos Judicializados",null,null,0,0]
[null,"I411010308","Intereses Moratorios s/ Créditos Refinanciados",null,null,0,0]
[null,"I411010309","Intereses Moratorios s/ Tarjetas de Crédito",null,null,0,0]
[null,"I411010310","Intereses Moratorios s/ Créditos para Compra de Vivienda",null,null,0,0]
[null,"I411010311","Intereses Moratorios s/ Créditos para remodelación de Vivienda",null,null,0,0]
[null,"I411010312","Intereses Moratorios s/ Créditos Otorgados por las EIC",null,null,0,0]
[null,"I4110104","Intereses Punitorios Cobrados",null,null,0,0]
[null,"I411010401","Intereses Punitorios s/Amortizables",null,null,0,0]
[null,"I411010402","Intereses Punitorios s/Plazo Único",null,null,0,0]
[null,"I411010403","Intereses Punitorios p/Descuento de Documentos",null,null,0,0]
[null,"I411010404","Intereses Punitorios s/Présta Cooperativas y Entidades sin Fines de Lucro",null,null,0,0]
[null,"I411010405","Intereses Punitorios s/ Créditos Vinculados",null,null,0,0]
[null,"I411010406","Intereses Punitorios s/ Préstamos a Ex Socios",null,null,0,0]
[null,"I411010407","Intereses Punitorios s/ Créditos Judicializados",null,null,0,0]
[null,"I411010408","Intereses Punitorios s/ Créditos Refinanciados",null,null,0,0]
[null,"I411010409","Intereses Punitorios s/ Tarjetas de Crédito",null,null,0,0]
[null,"I411010410","Intereses Punitorios s/ Créditos para Compra de Vivienda",null,null,0,0]
[null,"I411010411","Intereses Punitorios s/ Créditos para remodelación de Vivienda",null,null,0,0]
[null,"I411010412","Intereses Punitorios s/ Créditos Otorgados por las EIC",null,null,0,0]
[null,"I4110105","Intereses y Accesorios s/Refinanciación",null,null,0,0]
[null,"I411010501","Intereses y Accesorios s/Refinanciación",null,null,0,0]
[null,"I41102","Comisiones Cobradas sobre Servicios Financieros",null,null,0,0]
[null,"I4110201","Comisiones Cobradas sobre Servicios Financieros",null,null,0,0]
[null,"I411020101","Comisiones Cobradas s/ Tarjetas de Débito",null,null,0,0]
[null,"I411020102","Comisiones por emisión y renovación de Tarjetas de Débitos",null,null,0,0]
[null,"I411020103","Comisiones por emisión y renovación de Tarjetas de Créditos",null,null,0,0]
[null,"I411020104","Comisiones Cobradas s/ Cajeros Automáticos",null,null,0,0]
[null,"I411020105","Comisiones por servicios de fianzas, avales y otros",null,null,0,0]
[null,"I411020106","Comisiones por otros servicios financieros",null,null,{"$f":"E70-D70","v":0},{"$f":"IFERROR((D70*100/E70)-100,0)","v":0}]
[null,"I41103","Intereses Cobrados por Depósitos y Valores Financieros",null,null,0,0]
[null,"I4110301","Depósitos a la Vista",null,null,0,0]
[null,"I411030101","Intereses s/ Depósitos de Ahorro a la Vista Sector Cooperativo",null,null,0,0]
[null,"I411030102","Intereses s/ Depósitos a la Vista-Bancos",null,null,0,0]
[null,"I411030103","Intereses s/Depósitos a la Vista Otras Instituciones Financieras",null,null,0,0]
[null,"I4110302","Depósitos a Plazo",null,null,0,0]
[null,"I411030201","Intereses s/ CDA Bancos del País",null,null,0,0]
[null,"I411030202","Intereses sobre Valores emitidos por el Sector Público",null,null,0,0]
[null,"I411030203","Intereses sobre Valores emitidos por el Sector Privado",null,null,0,0]
[null,"I411030204","Intereses sobre Letras de Regulación Monetaria",null,null,0,0]
[null,"I411030205","Intereses sobre Depósitos a Plazo Otras Instituciones Financieras",null,null,0,0]
[null,"I411030206","Intereses s/Depósitos a Plazo Fijo Sector Cooperativo",null,null,0,0]
[null,"I411030207","Intereses s/Depósitos a Plazo Fijo Sector Bancos",null,null,0,0]
[null,"I411030208","Intereses s/Otros Valores",null,null,0,0]
[null,"I41104","Ingresos Operativos Varios",null,null,0,0]
[null,"I4110401","Desafectación de Previsiones",null,null,0,0]
[null,"I411040101","Previsiones p/ Créditos y otros activos",null,null,0,0]
[null,"I411040102","Previsiones Adicionales",null,null,0,0]
[null,"I411040103","Previsiones Opcionales para Coops Tipo C",null,null,0,0]
[null,"I4110402","Otros Ingresos Operativos Varios",null,null,0,0]
[null,"I411040201","Dividendos en Acciones y Participaciones",null,null,0,0]
[null,"I411040202","Participación en excedentes de Cooperativas",null,null,0,0]
[null,"I411040203","Cuotas de Ingreso no retornables",null,null,0,0]
[null,"I411040204","Créditos Liquidados por Incobrables Recuperados",null,null,0,0]
[null,"I411040205","Plusvalía por Venta de Inversiones",null,null,0,0]
[null,"I411040206","Rendimiento sobre Bienes Destinados a la Venta",null,null,0,0]
[null,"I411040207","Cuotas de Sostenimiento",null,null,0,0]
[null,"I411040208","Ingreso por Venta de Cartera",null,null,0,0]
[null,"I411040209","Descuentos en Cartera Comprada",null,null,0,0]
[null,"I411040210","Descuentos en Documentos comprados",null,null,0,0]
[null,"I411040211","Otros Ingresos y Servicios",null,null,0,0]
[null,"I41105","Ingresos por Ventas y Servicios no Financieros",null,null,0,0]
[null,"I4110501","Ventas y Servicios a Socios",null,null,0,0]
[null,"I411050101","Ventas de bienes",null,null,0,0]
[null,"I411050102","Servicios no Financieros",null,null,0,0]
[null,"I411050103","Servicios Básicos",null,null,0,0]
[null,"I411050104","Servicios de Protección a la Salud",null,null,0,0]
[null,"I411050105","Otros Ingresos y Servicios",null,null,0,0]
[null,"I4110502","Ventas y Servicios a No Socios",null,null,0,0]
[null,"I411050201","Ventas de bienes",null,null,0,0]
[null,"I411050202","Servicios no Financieros",null,null,0,0]
[null,"I411050203","Servicios Básicos",null,null,0,0]
[null,"I411050204","Servicios de Protección a la Salud",null,null,0,0]
[null,"I411050205","Otros Ingresos y Servicios",null,null,0,0]
[null,"I4110503","Educación Cooperativa",null,null,0,0]
[null,"I411050301","Servicios de Formación y Capacitación (70%)",null,null,0,0]
[null,"I411050302","Servicios de Actividades sociales y recretativas (30%)",null,null,0,0]
[null,"I42","INGRESOS NO OPERATIVOS",null,null,0,0]
[null,"I421","Ingresos Eventuales",null,null,0,0]
[null,"I42101","Ingresos Varios",null,null,0,0]
[null,"I4210101","Ingresos Varios",null,null,0,0]
[null,"I421010101","Excedente por Diferencia de Cambio",null,null,0,0]
[null,"I421010102","Utilidad en Venta de Activos Fijos",null,null,0,0]
[null,"I421010103","Utilidad en Venta de Bienes Adjudicados",null,null,0,0]
[null,"I421010104","Comisiones por Servicios de Cobranzas",null,null,0,0]
[null,"I421010105","Alquileres Cobrados",null,null,0,0]
[null,"I421010106","Ingresos Extraordinarios",null,null,0,0]
[null,"I421010107","Ingresos por Subsidios Recibidos",null,null,0,0]
[null,"I421010108","Otros Ingresos no Operativos",null,null,0,0]
[null,"I42102","Ingresos por Actividades Especiales",null,null,0,0]
[null,"I4210201","Ingresos por Actividades Especiales",null,null,0,0]
[null,"I421020101","Ingresos por Actividades Especiales",null,null,0,0]
[]
[null,"G5","EGRESOS",null,null,{"$f":"E134-D134","v":0},0]
[null,"G51","COSTOS Y GASTOS OPERATIVOS",null,null,0,0]
[null,"G511","Costos y Gastos Operativos Serv Financieros",null,null,0,{"$f":"IFERROR((D136*100/E136)-100,0)","v":0}]
[null,"G51101","Intereses y Comisiones Pagados",null,null,0,0]
[null,"G5110101","Intereses Pagados por Captaciones Socios",null,null,0,0]
[null,"G511010101","Intereses Pagados p/Ahorro a la Vista personas físicas o naturales",null,null,0,0]
[null,"G511010102","Intereses Pagados p/ Ahorro a la Vista personas jurídicas",null,null,0,0]
[null,"G511010103","Intereses Pagados p/ Ahorros a Plazo personas físicas o naturales",null,null,0,0]
[null,"G511010104","Intereses Pagados p/ Ahorros a Plazo personas jurídicas",null,null,0,0]
[null,"G511010105","Intereses Pagados p/ Ahorros Programados Captados",null,null,0,0]
[null,"G511010106","Intereses Pagados p/ Otras Captaciones de Ahorros",null,null,0,0]
[null,"G5110102","Intereses Pagados por Captaciones No Socios",null,null,0,0]
[null,"G511010201","Intereses Pagados p/Ahorro a la Vista personas físicas o naturales",null,null,0,0]
[null,"G511010202","Intereses Pagados p/ Ahorro a la Vista personas jurídicas",null,null,0,0]
[null,"G511010203","Intereses Pagados p/ Ahorros a Plazo personas físicas o naturales",null,null,0,0]
[null,"G511010204","Intereses Pagados p/ Ahorros a Plazo personas jurídicas",null,null,0,0]
[null,"G511010205","Intereses Pagados p/ Ahorros Programados Captados",null,null,0,0]
[null,"G511010206","Intereses Pagados p/ Otras Captaciones de Ahorros",null,null,0,0]
[null,"G5110103","Intereses Pagados por Créditos Externos",null,null,0,0]
[null,"G511010301","Intereses Pagados a Otras Cooperativas e Instsin Fines de Lucro",null,null,0,0]
[null,"G511010302","Intereses Pagados a Entidades Bancarias y Financieras",null,null,0,0]
[null,"G511010303","Intereses Pagados por Deudas a Organismos Nacionales no Bancarios",null,null,0,0]
[null,"G511010304","Intereses Pagados por Deudas a Organismos Internacionales",null,null,0,0]
[null,"G511010305","Intereses Pagados por Títulos de Deuda-Bonos",null,null,0,0]
[null,"G511010306","Intereses Pagados por Sobregiros",null,null,0,0]
[null,"G5110104","Comisiones Pagadas por Servicios Financieros",null,null,0,0]
[null,"G511010401","Comisiones Pagadas por Servicios de Otras Cooperativas e Instsin Fines de Lucro",null,null,0,0]
[null,"G511010402","Comisiones Pagadas por Servicios Bancarios y Financieros",null,null,0,0]
[null,"G511010403","Comisiones Pagadas por Deudas a Organismos Nacionales no Bancarios",null,null,0,0]
[null,"G511010404","Comisiones Pagadas por Deudas a Organismos Internacionales",null,null,0,0]
[null,"G511010405","Comisiones Pagadas por Operaciones de Cobranza",null,null,0,0]
[null,"G511010406","Comisiones Pagadas por Títulos de Deuda-Bonos",null,null,0,0]
[null,"G511010407","Otras Comisiones Pagadas",null,null,0,0]
[null,"G5110105","Intereses Moratorios Pagados por Créditos Externos",null,null,0,0]
[null,"G511010501","Intereses Moratorios Pagados a Otras Cooperativas e Instsin Fines de Lucro",null,null,0,0]
[null,"G511010502","Intereses Moratorios Pagados a Entidades Bancarias y Financieras",null,null,0,0]
[null,"G511010503","Intereses Moratorios Pagados por Deudas a Organismos Nacionales no Bancarios",null,null,0,0]
[null,"G511010504","Intereses Moratorios Pagados por Deudas a Organismos Internacionales",null,null,0,0]
[null,"G511010505","Intereses Moratorios Pagados por Títulos de Deuda-Bonos",null,null,0,0]
[null,"G5110106","Intereses Punitorios Pagados por Créditos Externos",null,null,0,0]
[null,"G511010601","Intereses Punitorios Pagados a Otras Cooperativas e Inst. sin Fines de Lucro",null,null,0,0]
[null,"G511010602","Intereses Punitorios Pagados a Entidades Bancarias y Financieras",null,null,0,0]
[null,"G511010603","Intereses Punitorios Pagados por Deudas a Organismos Nacionales no Bancarios",null,null,0,0]
[null,"G511010604","Intereses Punitorios Pagados por Deudas a Organismos Internacionales",null,null,0,0]
[null,"G511010605","Intereses Punitorios Pagados por Títulos de Deuda-Bonos",null,null,0,0]
[null,"G51102","Previsiones",null,null,0,0]
[null,"G5110201","Previsiones para Créditos en Mora",null,null,0,0]
[null,"G511020101","Previsiones p/ Créditos",null,null,0,0]
[null,"G511020102","Previsiones Adicionales",null,null,0,0]
[null,"G5110202","Previsiones para Otros Activos de Riesgo",null,null,0,0]
[null,"G511020201","Previsiones para Depósitos a la Vista",null,null,0,0]
[null,"G511020202","Previsiones para Depósitos a Plazo, Valores Financieros e Inversiones Temporales",null,null,0,0]
[null,"G511020203","Previsiones para Cuentas a Cobrar",null,null,0,0]
[null,"G511020204","Previsiones para Otros Créditos",null,null,0,0]
[null,"G511020205","Previsiones sobre Inversiones",null,null,0,0]
[null,"G511020206","Previsiones sobre Activos Restringidos",null,null,0,0]
[null,"G511020207","Previsiones sobre Bienes Adjudicados a Realizar o Recibidos en Dación de Pago",null,null,0,0]
[null,"G511020208","Previsiones Existencias",null,null,0,0]
[null,"G511020209","Previsiones Créditos Diversos",null,null,0,0]
[null,"G51103","Otros Costos por Servicios Financieros",null,null,0,0]
[null,"G5110301","Otros Costos por Servicios Financieros",null,null,0,0]
[null,"G511030101","Sobrecosto en compra de Inversiones",null,null,0,0]
[null,"G511030102","Costo Procesamiento Tarjetas Débito",null,null,0,0]
[null,"G511030103","Costo Procesamiento Tarjetas Crédito",null,null,{"$f":"E197-D197","v":0},0]
[null,"G511030104","Descuentos Otorgados",null,null,0,0]
[null,"G511030105","Comisiones y Bonificaciones Pagadas",null,null,0,0]
[null,"G511030106","Costo Central de Riesgos INCOOP",null,null,0,{"$f":"IFERROR((D200*100/E200)-100,0)","v":0}]
[null,"G511030107","Costo Fondo Garantía de Depósitos de Ahorros",null,null,0,0]
[null,"G511030108","Costos y Gastos Cajeros Automáticos",null,null,0,0]
[null,"G51104","Gastos Administrativos por Act Ahorro Cred",null,null,0,0]
[null,"G5110401","Gastos de Personal",null,null,0,0]
[null,"G511040101","Sueldos Personal Administrativo y Otros",null,null,0,0]
[null,"G511040102","Beneficios sociales",null,null,0,0]
[null,"G511040103","Horas Extras",null,null,0,0]
[null,"G511040104","Vacaciones",null,null,0,0]
[null,"G5110402","Honorarios",null,null,0,0]
[null,"G511040201","Honorarios Profesionales",null,null,0,0]
[null,"G511040202","Servicios de Terceros",null,null,0,0]
[null,"G5110403","Servicios y Gastos de Oficina",null,null,0,0]
[null,"G511040301","Servicios Públicos",null,null,0,0]
[null,"G511040302","Materiales, Utiles y Papelería",null,null,0,0]
[null,"G511040303","Reparación y Mantenimiento",null,null,0,0]
[null,"G511040304","Procesamiento de Datos",null,null,0,0]
[null,"G511040305","Seguros",null,null,0,0]
[null,"G511040306","Alquileres Pagados",null,null,0,0]
[null,"G511040307","Combustibles y Lubricantes",null,null,0,0]
[null,"G511040308","Capacitación",null,null,0,0]
[null,"G511040309","Gastos de Movilidad y Transporte",null,null,0,0]
[null,"G511040310","Gastos de Viajes empleados",null,null,0,0]
[null,"G511040311","Gastos de Viajes terceros",null,null,0,0]
[null,"G511040312","Gastos de Estudios de Proyectos",null,null,0,0]
[null,"G511040313","Gastos Legales",null,null,0,0]
[null,"G511040314","Gastos Organización y Constitucion",null,null,0,0]
[null,"G511040315","Gastos de Reorganización",null,null,0,0]
[null,"G511040316","Patentes y Software Informáticos",null,null,0,0]
[null,"G511040317","Mejoras en Inmuebles de Terceros",null,null,0,0]
[null,"G511040318","Leasing Operativo",null,null,0,0]
[null,"G511040319","Bibliotecas, Obras de Arte y Otros",null,null,0,0]
[null,"G511040320","Bienes Tomados en Arrendamiento",null,null,0,0]
[null,"G5110404","mercadeo",null,null,0,0]
[null,"G511040401","Publicidad",null,null,0,0]
[null,"G511040402","Patrocinios",null,null,0,0]
[null,"G511040403","Producción de Comerciales",null,null,0,0]
[null,"G511040404","Material Publicitario",null,null,0,0]
[null,"G511040405","Estudios de mercado",null,null,0,0]
[null,"G511040406","Artículos promocionales",null,null,0,0]
[null,"G511040407","Promociones y Sorteos",null,null,0,0]
[null,"G5110405","Impuestos y Tasas",null,null,0,0]
[null,"G511040501","Impuestos",null,null,0,0]
[null,"G511040502","Tasas",null,null,0,0]
[null,"G511040503","Cuota de Sostenimiento",null,null,0,0]
[null,"G5110406","Depreciaciones y Amortizaciones",null,null,0,0]
[null,"G511040601","Depreciación Permanente",null,null,0,0]
[null,"G511040602","Amortización Cargos Diferidos",null,null,0,0]
[null,"G511040603","Amortización para Intangibles",null,null,0,0]
[null,"G51105","Gastos de Gobernabilidad",null,null,0,0]
[null,"G5110501","Gastos del Consejo de Administración",null,null,0,0]
[null,"G511050101","Dietas",null,null,0,0]
[null,"G511050102","Gastos de Sesión",null,null,0,0]
[null,"G511050103","Gastos de Capacitación Directivos",null,null,0,0]
[null,"G511050104","Gastos de Viajes",null,null,0,0]
[null,"G511050105","Gastos de Representación",null,null,0,0]
[null,"G511050106","Remuneración al Comité Ejecutivo",null,null,0,0]
[null,"G5110502","Gastos de la Junta de Vigilancia",null,null,0,0]
[null,"G511050201","Dietas",null,null,0,0]
[null,"G511050202","Gastos de Sesión",null,null,0,0]
[null,"G511050203","Gastos de Capacitación Directivos",null,null,0,0]
[null,"G511050204","Gastos de Viajes",null,null,{"$f":"E261-D261","v":0},0]
[null,"G511050205","Gastos de Representación",null,null,0,0]
[null,"G5110503","Gastos del Órgano Electoral",null,null,0,0]
[null,"G511050301","Dietas",null,null,0,{"$f":"IFERROR((D264*100/E264)-100,0)","v":0}]
[null,"G511050302","Gastos de Sesión",null,null,0,0]
[null,"G511050303","Gastos de Capacitación Directivos",null,null,0,0]
[null,"G511050304","Gastos de Viajes",null,null,0,0]
[null,"G511050305","Gastos de Representación",null,null,0,0]
[null,"G5110504","Gastos de Comités",null,null,0,0]
[null,"G511050401","Dietas",null,null,0,0]
[null,"G511050402","Gastos de Sesión",null,null,0,0]
[null,"G511050403","Gastos de Capacitación Comités",null,null,0,0]
[null,"G511050404","Gastos de Viajes",null,null,0,0]
[null,"G511050405","Gastos de Representación",null,null,0,0]
[null,"G5110505","Gastos de AsambleA",null,null,0,0]
[null,"G511050501","Organización de Asambleas",null,null,0,0]
[null,"G511050502","Publicaciones y convocatorias",null,null,0,0]
[null,"G511050503","Otros gastos de Asambleas",null,null,0,0]
[null,"G5110506","Otros Gastos de Gobernabilidad",null,null,0,0]
[null,"G511050601","Otros Gastos de Gobernabilidad",null,null,0,0]
[null,"G512","Costos y Gastos por Actividades no Financieras",null,null,0,0]
[null,"G51201","Costo de Ventas",null,null,0,0]
[null,"G5120101","Costo de Ventas",null,null,0,0]
[null,"G512010101","Costo de Venta de bienes y servicios",null,null,0,0]
[null,"G51202","Gastos administrativos y Operativos",null,null,0,0]
[null,"G5120201","Gastos administrativos y Operativos",null,null,0,0]
[null,"G512020101","Gastos administrativos",null,null,0,0]
[null,"G512020102","Gastos Operativos",null,null,0,0]
[null,"G512020103","Previsiones por Mermas, Deterioro",null,null,0,0]
[null,"G512020104","Otros gastos",null,null,0,0]
[null,"G51203","Educación Cooperativa",null,null,0,0]
[null,"G5120301","Educación Cooperativa",null,null,0,0]
[null,"G512030101","Servicios de Formación y Capacitación (70%)",null,null,0,0]
[null,"G512030102","Servicios de Actividades sociales y recretativas (30%)",null,null,0,0]
[null,"G513","Otros Gastos y Pérdidas",null,null,0,0]
[null,"G51301","Pérdida en Operaciones Financieras",null,null,0,0]
[null,"G5130101","Pérdida en Operaciones Financieras",null,null,0,0]
[null,"G513010101","Pérdida por venta de inversiones",null,null,0,0]
[null,"G513010102","Pérdida por venta de cartera de Créditos",null,null,0,0]
[null,"G513010103","Otras pérdidas financieras",null,null,0,0]
[null,"G51302","Pérdida en venta de bienes",null,null,0,0]
[null,"G5130201","Pérdida en venta de bienes",null,null,0,0]
[null,"G513020101","Pérdida en venta de bienes adjudicados o Recibidos en Dación de Pago",null,null,0,0]
[null,"G51303","Gastos y Pérdidas eventuales",null,null,0,0]
[null,"G5130301","Gastos y Pérdidas eventuales",null,null,0,0]
[null,"G513030101","Créditos Liquidados por Incobrables",null,null,0,0]
[null,"G513030102","Intereses Devengados en ejercicios anteriores",null,null,0,0]
[null,"G52","Costos y Gastos no Operativos",null,null,0,0]
[null,"G521","Costos y Gastos no Operativos",null,null,0,0]
[null,"G52101","Costos y Gastos no Operativos",null,null,0,0]
[null,"G5210101","Costos y Gastos no Operativos",null,null,0,0]
[null,"G521010101","Pérdida en venta de activos fijos",null,null,0,0]
[null,"G521010102","Pérdida por Siniestros",null,null,0,0]
[null,"G521010103","Pérdida por robos",null,null,0,0]
[null,"G521010104","Gastos Extraordinarios",null,null,0,0]
[null,"G521010105","Pérdida por Diferencia de Cambio",null,null,0,0]
[null,"G5210102","Egresos por Actividades Especiales",null,null,0,0]
[null,"G521010201","Egresos por Actividades Especiales",null,null,0,0]

{"sheet":"Depositos Bancos Gs","index":23,"n_rows":20,"n_cols":7,"rows_kept":20,"cut":false,"hidden":false,"merged":[[1,1,1,6],[2,1,2,4]]}
[]
[null,"Concentración de Depósitos."]
[null,"DEPÓSITOS EN BANCOS. En Guaraníes.",null,null,null,"Fecha: ","dd/mm/aa"]
[null,"BANCOS","Cuenta Corriente","A la vista","Hasta 30 días de plazo","Mayores a 30 días","Monto total"]
[null,"BANCO 01",null,null,null,null,{"$f":"SUM(C5:F5)","v":0}]
[null,"BANCO 02",null,null,null,null,{"$f":"SUM(C6:F6)","v":0}]
[null,"BANCO 03",null,null,null,null,0]
[null,"BANCO 04",null,null,null,null,0]
[null,"BANCO 05",null,null,null,null,0]
[null,"BANCO 06",null,null,null,null,0]
[null,"BANCO 07",null,null,null,null,0]
[null,"BANCO 08",null,null,null,null,0]
[null,"BANCO 09",null,null,null,null,0]
[null,"BANCO 10",null,null,null,null,0]
[null,"BANCO 11",null,null,null,null,0]
[null,"BANCO 12",null,null,null,null,0]
[null,"BANCO 13",null,null,null,null,0]
[null,"BANCO 14",null,null,null,null,0]
[null,"BANCO 15",null,null,null,null,0]
[null,"TOTAL",{"$f":"SUM(C5:C19)","v":0},{"$f":"SUM(D5:D19)","v":0},0,0,{"$f":"SUM(G5:G19)","v":0}]

{"sheet":"Depositos Bancos Ext","index":24,"n_rows":22,"n_cols":7,"rows_kept":22,"cut":false,"hidden":false,"merged":[[1,1,1,6],[2,1,2,4]]}
[]
[null,"Concentración de Depósitos."]
[null,"DEPÓSITOS EN BANCOS. En moneda Extranjera.",null,null,null,"Fecha: ","dd/mm/aa"]
[null,"BANCOS","Cuenta Corriente","A la vista","Hasta 30 días de plazo","Mayores a 30 días","Monto total"]
[null,"BANCO 01",null,null,null,null,{"$f":"SUM(C5:F5)","v":0}]
[null,"BANCO 02",null,null,null,null,{"$f":"SUM(C6:F6)","v":0}]
[null,"BANCO 03",null,null,null,null,0]
[null,"BANCO 04",null,null,null,null,0]
[null,"BANCO 05",null,null,null,null,0]
[null,"BANCO 06",null,null,null,null,0]
[null,"BANCO 07",null,null,null,null,0]
[null,"BANCO 08",null,null,null,null,0]
[null,"BANCO 09",null,null,null,null,0]
[null,"BANCO 10",null,null,null,null,0]
[null,"BANCO 11",null,null,null,null,0]
[null,"BANCO 12",null,null,null,null,0]
[null,"BANCO 13",null,null,null,null,0]
[null,"BANCO 14",null,null,null,null,0]
[null,"BANCO 15",null,null,null,null,0]
[null,"TOTAL",{"$f":"SUM(C5:C19)","v":0},{"$f":"SUM(D5:D19)","v":0},0,0,{"$f":"SUM(G5:G19)","v":0}]
[]
[null,"TIPO DE CAMBIO"]

{"sheet":"Depositos Financieras Gs","index":25,"n_rows":20,"n_cols":6,"rows_kept":20,"cut":false,"hidden":false,"merged":[[2,1,2,3],[1,1,1,5]]}
[]
[null,"Concentración de Depósitos."]
[null,"DEPÓSITOS EN FINANCIERAS. En Guaraníes.",null,null,"Fecha: ","dd/mm/aa"]
[null,"FINANCIERA","A la vista","Hasta 30 días de plazo","Mayores a 30 días","Monto total"]
[null,"FINANCIERA 01",null,null,null,{"$f":"SUM(C5:E5)","v":0}]
[null,"FINANCIERA 02",null,null,null,0]
[null,"FINANCIERA 03",null,null,null,0]
[null,"FINANCIERA 04",null,null,null,0]
[null,"FINANCIERA 05",null,null,null,0]
[null,"FINANCIERA 06",null,null,null,0]
[null,"FINANCIERA 07",null,null,null,0]
[null,"FINANCIERA 08",null,null,null,0]
[null,"FINANCIERA 09",null,null,null,0]
[null,"FINANCIERA 10",null,null,null,0]
[null,"FINANCIERA 11",null,null,null,0]
[null,"FINANCIERA 12",null,null,null,0]
[null,"FINANCIERA 13",null,null,null,0]
[null,"FINANCIERA 14",null,null,null,0]
[null,"FINANCIERA 15",null,null,null,0]
[null,"TOTAL",{"$f":"SUM(C5:C19)","v":0},{"$f":"SUM(D5:D19)","v":0},0,{"$f":"SUM(F5:F19)","v":0}]

{"sheet":"Depositos Financieras Ext","index":26,"n_rows":22,"n_cols":6,"rows_kept":22,"cut":false,"hidden":false,"merged":[[1,1,1,5],[2,1,2,3]]}
[]
[null,"Concentración de Depósitos."]
[null,"DEPÓSITOS EN FINANCIERAS. En Moneda Extranjera.",null,null,"Fecha:"," dd/mm/aa"]
[null,"BANCOS","A la vista","Hasta 30 días de plazo","Mayores a 30 días","Monto total"]
[null,"FINANCIERA 01",null,null,null,{"$f":"SUM(C5:E5)","v":0}]
[null,"FINANCIERA 02",null,null,null,0]
[null,"FINANCIERA 03",null,null,null,0]
[null,"FINANCIERA 04",null,null,null,{"$f":"SUM(D8:E8)","v":0}]
[null,"FINANCIERA 05",null,null,null,0]
[null,"FINANCIERA 06",null,null,null,0]
[null,"FINANCIERA 07",null,null,null,0]
[null,"FINANCIERA 08",null,null,null,0]
[null,"FINANCIERA 09",null,null,null,0]
[null,"FINANCIERA 10",null,null,null,0]
[null,"FINANCIERA 11",null,null,null,0]
[null,"FINANCIERA 12",null,null,null,0]
[null,"FINANCIERA 13",null,null,null,0]
[null,"FINANCIERA 14",null,null,null,0]
[null,"FINANCIERA 15",null,null,null,0]
[null,"TOTAL",{"$f":"SUM(C5:C19)","v":0},{"$f":"SUM(D5:D19)","v":0},0,{"$f":"SUM(F5:F19)","v":0}]
[]
[null,"TIPO DE CAMBIO"]

{"sheet":"Depositos Coop. Gs","index":27,"n_rows":37,"n_cols":6,"rows_kept":37,"cut":false,"hidden":false,"merged":[[31,1,31,4],[33,1,33,4],[36,1,36,4],[1,1,1,5],[2,1,2,3],[28,1,28,4]]}
[]
[null,"Concentración de Depósitos."]
[null,"Concentración de Depósitos en Cooperativas. En Guaraníes.",null,null,"Fecha: ","dd/mm/aa"]
[null,"CUENTAS EN COOPERATIVAS","A la vista","Hasta 30 días de plazo","Mayores a 30 días","Monto total"]
[null,"COOPERATIVA 01",null,null,null,{"$f":"C5+D5+E5","v":0}]
[null,"COOPERATIVA 02",null,null,null,{"$f":"C6+D6+E6","v":0}]
[null,"COOPERATIVA 03",null,null,null,0]
[null,"COOPERATIVA 04",null,null,null,0]
[null,"COOPERATIVA 05",null,null,null,0]
[null,"COOPERATIVA 06",null,null,null,0]
[null,"COOPERATIVA 07",null,null,null,0]
[null,"COOPERATIVA 08",null,null,null,0]
[null,"COOPERATIVA 09",null,null,null,0]
[null,"COOPERATIVA 10",null,null,null,0]
[null,"COOPERATIVA 11",null,null,null,0]
[null,"COOPERATIVA 12",null,null,null,0]
[null,"COOPERATIVA 13",null,null,null,0]
[null,"COOPERATIVA 14",null,null,null,0]
[null,"COOPERATIVA 15",null,null,null,0]
[null,"COOPERATIVA 16",null,null,null,0]
[null,"COOPERATIVA 17",null,null,null,0]
[null,"COOPERATIVA 18",null,null,null,0]
[null,"COOPERATIVA 19",null,null,null,0]
[null,"COOPERATIVA 20",null,null,null,0]
[null,"TOTAL",{"$f":"SUM(C5:C24)","v":0},{"$f":"SUM(D5:D24)","v":0},0,{"$f":"SUM(F5:F24)","v":0}]
[]
[]
[]
[null,"Mayor monto depositado en un banco, financiera o cooperativa"]
[]
[]
[null,"Depósitos a la vista e Inversiones con plazos hasta 30 días en las Cooperativas Tipo  A, Centrales Cooperativas."]
[]
[null,"Inversiones de plazos mayor a 30 días en Cooperativas Tipo A y Centrales Cooperativas"]
[]
[]
[null,"Inversiones con plazos hasta 30 días en Cooeperativas Tipo B y Tipo C"]

{"sheet":"Depositos Coop. Ext","index":28,"n_rows":27,"n_cols":6,"rows_kept":27,"cut":false,"hidden":false,"merged":[[1,1,1,5],[2,1,2,3]]}
[]
[null,"Concentración de Depósitos."]
[null,"Concentración de Depósitos en Cooperativas. En moneda Extranjera.",null,null,"Fecha: ","dd/mm/aa"]
[null,"CUENTAS EN COOPERATIVAS","A la vista","Hasta 30 días de plazo","Mayores a 30 días","Monto total"]
[null,"COOPERATIVA 01",null,null,null,{"$f":"C5+D5+E5","v":0}]
[null,"COOPERATIVA 02",null,null,null,{"$f":"C6+D6+E6","v":0}]
[null,"COOPERATIVA 03",null,null,null,0]
[null,"COOPERATIVA 04",null,null,null,0]
[null,"COOPERATIVA 05",null,null,null,0]
[null,"COOPERATIVA 06",null,null,null,0]
[null,"COOPERATIVA 07",null,null,null,0]
[null,"COOPERATIVA 08",null,null,null,0]
[null,"COOPERATIVA 09",null,null,null,0]
[null,"COOPERATIVA 10",null,null,null,0]
[null,"COOPERATIVA 11",null,null,null,0]
[null,"COOPERATIVA 12",null,null,null,0]
[null,"COOPERATIVA 13",null,null,null,0]
[null,"COOPERATIVA 14",null,null,null,0]
[null,"COOPERATIVA 15",null,null,null,0]
[null,"COOPERATIVA 16",null,null,null,0]
[null,"COOPERATIVA 17",null,null,null,0]
[null,"COOPERATIVA 18",null,null,null,0]
[null,"COOPERATIVA 19",null,null,null,0]
[null,"COOPERATIVA 20",null,null,null,0]
[null,"TOTAL",{"$f":"SUM(C5:C24)","v":0},{"$f":"SUM(D5:D24)","v":0},0,{"$f":"SUM(F5:F24)","v":0}]
[]
[null,"TIPO DE CAMBIO"]

{"sheet":"Depositos Centrales Gs","index":29,"n_rows":20,"n_cols":6,"rows_kept":20,"cut":false,"hidden":false,"merged":[[1,1,1,5],[2,1,2,3],[19,2,19,4]]}
[]
[null,"Concentración de Depósitos."]
[null,"Concentración de Depósitos en Centrales. En Guaraníes.",null,null,"Fecha: ","dd/mm/aa"]
[null,"DENOMINACIÓN","A la vista","Hasta 30 días de plazo","Mayores a 30 días","Monto total"]
[null,"COOPERATIVA 01",null,null,null,{"$f":"C5+D5+E5","v":0}]
[null,"COOPERATIVA 02",null,null,null,{"$f":"C6+D6+E6","v":0}]
[null,"COOPERATIVA 03",null,null,null,0]
[null,"COOPERATIVA 04",null,null,null,0]
[null,"COOPERATIVA 05",null,null,null,0]
[null,"COOPERATIVA 06",null,null,null,0]
[null,"COOPERATIVA 07",null,null,null,0]
[null,"COOPERATIVA 08",null,null,null,0]
[null,"COOPERATIVA 09",null,null,null,0]
[null,"COOPERATIVA 10",null,null,null,0]
[null,"TOTAL",{"$f":"SUM(C5:C14)","v":0},{"$f":"SUM(D5:D14)","v":0},0,{"$f":"C15+D15+E15","v":0}]
[]
[]
[]
[]
[null,null,"Mayor monto depositado en una central o banco de propiedad cooperativa"]

{"sheet":"Depositos Centrales Ext","index":30,"n_rows":17,"n_cols":6,"rows_kept":17,"cut":false,"hidden":false,"merged":[[1,1,1,5],[2,1,2,3]]}
[]
[null,"Concentración de Depósitos."]
[null,"Concentración de Depósitos en Centrales. En moneda Extranjera.",null,null,"Fecha: ","dd/mm/aa"]
[null,"Denominación","A la vista","Hasta 30 días de plazo","Mayores a 30 días","Monto total"]
[null,"COOPERATIVA 01",null,null,null,{"$f":"C5+D5+E5","v":0}]
[null,"COOPERATIVA 02",null,null,null,{"$f":"C6+D6+E6","v":0}]
[null,"COOPERATIVA 03",null,null,null,0]
[null,"COOPERATIVA 04",null,null,null,0]
[null,"COOPERATIVA 05",null,null,null,0]
[null,"COOPERATIVA 06",null,null,null,0]
[null,"COOPERATIVA 07",null,null,null,0]
[null,"COOPERATIVA 08",null,null,null,0]
[null,"COOPERATIVA 09",null,null,null,0]
[null,"COOPERATIVA 10",null,null,null,0]
[null,"TOTAL",{"$f":"SUM(C5:C14)","v":0},{"$f":"SUM(D5:D14)","v":0},0,{"$f":"C15+D15+E15","v":0}]
[]
[null,"TIPO DE CAMBIO"]

{"sheet":"Clasificación de Créditos","index":31,"n_rows":13,"n_cols":4,"rows_kept":13,"cut":false,"hidden":false,"merged":[[2,1,2,2],[10,1,10,2],[3,1,3,2],[4,1,4,2],[5,1,5,2],[6,1,6,2],[7,1,7,2],[8,1,8,2]]}
[]
[]
[null,"CLASIFICACIÓN DE CRÉDITOS SEGÚN GARANTÍA",null,"Fecha: DD/MM/AA"]
[null,"CARTERA DE CREDITOS",null,"Monto"]
[null,"Préstamos con caución de ahorros en la entidad"]
[null,"Prendarias"]
[null,"Préstamos con garantía hipotecaria"]
[null,"Créditos Garantizados con Titulos Valores del BCP y/o Gob. Nacional"]
[null,"Créditos Garantizados con colocaciones en el BCP y titulos valores del Gobierno Nacional"]
[null,"Créditos garantizados en su totalidad por Cooperativas Tipo A y Centrales Cooperativas, Bancos y Financieras"]
[null,"Contingencias"]
[null,"Créditos sin garantías"]
[null,"Cartera total de créditos",null,{"$f":"SUM(D5:D12)","v":0}]

{"sheet":"Modificación de términos","index":32,"n_rows":9,"n_cols":4,"rows_kept":9,"cut":false,"hidden":false,"merged":[]}
[]
[]
[null,"MODIFICACIÓN DE TÉRMINOS Y CONDICIONES CREDITICIAS",null,"Fecha: DD/MM/AA"]
[null,"CARTERA DE CREDITOS","Cantidad","Monto"]
[null,"Cartera de créditos con prórrogas"]
[null,"Cartera de créditos con ampliación de plazos"]
[null,"Cartera de créditos consolidados"]
[null,"Cartera de créditos refinanciados"]
[null,"Total",{"$f":"C5+C6+C7+C8","v":0},{"$f":"D5+D6+D7+D8","v":0}]

{"sheet":"Socios","index":33,"n_rows":11,"n_cols":4,"rows_kept":11,"cut":false,"hidden":false,"merged":[[2,1,2,3]]}
[]
[]
[null,"Datos sobre socios en la Cooperativa"]
[null,"Descripción","Ejercicio Anterior","Ejercicio Actual"]
[null,"Socios al inicio del ejercicio"]
[null,"Socios adminitidos durante el ejercicio"]
[null,"Socios fallecidos durante el ejercicio"]
[null,"Socios expulsados durante el ejercicio"]
[null,"Socios excluidos durante el ejercicio"]
[null,"Socios renunciantes durante el ejercicio"]
[null,"Socios al cierre del ejercicio",{"$f":"C5+C6-C7-C8-C9-C10","v":0},{"$f":"D5+D6-D7-D8-D9-D10","v":0}]

{"sheet":"Activos y Pasivos en ME","index":34,"n_rows":10,"n_cols":5,"rows_kept":10,"cut":false,"hidden":false,"merged":[[2,1,2,2]]}
[]
[]
[null,"ACTIVOS Y PASIVOS EN MONEDAS EXTRANJERAS",null,null,"Fecha: DD/MM/AA"]
[null,null,"Monto","Moneda","Cotización"]
[null,"TOTAL DE ACTIVOS",null,"USD"]
[null,"TOTAL DE ACTIVOS"]
[null,"TOTAL DE ACTIVOS"]
[null,"TOTAL DE PASIVOS"]
[null,"TOTAL DE PASIVOS"]
[null,"TOTAL DE PASIVOS"]

{"sheet":"Patrimonio Efectivo","index":35,"n_rows":36,"n_cols":4,"rows_kept":36,"cut":false,"hidden":false,"merged":[]}
[]
[]
[null,null,"Ejercicio Anterior","Ejercicio Actual"]
[null,"CAPITAL PRIMARIO",{"$f":"SUM(C5:C10)","v":0},{"$f":"SUM(D5:D10)","v":0}]
[3110101,"Capital Social",{"$f":"'Balance General'!D436","v":0},{"$f":"'Balance General'!E436","v":0}]
[312010104,"Donaciones de Capital",{"$f":"'Balance General'!D448","v":0},{"$f":"'Balance General'!E448","v":0}]
[312010101,"Reserva Legal",{"$f":"'Balance General'!D445","v":0},{"$f":"'Balance General'!E445","v":0}]
[312010102,"Reserva para Adquisición Activo Fijo",{"$f":"'Balance General'!D446","v":0},{"$f":"'Balance General'!E446","v":0}]
[312010103,"Otras Reservas y Fondos Irrepartibles",{"$f":"'Balance General'!D447","v":0},{"$f":"'Balance General'!E447","v":0}]
[312010106,"Reserva Institucional",{"$f":"'Balance General'!D450","v":0},{"$f":"'Balance General'!E450","v":0}]
[null,"CAPITAL SECUNDARIO",{"$f":"SUM(C12:C13)","v":0},{"$f":"SUM(D12:D13)","v":0}]
[null,"Excedentes del Ejercicio Anterior por Capitalizar",0,0]
[312020101,"Reserva de Revalúo Irrepartible",{"$f":"'Balance General'!D453","v":0},{"$f":"'Balance General'!E454","v":0}]
[null,"DEDUCCIONES",{"$f":"SUM(C15:C18)","v":0},{"$f":"SUM(D15:D18)","v":0}]
[3130102,"Pérdidas acumuladas de ejercicios anteriores",{"$f":"'Balance General'!D463+'Balance General'!D464","v":0},{"$f":"'Balance General'!E463+'Balance General'!E464","v":0}]
[313010102,"(Pérdidas del Ejercicio)",{"$f":"'Balance General'!D460","v":0},{"$f":"'Balance General'!E460","v":0}]
[null,"Aportes deducibles de previsiones",null,{"$f":"SUM('Prev. 1.1'!E7:E11)","v":0}]
[null,"Déficit de previsiones sobre créditos y otros activos",{"$f":"C31+C32","v":0},{"$f":"D31+D32","v":0}]
[null,"INCREMENTOS",{"$f":"C20","v":0},{"$f":"D20","v":0}]
[null,"Exceso de previsiones sobre créditos y otros activos",{"$f":"C35+C36","v":0},{"$f":"D35+D36","v":0}]
[null,"PATRIMONIO EFECTIVO",{"$f":"SUM(C4+C11+C14+C19)","v":0},{"$f":"SUM(D4+D11+D14+D19)","v":0}]
[]
[null,"Previsiones constituidas sobre créditos",{"$f":"'Balance General'!D53+'Balance General'!D76+'Balance General'!D86+'Balance General'!D168+'Balance General'!D191+'Balance General'!D201","v":0},{"$f":"ABS('Balance General'!E53+'Balance General'!E76+'Balance General'!E86+'Balance General'!E168+'Balance General'!E191+'Balance General'!E201)","v":0}]
[null,"Previsiones requeridas sobre créditos",null,{"$f":"'Prev. 1.1'!I12","v":0}]
[null,null,null,40113323360]
[]
[null,"Previsiones constituidas sobre otros activos de riesgo",{"$f":"ABS('Balance General'!D19+'Balance General'!D30+'Balance General'!D40+'Balance General'!D108+'Balance General'!D121+'Balance General'!D130+'Balance General'!D136+'Balance General'!D155+'Balance General'!D218+'Balance General'!D226+'Balance General'!D236+'Balance General'!D259+'Balance General'!D282)","v":0},{"$f":"ABS('Balance General'!E19+'Balance General'!E30+'Balance General'!E40+'Balance General'!E108+'Balance General'!E121+'Balance General'!E130+'Balance General'!E136+'Balance General'!E155+'Balance General'!E218+'Balance General'!E226+'Balance General'!E236+'Balance General'!E259+'Balance General'!E282)","v":0}]
[null,"Previsiones requeridas sobre otros activos de riesgo",null,{"$f":"'Prev. Depositos Vista'!F11+'Prev. Depositos Plazo'!F11+'Prev sobre Bienes adjudicados'!G8+'Prev s Otros Activos Riesgos'!F9+'Prev s Otras Inversiones'!F9","v":0}]
[]
[]
[null,"Déficit de previsiones sobre créditos",0,{"$f":"IF(D23-D24<=0,D23-D24,0)","v":0}]
[null,"Déficit de previsiones sobre otros activos",0,{"$f":"IF(D27-D28<=0,D27-D28,0)","v":0}]
[]
[]
[null,"Exceso de previsiones sobre créditos",null,{"$f":"IF(D23-D24>=0,D23-D24,0)","v":0}]
[null,"Exceso de previsiones sobre otros activos",0,{"$f":"IF(D27-D28>=0,D27-D28,0)","v":0}]

{"sheet":"Activos ponderados","index":36,"n_rows":37,"n_cols":6,"rows_kept":37,"cut":false,"hidden":false,"merged":[[1,0,1,4]]}
[]
["RIESGO DE PERDIDA DE ACTIVOS"]
["Código","Cuenta","% Ponderación","Montos","Ponderado"]
[11101,"Caja",0,{"$f":"'Balance General'!E9","v":0},{"$f":"C4*D4","v":0}]
[111030104,"Letras de Regulación Monetaria",0,{"$f":"'Balance General'!E25","v":0},{"$f":"C5*D5","v":0}]
[111040104,"Letras de Regulación Monetaria",0,{"$f":"'Balance General'!E36","v":0},{"$f":"C6*D6","v":0}]
[121010104,"Letras de Regulación Monetaria",0,{"$f":"'Balance General'!E151","v":0},0]
[111030102,"Valores Emitidos por el Sector Público",0,{"$f":"'Balance General'!E23","v":0},0]
[111040102,"Valores Emitidos por el Sector Público",0,{"$f":"'Balance General'!E34","v":0},0]
[121010102,"Valores Emitidos por el Sector Público",0,{"$f":"'Balance General'!E149","v":0},0]
[111020102,"Depósitos a la Vista Bancos",0.2,{"$f":"'Balance General'!E16","v":0},0]
[111030101,"CDA Bancos del Pais",0.2,{"$f":"'Balance General'!E22","v":0},0]
[111030105,"Depósitos a Plazo Fijo Sector Cooperativo",0.2,{"$f":"'Balance General'!E26","v":0},0]
[111030106,"Depósitos a Plazo Fijo Sector Bancos",0.2,{"$f":"'Balance General'!E27","v":0},0]
[111030107,"Depósitos a Plazo Fijo Otras Inst Financieras",0.2,{"$f":"'Balance General'!E28","v":0},0]
["V010","Créditos garantizados en su totalidad con colocaciones en el Banco Central del Paraguay",0.2,{"$f":"'Clasificación de Créditos'!E8","v":0},0]
[111040102,"Valores Emitidos por el Sector Público",0.2,{"$f":"'Balance General'!E23","v":0},0]
["V006","Créditos garantizados en su totalidad por Cooperativas Tipo A y Centrales Cooperativas, Bancos y Financieras",0.2,{"$f":"'Clasificación de Créditos'!D10","v":0},0]
[111020103,"Bancos Cta Cte",0.2,{"$f":"'Balance General'!E17","v":0},0]
[111020104,"Depósitos a la Vista Otras Inst Financieras",0.2,{"$f":"'Balance General'!E18","v":0},0]
[111030108,"Otros Valores con opción de conversión en efectivo inmediatamente",0.2,{"$f":"'Balance General'!E24","v":0},0]
[null,"Depósitos a la vista e Inversiones con plazo hasta 30 días en las Cooperativas Tipo  A, Centrales Cooperativas.",0.2,0,0]
[111040101,"CDA Bancos del Pais",0.5,{"$f":"'Balance General'!E33","v":0},0]
[null,"Inversiones de plazo mayor a 30 días en las Coop. Tipo  A y Centrales Coop.",0.5,{"$f":"'Depositos Coop. Gs'!F34","v":0},0]
[null,"Inversiones con plazos hasta 30 días en Cooperativas Tipo B y C.",0.5,{"$f":"'Depositos Coop. Gs'!F32","v":0},0]
[111040106,"Depósitos a Plazo Fijo Sector Bancos",0.5,{"$f":"'Balance General'!E38","v":0},0]
[111040107,"Depósitos a Plazo Fijo Otras Inst Financieras",0.5,{"$f":"'Balance General'!E39","v":0},0]
[121010101,"CDA Bancos del Pais",0.5,{"$f":"'Balance General'!E148","v":0},0]
[121010106,"Depósitos a Plazo Fijo Sector Bancos",0.5,{"$f":"'Balance General'!E153","v":0},0]
[121010107,"Depósitos a Plazo Fijo Otras Inst Financieras",0.5,{"$f":"'Balance General'!E154","v":0},0]
[null,"Préstamos con Garantía Hipotecaria",0.5,{"$f":"'Clasificación de Créditos'!D7","v":0},0]
[null,"Préstamos garantizados con caución de ahorros",0.5,{"$f":"'Clasificación de Créditos'!D5","v":0},0]
[null,"Cartera neta de créditos, excepto los ponderados con 20% y 50%.",1,{"$f":"Indicadores!D49-'Activos ponderados'!D32-'Activos ponderados'!D31-'Activos ponderados'!D18-'Activos ponderados'!D17","v":0},0]
[null,"El resto de los activos y contingentes",1,{"$f":"'Balance General'!E6-(SUM('Activos ponderados'!D4:D32))-(Indicadores!D49-'Activos ponderados'!D32-'Activos ponderados'!D31-'Activos ponderados'!D18-'Activos ponderados'!D16)","v":0},0]
[null,"TOTAL DE RIESGO DE PERDIDAS DE ACTIVOS",null,{"$f":"SUM(D4:D34)","v":0},{"$f":"SUM(E4:E34)","v":0}]
[null,null,null,null,2250217207006.3999,"AT"]
[null,null,null,null,{"$f":"E35-E36","v":-2250217207006.3999},"Dif."]

{"sheet":"Balance General","index":37,"n_rows":888,"n_cols":10,"rows_kept":888,"cut":false,"hidden":false,"merged":[[2,1,2,4],[3,1,3,3]]}
[null,null,null,null,null,null,null,"Codigo","Valor - Sin separador de miles","TXT"]
[]
[null,"BALANCE GENERAL"]
[null,"Ejercicio ",null,null,"AÑO"]
[null,"Cód. Cuenta","Descripción de Concepto","Ejercicio Anterior","Ejercicio Actual"]
[null,1,"ACTIVO",{"$f":"D7+D144","v":0},{"$f":"E7+E144","v":0}]
[null,11,"REALIZABLE A CORTO PLAZO",{"$f":"D8+D41+D122+D131","v":0},{"$f":"E8+E41+E122+E131","v":0}]
[null,111,"DISPONIBILIDADES",{"$f":"D9+D13+D20+D31","v":0},{"$f":"E9+E13+E20+E31","v":0}]
[null,11101,"Caja",{"$f":"D10","v":0},{"$f":"E10","v":0}]
[null,1110101,"Caja",{"$f":"D11+D12","v":0},{"$f":"E11+E12","v":0}]
[null,111010101,"Efectivo y Cheques a Depositar"]
[null,111010102,"Fondos en la Empresa"]
[null,11102,"Depósitos a la Vista",{"$f":"D14","v":0},{"$f":"E14","v":0}]
[null,1110201,"Depósitos a la Vista",{"$f":"D15+D16+D17+D18+D19","v":0},{"$f":"E15+E16+E17+E18+E19","v":0}]
[null,111020101,"Depósitos a la Vista Sector Cooperativo"]
[null,111020102,"Depósitos a la Vista Bancos",null,null,null,"Prev. requeridas para cartera de crédito","V001",null,{"$f":"H16&\";\"&I16","v":"V001;"}]
[null,111020103,"Bancos Cta Cte",null,null,null,"Prev. requeridas para otros activos de riesgo","V002",null,"V002;"]
[null,111020104,"Depósitos a la Vista Otras Inst Financieras",null,null,null,"Aport. de capital integrado deducibles de las prev. para cartera de créd.","V003",null,"V003;"]
[null,111020105,"(Previsiones Acumuladas para Depósitos a la Vista)",null,null,null,"Déficit de prev. para cartera de créditos y otros activos de riesgo","V004",null,"V004;"]
[null,11103,"Depósitos a Plazo y Valores Financ con venc de 1 a 30 Días",{"$f":"D21","v":0},{"$f":"E21","v":0},null,"Exceso de prev. para cartera de créditos y otros activos de riesgo","V005",null,"V005;"]
[null,1110301,"Depósitos a Plazo y Valores Financ con venc de 1 a 30 Días",{"$f":"D22+D23+D24+D25+D26+D27+D28+D29+D30","v":0},{"$f":"E22+E23+E24+E25+E26+E27+E28+E29+E30","v":0},null,"Créd. garantizados por las Cooperativas Tipo A y Centrales Coop, Bancos y Fras.","V006",null,"V006;"]
[null,111030101,"CDA Bancos del Pais",null,null,null,"Depósitos a la vista e Inversiones con plazo hasta 30 días en las Cooperativas Tipo  A, Centrales Cooperativas.","V007",null,{"$f":"H22&\";\"&I22","v":"V007;"}]
[null,111030102,"Valores Emitidos por el Sector Público",null,null,null,"Inversiones de plazo mayor a 30 días en las Coop. Tipo  A y Centrales Coop.","V008",null,"V008;"]
[null,111030103,"Valores Emitidos por el Sector Privado",null,null,null,"Inversiones con plazos hasta 30 días en Cooperativas Tipo B y C.","V009",null,"V009;"]
[null,111030104,"Letras de Regulación Monetaria",null,null,null,"Créditos garantizados en su totalidad con colocaciones en BCP","V010",null,"V010;"]
[null,111030105,"Depósitos a Plazo Fijo Sector Cooperativo",null,null,null,"Créditos con garantía hipotecaria y créditos garantizados con caución de ahorros","V011",null,"V011;"]
[null,111030106,"Depósitos a Plazo Fijo Sector Bancos",null,null,null,"Otras Disponibilidades realizables a corto plazo","V012",null,"V012;"]
[null,111030107,"Depósitos a Plazo Fijo Otras Inst Financieras",null,null,null,"Número de socios al cierre del ejercicio anterior","V013",null,"V013;"]
[null,111030108,"Otros Valores con opción de conversión en efectivo inmediatamente",null,null,null,"Número de socios (al cierre de mes)","V014",null,"V014;"]
[null,111030109,"(Prev Acum Sobre Dep y Valores Financ con vencde 1 a 30 Días)",null,null,null,"Mayor monto depositado en bancos, financieras o cooperativas.","V015",null,"V015;"]
[null,11104,"Inversiones Temporales",{"$f":"D32","v":0},{"$f":"E32","v":0},null,"Mayor monto depositado en Central Cooperativa o Banco de propiedad cooperativa","V016",null,"V016;"]
[null,1110401,"Inversiones Temporales",{"$f":"D33+D34+D35+D36+D37+D38+D39+D40","v":0},{"$f":"E33+E34+E35+E36+E37+E38+E39+E40","v":0},null,"Mayor monto de crédito otorgado a un socio por la cooperativa","V017",null,"V017;"]
[null,111040101,"CDA Bancos del Pais",null,null,null,"Los 10 Mayores Deudores","V018",null,"V018;"]
[null,111040102,"Valores Emitidos por el Sector Público",null,null,null,"Los 50 Mayores Deudores","V019",null,"V019;"]
[null,111040103,"Valores Emitidos por el Sector Privado",null,null,null,"Los 100 Mayores Deudores","V020",null,"V020;"]
[null,111040104,"Letras de Regulación Monetaria",null,null,null,"Mayor Monto Depositado por un Socio en la Cooperativa","V021",null,"V021;"]
[null,111040105,"Depósitos a Plazo Fijo Sector Cooperativo",null,null,null,"Los 10 Mayores Ahorristas.","V022",null,"V022;"]
[null,111040106,"Depósitos a Plazo Fijo Sector Bancos",null,null,null,"Los 50 Mayores Ahorristas","V023",null,"V023;"]
[null,111040107,"Depósitos a Plazo Fijo Otras Inst Financieras",null,null,null,"Los 100 Mayores Ahorristas","V024",null,"V024;"]
[null,111040108,"(Previsiones Acum Sobre Inversiones Temporales)",null,null,null,"Excedente del Ejercicio Anterior por Capitalizar","V025",null,"V025;"]
[null,112,"Créditos",{"$f":"D42+D65+D94+D98+D109","v":0},{"$f":"E42+E65+E94+E98+E109","v":0},null,"Cartera de Crédito con Mora Cero","V026",null,"V026;"]
[null,11201,"Créditos al Día",{"$f":"D43+D53+D55+D58+D63","v":0},{"$f":"E43+E53+E55+E58+E63","v":0},null,"Cartera de Créditos con Riesgo Normal","V027",null,"V027;"]
[null,1120101,"Normales",{"$f":"D44+D45+D46+D47+D48+D49+D50+D51+D52","v":0},{"$f":"E44+E45+E46+E47+E48+E49+E50+E51+E52","v":0},null,"Cartera de Créditos con Riesgo Aceptable","V028",null,"V028;"]
[null,112010101,"Amortizables",null,null,null,"Cartera de Créditos con Riesgo Potencial","V029",null,"V029;"]
[null,112010102,"Plazo Único",null,null,null,"Cartera de Créditos con Riesgo Significativo","V030",null,"V030;"]
[null,112010103,"Descuento de Documentos",null,null,null,"Cartera de Créditos con Riesgo Real","V031",null,"V031;"]
[null,112010104,"Préstamos a Cooperativas y otras entidades sin fines de Lucro",null,null,null,"Cartera de Créditos con Alto Riesgo","V032",null,"V032;"]
[null,112010105,"Préstamos Vinculados",null,null,null,"Cartera de Créditos Irrecuperables","V033",null,"V033;"]
[null,112010106,"Préstamos a Ex Socios Pendiente de Cobro",null,null,null,"Previsiones sobre Cartera de Créditos con Riesgo Normal","V034",null,"V034;"]
[null,112010107,"Préstamos Judicializados",null,null,null,"Previsiones sobre Cartera de Créditos con Riesgo Aceptable","V035",null,"V035;"]
[null,112010108,"Préstamos Refinanciados",null,null,null,"Previsiones sobre Cartera de Créditos con Riesgo Potencial","V036",null,"V036;"]
[null,112010109,"Préstamos Refinanciados - Vinculados",null,null,null,"Previsiones sobre Cartera de Créditos con Riesgo Significativo","V037",null,"V037;"]
[null,1120102,"Previsiones",{"$f":"D54","v":0},{"$f":"E54","v":0},null,"Previsiones sobre Cartera de Créditos con Riesgo Real","V038",null,"V038;"]
[null,112010201,"(Previsión para Préstamos a Ex socios, Judicializados y Refinanciados)",null,null,null,"Previsiones sobre Cartera de Créditos con Alto Riesgo","V039",null,"V039;"]
[null,1120103,"Tarjetas de Crédito",{"$f":"D56+D57","v":0},{"$f":"E56+E57","v":0},null,"Previsiones sobre Cartera de Créditos Irrecuperables","V040",null,"V040;"]
[null,112010301,"Créditos con Tarjetas de Crédito",null,null,null,"Cartera de créditos Reestructurados","V041",null,"V041;"]
[null,112010302,"Créditos - Vinculados",null,null,null,"Activos en Moneda Extranjera","V042",null,"V042;"]
[null,1120104,"Vivienda con Garantía Hipotecaria",{"$f":"D59+D60+D61+D62","v":0},{"$f":"E59+E60+E61+E62","v":0},null,"Pasivos en Moneda Extranjera","V043",null,"V043;"]
[null,112010401,"Créditos para compra de Vivienda",null,null,null,"Cantidad de socios que poseen créditos","V044",null,"V044;"]
[null,112010402,"Créditos para remodelación o ampliación de Vivienda",null,null,null,"Cantidad de socios que poseen ahorros","V045",null,"V045;"]
[null,112010403,"Créditos para compra de Vivienda - Vinculados",null,null,null,"Cantidad de socios que poseen créditos y ahorros","V046",null,"V046;"]
[null,112010404,"Créditos para remodelación o ampliación de Vivienda - Vinculados",null,null,null,"Cartera de créditos con mora mayor a 60 días","V047",null,"V047;"]
[null,1120105,"Créditos Otorgados por la EIC",{"$f":"D64","v":0},{"$f":"E64","v":0},null,null,"A1",{"$f":"+E6","v":0},{"$f":"H63&\";\"&I63","v":"A1;0"}]
[null,112010501,"Créditos Otorgados por la EIC",null,null,null,null,"A11",0,{"$f":"H64&\";\"&I64","v":"A11;0"}]
[null,11202,"Créditos Vencidos",{"$f":"D66+D76+D78+D81+D86+D90","v":0},{"$f":"E66+E76+E78+E81+E86+E90","v":0},null,null,"A111",0,"A111;0"]
[null,1120201,"Normales",{"$f":"D67+D68+D69+D70+D71+D72+D73+D74+D75","v":0},{"$f":"E67+E68+E69+E70+E71+E72+E73+E74+E75","v":0},null,null,"A11101",0,"A11101;0"]
[null,112020101,"Amortizables",null,null,null,null,"A1110101",0,"A1110101;0"]
[null,112020102,"Plazo Único",null,null,null,null,"A111010101",0,"A111010101;0"]
[null,112020103,"Descuento de Documentos",null,null,null,null,"A111010102",0,"A111010102;0"]
[null,112020104,"Préstamos a Cooperativas y otras entidades sin fines de Lucro",null,null,null,null,"A11102",0,"A11102;0"]
[null,112020105,"Préstamos Vinculados",null,null,null,null,"A1110201",0,"A1110201;0"]
[null,112020106,"Préstamos a Ex Socios Pendiente de Cobro",null,null,null,null,"A111020101",0,"A111020101;0"]
[null,112020107,"Préstamos Judicializados",null,null,null,null,"A111020102",0,"A111020102;0"]
[null,112020108,"Préstamos Refinanciados",null,null,null,null,"A111020103",0,"A111020103;0"]
[null,112020109,"Préstamos Refinanciados - Vinculados",null,null,null,null,"A111020104",0,"A111020104;0"]
[null,1120202,"Previsiones",{"$f":"D77","v":0},{"$f":"E77","v":0},null,null,"A111020105",0,"A111020105;0"]
[null,112020201,"(Previsión para Préstamos a Ex socios, Judicializados y Refinanciados)",null,null,null,null,"A11103",0,"A11103;0"]
[null,1120203,"Tarjetas de Crédito",{"$f":"D79+D80","v":0},{"$f":"E79+E80","v":0},null,null,"A1110301",0,"A1110301;0"]
[null,112020301,"Créditos con Tarjetas de Crédito",null,null,null,null,"A111030101",0,"A111030101;0"]
[null,112020302,"Créditos - Vinculados",null,null,null,null,"A111030102",0,"A111030102;0"]
[null,1120204,"Vivienda con Garantía Hipotecaria",{"$f":"D82+D83+D84+D85","v":0},{"$f":"E82+E83+E84+E85","v":0},null,null,"A111030103",0,"A111030103;0"]
[null,112020401,"Créditos para compra de Vivienda",null,null,null,null,"A111030104",0,"A111030104;0"]
[null,112020402,"Créditos para remodelación o ampliación de Vivienda",null,null,null,null,"A111030105",0,"A111030105;0"]
[null,112020403,"Créditos para compra de Vivienda - Vinculados",null,null,null,null,"A111030106",0,"A111030106;0"]
[null,112020404,"Créditos para remodelación o ampliación de Vivienda - Vinculados",null,null,null,null,"A111030107",0,"A111030107;0"]
[null,1120205,"Previsiones",{"$f":"D87+D88+D89","v":0},{"$f":"E87+E88+E89","v":0},null,null,"A111030108",0,"A111030108;0"]
[null,112020501,"(Previsiones Acumuladas para Créditos)",null,null,null,null,"A111030109",0,"A111030109;0"]
[null,112020502,"(Previsiones Adicionales Acumuladas sobre Créditos)",null,null,null,null,"A11104",0,"A11104;0"]
[null,112020503,"(Previsiones Acumuladas Opcional para Coops Tipo C)",null,null,null,null,"A1110401",0,"A1110401;0"]
[null,1120206,"Créditos Otorgados por la EIC",{"$f":"D91+D92+D93","v":0},{"$f":"E91+E92+E93","v":0},null,null,"A111040101",0,"A111040101;0"]
[null,112020601,"Créditos Otorgados por la EIC",null,null,null,null,"A111040102",0,"A111040102;0"]
[null,112020602,"(Previsiones Acumuladas para Créditos)",null,null,null,null,"A111040103",0,"A111040103;0"]
[null,112020603,"(Previsiones Adicionales Acumuladas sobre Créditos)",null,null,null,null,"A111040104",0,"A111040104;0"]
[null,11203,"Intereses Devengados",{"$f":"D95","v":0},{"$f":"E95","v":0},null,null,"A111040105",0,"A111040105;0"]
[null,1120301,"Intereses Devengados",{"$f":"D96+D97","v":0},{"$f":"E96+E97","v":0},null,null,"A111040106",0,"A111040106;0"]
[null,112030101,"Intereses Devengados s/ Créditos",null,null,null,null,"A111040107",0,"A111040107;0"]
[null,112030102,"Intereses Devengados s/ Depósitos",null,null,null,null,"A111040108",0,"A111040108;0"]
[null,11204,"Cuentas por Cobrar",null,null,null,null,"A112",0,"A112;0"]
[null,1120401,"Cuentas por Cobrar",{"$f":"D100+D101+D102+D103+D104+D105+D106+D107+D108","v":0},{"$f":"E100+E101+E102+E103+E104+E105+E106+E107+E108","v":0},null,null,"A11201",0,"A11201;0"]
[null,112040101,"Comisiones por Cobrar por Créditos otorgados",null,null,null,null,"A1120101",0,"A1120101;0"]
[null,112040102,"Comisiones por Cobrar por Gestión de Cobranza",null,null,null,null,"A112010101",0,"A112010101;0"]
[null,112040103,"Comisiones por Emisión y Renovación de Tarjetas de Crédito",null,null,null,null,"A112010102",0,"A112010102;0"]
[null,112040104,"Comisiones por Cobrar por Otras Operaciones",null,null,null,null,"A112010103",0,"A112010103;0"]
[null,112040105,"Cheques Diferidos",null,null,null,null,"A112010104",0,"A112010104;0"]
[null,112040106,"Facturas por Venta de Bienes y Servicios",null,null,null,null,"A112010105",0,"A112010105;0"]
[null,112040107,"Documentos a Cobrar",null,null,null,null,"A112010106",0,"A112010106;0"]
[null,112040108,"Letras y Otros Documentos por Cobrar",null,null,null,null,"A112010107",0,"A112010107;0"]
[null,112040109,"(Previsiones acumuladas Cuentas por cobrar)",null,null,null,null,"A112010108",0,"A112010108;0"]
[null,11205,"Otros Créditos",{"$f":"D110","v":0},{"$f":"E110","v":0},null,null,"A112010109",0,"A112010109;0"]
[null,1120501,"Otros Créditos",{"$f":"D111+D112+D113+D114+D115+D116+D117+D118+D119+D120+D121","v":0},{"$f":"E111+E112+E113+E114+E115+E116+E117+E118+E119+E120+E121","v":0},null,null,"A1120102",0,"A1120102;0"]
[null,112050101,"Crédito Fiscal",null,null,null,null,"A112010201",0,"A112010201;0"]
[null,112050102,"Anticipos de Impuestos",null,null,null,null,"A1120103",0,"A1120103;0"]
[null,112050103,"Anticipos al Personal",null,null,null,null,"A112010301",0,"A112010301;0"]
[null,112050104,"Anticipos a Proveedores",null,null,null,null,"A112010302",0,"A112010302;0"]
[null,112050105,"Fondos entregados para gastos al personal",null,null,null,null,"A1120104",0,"A1120104;0"]
[null,112050106,"Anticipos de Gastos a directivos a rendir",null,null,null,null,"A112010401",0,"A112010401;0"]
[null,112050107,"Arrendamientos",null,null,null,null,"A112010402",0,"A112010402;0"]
[null,112050108,"Juicios en proceso",null,null,null,null,"A112010403",0,"A112010403;0"]
[null,112050109,"Fondos por Cobrar de apoyos gubernamentales",null,null,null,null,"A112010404",0,"A112010404;0"]
[null,112050110,"Otras cuentas por Cobrar",null,null,null,null,"A1120105",0,"A1120105;0"]
[null,112050111,"(Previsiones Acumuladas para Otros Créditos)",null,null,null,null,"A112010501",0,"A112010501;0"]
[null,113,"EXISTENCIAS",{"$f":"D123","v":0},{"$f":"E123","v":0},null,null,"A11202",0,"A11202;0"]
[null,11301,"Existencias",{"$f":"D124","v":0},{"$f":"E124","v":0},null,null,"A1120201",0,"A1120201;0"]
[null,1130101,"Existencias",{"$f":"D125+D126+D127+D128+D129+D130","v":0},{"$f":"E125+E126+E127+E128+E129+E130","v":0},null,null,"A112020101",0,"A112020101;0"]
[null,113010101,"Mercaderías",null,null,null,null,"A112020102",0,"A112020102;0"]
[null,113010102,"Insumos",null,null,null,null,"A112020103",0,"A112020103;0"]
[null,113010103,"Materia Prima",null,null,null,null,"A112020104",{"$f":"+E70","v":0},"A112020104;0"]
[null,113010104,"Producto en proceso",null,null,null,null,"A112020105",0,{"$f":"H128&\";\"&I128","v":"A112020105;0"}]
[null,113010105,"Producto Terminado",null,null,null,null,"A112020106",0,"A112020106;0"]
[null,113010106,"(Previsiones Acumuladas-Existencias)",null,null,null,null,"A112020107",0,"A112020107;0"]
[null,114,"OTROS ACTIVOS",{"$f":"D132+D137","v":0},{"$f":"E132+E137","v":0},null,null,"A112020108",0,"A112020108;0"]
[null,11401,"Diversos",{"$f":"D133","v":0},{"$f":"E133","v":0},null,null,"A112020109",0,"A112020109;0"]
[null,1140101,"Diversos",null,null,null,null,"A1120202",0,"A1120202;0"]
[null,114010101,"Transferencias Internas",null,null,null,null,"A112020201",0,"A112020201;0"]
[null,114010102,"Indemnizaciones Reclamadas por Siniestros",null,null,null,null,"A1120203",0,"A1120203;0"]
[null,114010103,"(Previsiones Acumuladas para Créd Diversos)",null,null,null,null,"A112020301",0,"A112020301;0"]
[null,11402,"Gastos Pagados por Adelantado",{"$f":"D138","v":0},{"$f":"E138","v":0},null,null,"A112020302",0,"A112020302;0"]
[null,1140201,"Gastos Pagados por Adelantado",{"$f":"D139+D140+D141+D142+D143","v":0},{"$f":"E139+E140+E141+E142+E143","v":0},null,null,"A1120204",0,"A1120204;0"]
[null,114020101,"Materiales e Insumos en Existencias",null,null,null,null,"A112020401",0,"A112020401;0"]
[null,114020102,"Seguros Pagados por Adelantado",null,null,null,null,"A112020402",0,"A112020402;0"]
[null,114020103,"Alquileres Pagados por Adelantado",null,null,null,null,"A112020403",0,"A112020403;0"]
[null,114020104,"Publicidad y Propaganda",null,null,null,null,"A112020404",0,"A112020404;0"]
[null,114020105,"Otros Gastos Pagados por Adelantado",null,null,null,null,"A1120205",0,"A1120205;0"]
[null,12,"REALIZABLE A LARGO PLAZO",{"$f":"D145+D156+D227+D237+D252","v":0},{"$f":"E145+E156+E227+E237+E252","v":0},null,null,"A112020501",0,"A112020501;0"]
[null,121,"INSTRUMENTOS FINANCIEROS",{"$f":"D146","v":0},{"$f":"E146","v":0},null,null,"A112020502",0,"A112020502;0"]
[null,12101,"Inversiones Temporales",{"$f":"D147","v":0},{"$f":"E147","v":0},null,null,"A112020503",0,"A112020503;0"]
[null,1210101,"Inversiones Temporales",{"$f":"D148+D149+D150+D151+D152+D153+D154+D155","v":0},{"$f":"E148+E149+E150+E151+E152+E153+E154+E155","v":0},null,null,"A1120206",0,"A1120206;0"]
[null,121010101,"CDA Bancos del Pais",null,null,null,null,"A112020601",0,"A112020601;0"]
[null,121010102,"Valores Emitidos por el Sector Público",null,null,null,null,"A112020602",0,"A112020602;0"]
[null,121010103,"Valores Emitidos por el Sector Privado",null,null,null,null,"A112020603",0,"A112020603;0"]
[null,121010104,"Letras de Regulación Monetaria",null,null,null,null,"A11203",0,"A11203;0"]
[null,121010105,"Depósitos a Plazo Fijo Sector Cooperativo",null,null,null,null,"A1120301",0,"A1120301;0"]
[null,121010106,"Depósitos a Plazo Fijo Sector Bancos",null,null,null,null,"A112030101",0,"A112030101;0"]
[null,121010107,"Depósitos a Plazo Fijo Otras Inst Financieras",null,null,null,null,"A112030102",0,"A112030102;0"]
[null,121010108,"(Previsiones Acum Sobre Inversiones Temporales)",null,null,null,null,"A11204",0,"A11204;0"]
[null,122,"CREDITOS",{"$f":"D157+D180+D209+D219","v":0},{"$f":"E157+E180+E209+E219","v":0},null,null,"A1120401",0,"A1120401;0"]
[null,12201,"Créditos al Día",{"$f":"D158+D168+D170+D173+D178","v":0},{"$f":"E158+E168+E170+E173+E178","v":0},null,null,"A112040101",0,"A112040101;0"]
[null,1220101,"Normales",{"$f":"D159+D160+D161+D162+D163+D164+D165+D166+D167","v":0},{"$f":"E159+E160+E161+E162+E163+E164+E165+E166+E167","v":0},null,null,"A112040102",0,"A112040102;0"]
[null,122010101,"Amortizables",null,null,null,null,"A112040103",0,"A112040103;0"]
[null,122010102,"Plazo Único",null,null,null,null,"A112040104",0,"A112040104;0"]
[null,122010103,"Descuento de Documentos",null,null,null,null,"A112040105",0,"A112040105;0"]
[null,122010104,"Préstamos a Cooperativas y otras entidades sin fines de Lucro",null,null,null,null,"A112040106",0,"A112040106;0"]
[null,122010105,"Préstamos Vinculados",null,null,null,null,"A112040107",0,"A112040107;0"]
[null,122010106,"Préstamos a Ex Socios Pendiente de Cobro",null,null,null,null,"A112040108",0,"A112040108;0"]
[null,122010107,"Préstamos Judicializados",null,null,null,null,"A112040109",0,"A112040109;0"]
[null,122010108,"Préstamos Refinanciados",null,null,null,null,"A11205",0,"A11205;0"]
[null,122010109,"Préstamos Refinanciados - Vinculados",null,null,null,null,"A1120501",0,"A1120501;0"]
[null,1220102,"Previsiones",{"$f":"D169","v":0},{"$f":"E169","v":0},null,null,"A112050101",0,"A112050101;0"]
[null,122010201,"(Previsión para Préstamos a Ex socios, Judicializados y Refinanciados)",null,null,null,null,"A112050102",0,"A112050102;0"]
[null,1220103,"Tarjetas de Crédito",{"$f":"D171+D172","v":0},{"$f":"E171+E172","v":0},null,null,"A112050103",0,"A112050103;0"]
[null,122010301,"Créditos con Tarjetas de Crédito",null,null,null,null,"A112050104",0,"A112050104;0"]
[null,122010302,"Créditos - Vinculados",null,null,null,null,"A112050105",0,"A112050105;0"]
[null,1220104,"Vivienda con Garantía Hipotecaria",{"$f":"D174+D175+D176+D177","v":0},{"$f":"E174+E175+E176+E177","v":0},null,null,"A112050106",0,"A112050106;0"]
[null,122010401,"Créditos para compra de Vivienda",null,null,null,null,"A112050107",0,"A112050107;0"]
[null,122010402,"Créditos para remodelación o ampliación de Vivienda",null,null,null,null,"A112050108",0,"A112050108;0"]
[null,122010403,"Créditos para compra de Vivienda - Vinculados",null,null,null,null,"A112050109",0,"A112050109;0"]
[null,122010404,"Créditos para remodelación o ampliación de Vivienda - Vinculados",null,null,null,null,"A112050110",0,"A112050110;0"]
[null,1220105,"Créditos Otorgados por la EIC",{"$f":"D179","v":0},{"$f":"E179","v":0},null,null,"A112050111",0,"A112050111;0"]
[null,122010501,"Créditos Otorgados por la EIC",null,null,null,null,"A113",0,"A113;0"]
[null,12202,"Créditos Vencidos",{"$f":"D181+D191+D193+D196+D201+D205","v":0},{"$f":"E181+E191+E193+E196+E201+E205","v":0},null,null,"A11301",0,"A11301;0"]
[null,1220201,"Normales",{"$f":"D182+D183+D184+D185+D186+D187+D188+D189+D190","v":0},{"$f":"E182+E183+E184+E185+E186+E187+E188+E189+E190","v":0},null,null,"A1130101",0,"A1130101;0"]
[null,122020101,"Amortizables",null,null,null,null,"A113010101",0,"A113010101;0"]
[null,122020102,"Plazo Único",null,null,null,null,"A113010102",0,"A113010102;0"]
[null,122020103,"Descuento de Documentos",null,null,null,null,"A113010103",0,"A113010103;0"]
[null,122020104,"Préstamos a Cooperativas y otras entidades sin fines de Lucro",null,null,null,null,"A113010104",0,"A113010104;0"]
[null,122020105,"Préstamos Vinculados",null,null,null,null,"A113010105",0,"A113010105;0"]
[null,122020106,"Préstamos a Ex Socios Pendiente de Cobro",null,null,null,null,"A113010106",0,"A113010106;0"]
[null,122020107,"Préstamos Judicializados",null,null,null,null,"A114",0,"A114;0"]
[null,122020108,"Préstamos Refinanciados",null,null,null,null,"A11401",0,"A11401;0"]
[null,122020109,"Préstamos Refinanciados - Vinculados",null,null,null,null,"A1140101",0,"A1140101;0"]
[null,1220202,"Previsiones",{"$f":"D192","v":0},{"$f":"E192","v":0},null,null,"A114010101",{"$f":"+E134","v":0},"A114010101;0"]
[null,122020201,"(Previsión para Préstamos a Ex socios, Judicializados y Refinanciados)",null,null,null,null,"A114010102",0,{"$f":"H192&\";\"&I192","v":"A114010102;0"}]
[null,1220203,"Tarjetas de Crédito",{"$f":"D194+D195","v":0},{"$f":"E194+E195","v":0},null,null,"A114010103",0,"A114010103;0"]
[null,122020301,"Créditos con Tarjetas de Crédito",null,null,null,null,"A11402",0,"A11402;0"]
[null,122020302,"Créditos - Vinculados",null,null,null,null,"A1140201",0,"A1140201;0"]
[null,1220204,"Vivienda con Garantía Hipotecaria",{"$f":"D197+D198+D199+D200","v":0},{"$f":"E197+E198+E199+E200","v":0},null,null,"A114020101",0,"A114020101;0"]
[null,122020401,"Créditos para compra de Vivienda",null,null,null,null,"A114020102",0,"A114020102;0"]
[null,122020402,"Créditos para remodelación o ampliación de Vivienda",null,null,null,null,"A114020103",0,"A114020103;0"]
[null,122020403,"Créditos para compra de Vivienda - Vinculados",null,null,null,null,"A114020104",0,"A114020104;0"]
[null,122020404,"Créditos para remodelación o ampliación de Vivienda - Vinculados",null,null,null,null,"A114020105",0,"A114020105;0"]
[null,1220205,"Previsiones",{"$f":"D202+D203+D204","v":0},{"$f":"E202+E203+E204","v":0},null,null,"A12",0,"A12;0"]
[null,122020501,"(Previsiones Acumuladas para Créditos)",null,null,null,null,"A121",0,"A121;0"]
[null,122020502,"(Previsiones Adicionales Acumuladas sobre Créditos)",null,null,null,null,"A12101",0,"A12101;0"]
[null,122020503,"(Previsiones Acumuladas Opcional para Coops Tipo C)",null,null,null,null,"A1210101",0,"A1210101;0"]
[null,1220206,"Créditos Otorgados por la EIC",{"$f":"D206+D207+D208","v":0},{"$f":"E206+E207+E208","v":0},null,null,"A121010101",0,"A121010101;0"]
[null,122020601,"Créditos Otorgados por la EIC",null,null,null,null,"A121010102",0,"A121010102;0"]
[null,122020602,"(Previsiones Acumuladas para Créditos)",null,null,null,null,"A121010103",0,"A121010103;0"]
[null,122020603,"(Previsiones Adicionales Acumuladas sobre Créditos)",null,null,null,null,"A121010104",0,"A121010104;0"]
[null,12203,"Cuentas por Cobrar",{"$f":"D210","v":0},{"$f":"E210","v":0},null,null,"A121010105",0,"A121010105;0"]
[null,1220301,"Cuentas por Cobrar",{"$f":"D211+D212+D213+D214+D215+D216+D217+D218","v":0},{"$f":"E211+E212+E213+E214+E215+E216+E217+E218","v":0},null,null,"A121010106",0,"A121010106;0"]
[null,122030101,"Comisiones por Cobrar por Créditos otorgados",null,null,null,null,"A121010107",0,"A121010107;0"]
[null,122030102,"Comisiones por Cobrar por Gestión de Cobranza",null,null,null,null,"A121010108",0,"A121010108;0"]
[null,122030103,"Comisiones por Emisión y Renovación de Tarjetas de Crédito",null,null,null,null,"A122",0,"A122;0"]
[null,122030104,"Comisiones por Cobrar por Otras Operaciones",null,null,null,null,"A12201",0,"A12201;0"]
[null,122030105,"Facturas por Venta de Bienes y Servicios",null,null,null,null,"A1220101",0,"A1220101;0"]
[null,122030106,"Documentos a Cobrar",null,null,null,null,"A122010101",0,"A122010101;0"]
[null,122030107,"Letras y Otros Documentos por Cobrar",null,null,null,null,"A122010102",0,"A122010102;0"]
[null,122030108,"(Previsiones acumuladas Cuentas por cobrar)",null,null,null,null,"A122010103",0,"A122010103;0"]
[null,12204,"Otros Créditos",{"$f":"D220","v":0},{"$f":"E220","v":0},null,null,"A122010104",0,"A122010104;0"]
[null,1220401,"Otros Créditos",{"$f":"D221+D222+D223+D224+D225+D226","v":0},{"$f":"E221+E222+E223+E224+E225+E226","v":0},null,null,"A122010105",0,"A122010105;0"]
[null,122040101,"Anticipos a Proveedores",0,0,null,null,"A122010106",0,"A122010106;0"]
[null,122040102,"Arrendamientos",null,null,null,null,"A122010107",0,"A122010107;0"]
[null,122040103,"Juicios en proceso",null,null,null,null,"A122010108",0,"A122010108;0"]
[null,122040104,"Fondos por Cobrar de apoyos gubernamentales",null,null,null,null,"A122010109",0,"A122010109;0"]
[null,122040105,"Otras cuentas por Cobrar",null,null,null,null,"A1220102",0,"A1220102;0"]
[null,122040106,"(Previsiones Acumuladas para Otros Créditos)",null,null,null,null,"A122010201",0,"A122010201;0"]
[null,123,"INVERSIONES Y PARTICIPACIONES",{"$f":"D228","v":0},{"$f":"E228","v":0},null,null,"A1220103",0,"A1220103;0"]
[null,12301,"Inversiones",{"$f":"D229","v":0},{"$f":"E229","v":0},null,null,"A122010301",0,"A122010301;0"]
[null,1230101,"Inversiones",{"$f":"D230+D231+D232+D233+D234+D235+D236","v":0},{"$f":"E230+E231+E232+E233+E234+E235+E236","v":0},null,null,"A122010302",0,"A122010302;0"]
[null,123010101,"Aportaciones a Centrales Cooperativas",null,null,null,null,"A1220104",0,"A1220104;0"]
[null,123010102,"Aportaciones en Otras Coop Nacionales",null,null,null,null,"A122010401",0,"A122010401;0"]
[null,123010103,"Aportaciones a Organismos Coopdel Exterior",null,null,null,null,"A122010402",0,"A122010402;0"]
[null,123010104,"Inversiones en Acciones de Sociedades",null,null,null,null,"A122010403",0,"A122010403;0"]
[null,123010105,"Bienes Destinados para Venta",null,null,null,null,"A122010404",0,"A122010404;0"]
[null,123010106,"Otros Tipos de Inversiones",null,null,null,null,"A1220105",0,"A1220105;0"]
[null,123010107,"(Prev Acumuladas sobre Inversiones)",null,null,null,null,"A122010501",0,"A122010501;0"]
[null,124,"PROPIEDAD, PLANTA Y EQUIPOS",{"$f":"D238","v":0},{"$f":"E238","v":0},null,null,"A12202",0,"A12202;0"]
[null,12401,"Permanente",{"$f":"D239","v":0},{"$f":"E239","v":0},null,null,"A1220201",0,"A1220201;0"]
[null,1240101,"Permanente",{"$f":"D240+D241+D242+D243+D244+D245+D246+D247+D248+D249+D250+D251","v":0},{"$f":"E240+E241+E242+E243+E244+E245+E246+E247+E248+E249+E250+E251","v":0},null,null,"A122020101",0,"A122020101;0"]
[null,124010101,"Edificios",null,null,null,null,"A122020102",0,"A122020102;0"]
[null,124010102,"Terreno",null,null,null,null,"A122020103",0,"A122020103;0"]
[null,124010103,"Equipos e Instalaciones",null,null,null,null,"A122020104",0,"A122020104;0"]
[null,124010104,"Construcciones en Curso",null,null,null,null,"A122020105",0,"A122020105;0"]
[null,124010105,"Maquinarias y Equipos",null,null,null,null,"A122020106",0,"A122020106;0"]
[null,124010106,"Herramientas",null,null,null,null,"A122020107",0,"A122020107;0"]
[null,124010107,"Rodados",null,null,null,null,"A122020108",0,"A122020108;0"]
[null,124010108,"Muebles de Oficina",null,null,null,null,"A122020109",0,"A122020109;0"]
[null,124010109,"Equipos y Software Informáticos",null,null,null,null,"A1220202",0,"A1220202;0"]
[null,124010110,"Bibliotecas, Obras de Arte y Otros",null,null,null,null,"A122020201",0,"A122020201;0"]
[null,124010111,"Bienes Tomados en Arrendamiento",null,null,null,null,"A1220203",0,"A1220203;0"]
[null,124010112,"(Depreciaciones Acumuladas Permanente)",null,null,null,null,"A122020301",0,"A122020301;0"]
[null,125,"OTROS ACTIVOS",{"$f":"D253+D260+D270+D276","v":0},{"$f":"E253+E260+E270+E276","v":0},null,null,"A122020302",0,"A122020302;0"]
[null,12501,"Activos Restringidos",{"$f":"D254","v":0},{"$f":"E254","v":0},null,null,"A1220204",0,"A1220204;0"]
[null,1250101,"Activos Restringidos",{"$f":"D255+D256+D257+D258+D259","v":0},{"$f":"E255+E256+E257+E258+E259","v":0},null,null,"A122020401",0,"A122020401;0"]
[null,125010101,"Activos de Disponibilidad Restringida",null,null,null,null,"A122020402",{"$f":"+E198","v":0},"A122020402;0"]
[null,125010102,"Partidas Pendientes de Conciliación",null,null,null,null,"A122020403",0,{"$f":"H256&\";\"&I256","v":"A122020403;0"}]
[null,125010103,"Cheques Rechazados",null,null,null,null,"A122020404",0,"A122020404;0"]
[null,125010104,"Fondo de Garantía Tarjetas",null,null,null,null,"A1220205",0,"A1220205;0"]
[null,125010105,"(Previsión Acum Sobre Activos Restringidos)",null,null,null,null,"A122020501",0,"A122020501;0"]
[null,12502,"Cargos Diferidos",{"$f":"D261","v":0},{"$f":"E261","v":0},null,null,"A122020502",0,"A122020502;0"]
[null,1250201,"Cargos Diferidos",{"$f":"D262+D263+D264+D265+D266+D267+D268+D269","v":0},{"$f":"E262+E263+E264+E265+E266+E267+E268+E269","v":0},null,null,"A122020503",0,"A122020503;0"]
[null,125020101,"Gastos de Organización y Constitución",null,null,null,{"$f":"E86+E201","v":0},"A1220206",0,"A1220206;0"]
[null,125020102,"Gastos de Estudios de Proyectos",null,null,null,null,"A122020601",0,"A122020601;0"]
[null,125020103,"Patentes y Software Informáticos",null,null,null,null,"A122020602",0,"A122020602;0"]
[null,125020104,"Gastos de Reorganización",null,null,null,null,"A122020603",0,"A122020603;0"]
[null,125020105,"Mejoras en Inmuebles de Terceros",null,null,null,null,"A12203",0,"A12203;0"]
[null,125020106,"Plusvalía en Inversiones",null,null,null,null,"A1220301",0,"A1220301;0"]
[null,125020107,"(Amortización Acumulada Cargos Diferidos)",null,null,null,null,"A122030101",0,"A122030101;0"]
[null,125020108,"Cargo diferido autorizado por INCOOP",null,null,null,null,"A122030102",0,"A122030102;0"]
[null,12503,"Intangibles",{"$f":"D271","v":0},{"$f":"E271","v":0},null,null,"A122030103",0,"A122030103;0"]
[null,1250301,"Intangibles",{"$f":"D272+D273+D274+D275","v":0},{"$f":"E272+E273+E274+E275","v":0},null,null,"A122030104",0,"A122030104;0"]
[null,125030101,"Marcas y Patentes",null,null,null,null,"A122030105",0,"A122030105;0"]
[null,125030102,"Llaves de Negocios",null,null,null,null,"A122030106",0,"A122030106;0"]
[null,125030103,"Licencia de Manufacturas",null,null,null,null,"A122030107",0,"A122030107;0"]
[null,125030104,"(Amortización Acumulada Intangibles)",null,null,null,null,"A122030108",0,"A122030108;0"]
[null,12504,"Bienes Adjudicados a Realizar",{"$f":"D277","v":0},{"$f":"E277","v":0},null,null,"A12204",0,"A12204;0"]
[null,1250401,"Bienes Adjudicados a Realizar",{"$f":"D278+D279+D280+D281+D282","v":0},{"$f":"E278+E279+E280+E281+E282","v":0},null,null,"A1220401",0,"A1220401;0"]
[null,125040101,"Bienes Muebles Adjudicados",null,null,null,null,"A122040101",0,"A122040101;0"]
[null,125040102,"Bienes Inmuebles Adjudicados",null,null,null,null,"A122040102",0,"A122040102;0"]
[null,125040103,"Bienes Muebles Recibidos en Dación de Pago",null,null,null,null,"A122040103",0,"A122040103;0"]
[null,125040104,"Bienes Inmuebles Recibidos en Dación de Pago",null,null,null,null,"A122040104",0,"A122040104;0"]
[null,125040105,"(Previsión Acum sobre Bienes Adjudicados o Recibidos en Dación de Pago)",null,null,null,null,"A122040105",0,"A122040105;0"]
[null,null,null,null,null,null,null,"A122040106",0,"A122040106;0"]
[null,2,"PASIVO",{"$f":"D285+D375","v":0},{"$f":"E285+E375","v":0},null,null,"A123",0,"A123;0"]
[null,21,"EXIGIBLE A CORTO PLAZO",{"$f":"D286+D334","v":0},{"$f":"E286+E334","v":0},null,null,"A12301",0,"A12301;0"]
[null,211,"COMPROMISOS FINANCIEROS",{"$f":"D287+D306+D313","v":0},{"$f":"E287+E306+E313","v":0},null,null,"A1230101",0,"A1230101;0"]
[null,21101,"Deudas Financ c/Socios,No Socios, Ot Coop e Inst sin Fines de Lucro",{"$f":"D288+D295+D302","v":0},{"$f":"E288+E295+E302","v":0},null,null,"A123010101",0,"A123010101;0"]
[null,2110101,"Deudas Financieras con Socios",{"$f":"D289+D290+D291+D292+D293+D294","v":0},{"$f":"E289+E290+E291+E292+E293+E294","v":0},null,null,"A123010102",0,"A123010102;0"]
[null,211010101,"Ahorros a la Vista Captados de personas físicas o naturales",null,null,null,null,"A123010103",0,"A123010103;0"]
[null,211010102,"Ahorros a la Vista Captados de personas jurídicas",null,null,null,null,"A123010104",0,"A123010104;0"]
[null,211010103,"Ahorros a Plazo Captados de personas físicas o naturales",null,null,null,null,"A123010105",0,"A123010105;0"]
[null,211010104,"Ahorros a Plazo Captados de personas jurídicas",null,null,null,null,"A123010106",0,"A123010106;0"]
[null,211010105,"Ahorros Programados Captados",null,null,null,null,"A123010107",0,"A123010107;0"]
[null,211010106,"Otras Captaciones de Ahorros",null,null,null,null,"A124",0,"A124;0"]
[null,2110102,"Deudas Financieras con  No Socios",{"$f":"D296+D297+D298+D299+D300+D301","v":0},{"$f":"E296+E297+E298+E299+E300+E301","v":0},null,null,"A12401",0,"A12401;0"]
[null,211010201,"Ahorros a la Vista Captados de personas físicas o naturales",null,null,null,null,"A1240101",0,"A1240101;0"]
[null,211010202,"Ahorros a la Vista Captados de personas jurídicas",null,null,null,null,"A124010101",0,"A124010101;0"]
[null,211010203,"Ahorros a Plazo Captados de personas físicas o naturales",null,null,null,null,"A124010102",0,"A124010102;0"]
[null,211010204,"Ahorros a Plazo Captados de personas jurídicas",null,null,null,null,"A124010103",0,"A124010103;0"]
[null,211010205,"Ahorros Programados Captados",null,null,null,null,"A124010104",0,"A124010104;0"]
[null,211010206,"Otras Captaciones de Ahorros",null,null,null,null,"A124010105",0,"A124010105;0"]
[null,2110103,"Otras Deudas",{"$f":"D303+D304+D305","v":0},{"$f":"E303+E304+E305","v":0},null,null,"A124010106",0,"A124010106;0"]
[null,211010301,"Préstamos de Ot Coop e Instsin Fines Lucro",null,null,null,null,"A124010107",0,"A124010107;0"]
[null,211010302,"Títulos de Deuda-Bonos",null,null,null,null,"A124010108",0,"A124010108;0"]
[null,211010303,"Cuentas a Pagar Tarjetas de Crédito",null,null,null,null,"A124010109",0,"A124010109;0"]
[null,21102,"Deudas Financ Con Otras Entidades",{"$f":"D307","v":0},{"$f":"E307","v":0},null,null,"A124010110",0,"A124010110;0"]
[null,2110201,"Deudas Financ Con Otras Entidades",{"$f":"D308+D309+D310+D311+D312","v":0},{"$f":"E308+E309+E310+E311+E312","v":0},null,null,"A124010111",0,"A124010111;0"]
[null,211020101,"Deudas con Entitades Bancarias y Financieras",null,null,null,null,"A124010112",0,"A124010112;0"]
[null,211020102,"Sobregiro en Cuenta Corriente",null,null,null,null,"A125",0,"A125;0"]
[null,211020103,"Deudas con Organismos Nacionales no Bancarios",null,null,null,null,"A12501",0,"A12501;0"]
[null,211020104,"Deudas con Organismos Internacionales",null,null,null,null,"A1250101",0,"A1250101;0"]
[null,211020105,"Títulos de Deuda-Bonos",null,null,null,null,"A125010101",0,"A125010101;0"]
[null,21103,"Intereses a Pagar",{"$f":"D314+D321+D328","v":0},{"$f":"E314+E321+E328","v":0},null,null,"A125010102",0,"A125010102;0"]
[null,2110301,"Intereses a Pagar Socios",{"$f":"D315+D316+D317+D318+D319+D320","v":0},{"$f":"E315+E316+E317+E318+E319+E320","v":0},null,null,"A125010103",0,"A125010103;0"]
[null,211030101,"Intereses Devengados a Pagar Ahorro a la Vista personas físicas o naturales",null,null,null,null,"A125010104",0,"A125010104;0"]
[null,211030102,"Intereses Devengados a Pagar Ahorro a la Vista personas jurídicas",null,null,null,null,"A125010105",0,"A125010105;0"]
[null,211030103,"Intereses Devengados a Pagar Ahorros a Plazo personas físicas o naturales",null,null,null,null,"A12502",0,"A12502;0"]
[null,211030104,"Intereses Devengados a Pagar Ahorros a Plazo personas jurídicas",null,null,null,null,"A1250201",0,"A1250201;0"]
[null,211030105,"Intereses Devengados Ahorros Programados Captados",null,null,null,null,"A125020101",{"$f":"+E262","v":0},"A125020101;0"]
[null,211030106,"Intereses Devengados a Pagar Otras Captaciones de Ahorros",null,null,null,null,"A125020102",0,{"$f":"H320&\";\"&I320","v":"A125020102;0"}]
[null,2110302,"Intereses a Pagar No Socios",{"$f":"D322+D323+D324+D325+D326+D327","v":0},{"$f":"E322+E323+E324+E325+E326+E327","v":0},null,null,"A125020103",0,"A125020103;0"]
[null,211030201,"Intereses Devengados a Pagar Ahorro a la Vista personas físicas o naturales",null,null,null,null,"A125020104",0,"A125020104;0"]
[null,211030202,"Intereses Devengados a Pagar Ahorro a la Vista personas jurídicas",null,null,null,null,"A125020105",0,"A125020105;0"]
[null,211030203,"Intereses Devengados a Pagar Ahorros a Plazo personas físicas o naturales",null,null,null,null,"A125020106",0,"A125020106;0"]
[null,211030204,"Intereses Devengados a Pagar Ahorros a Plazo personas jurídicas",null,null,null,null,"A125020107",0,"A125020107;0"]
[null,211030205,"Intereses Devengados Ahorros Programados Captados",null,null,null,null,"A125020108",0,"A125020108;0"]
[null,211030206,"Intereses Devengados a Pagar Otras Captaciones de Ahorros",null,null,null,null,"A12503",0,"A12503;0"]
[null,2110303,"Otros Intereses a Pagar",{"$f":"D329+D330+D332+D333","v":0},{"$f":"E329+E330+E332+E333","v":0},null,null,"A1250301",0,"A1250301;0"]
[null,211030301,"Intereses Devengados a Pagar Préstamos de Ot Coop e Instsin Fines Lucro",null,null,null,null,"A125030101",0,"A125030101;0"]
[null,211030302,"Intereses Devengados a Pagar Deudas con Entitades Bancarias y Financieras",null,null,null,null,"A125030102",0,"A125030102;0"]
[null,211030303,"Intereses Devengados a Pagar Deudas con Organismos Nacionales No Bancarios",null,null,null,null,"A125030103",0,"A125030103;0"]
[null,211030304,"Intereses Devengados a Pagar Deudas con Organismos Internacionales",null,null,null,null,"A125030104",0,"A125030104;0"]
[null,211030305,"Intereses Devengados a Pagar por Títulos de Deuda-Bonos",null,null,null,null,"A12504",0,"A12504;0"]
[null,212,"COMPROMISOS NO FINANCIEROS",{"$f":"D335+D350+D359+D369","v":0},{"$f":"E335+E350+E359+E369","v":0},null,null,"A1250401",0,"A1250401;0"]
[null,21201,"Cuentas y Obligaciones a Pagar",{"$f":"D336+D341","v":0},{"$f":"E336+E341","v":0},null,null,"A125040101",0,"A125040101;0"]
[null,2120101,"Cuentas a Pagar",{"$f":"D337+D338+D339+D340","v":0},{"$f":"E337+E338+E339+E340","v":0},null,null,"A125040102",0,"A125040102;0"]
[null,212010101,"Cuentas a Pagar Proveedores",null,null,null,null,"A125040103",0,"A125040103;0"]
[null,212010102,"Comisiones por Pagar",null,null,null,null,"A125040104",0,"A125040104;0"]
[null,212010103,"Recaudaciones de Terceros a Pagar",null,null,null,null,"A125040105",0,"A125040105;0"]
[null,212010104,"Otras Cuentas a Pagar"]
[null,2120102,"Obligaciones por Pagar",{"$f":"D342+D343+D344+D345+D346+D347+D348+D349","v":0},{"$f":"E342+E343+E344+E345+E346+E347+E348+E349","v":0},null,null,"P2",{"$f":"+E284","v":0},"P2;0"]
[null,212010201,"Giros, remesas y transferencias a Pagar",0,0,null,null,"P21",0,"P21;0"]
[null,212010202,"Sueldos Personal Administrativo y Otros a Pagar",null,null,null,null,"P211",0,"P211;0"]
[null,212010203,"Beneficios a Pagar",null,null,null,null,"P21101",0,"P21101;0"]
[null,212010204,"Reposiciones de Gastos a Pagar",null,null,null,null,"P2110101",0,"P2110101;0"]
[null,212010205,"Dietas a Pagar",null,null,null,null,"P211010101",0,"P211010101;0"]
[null,212010206,"Otras Obligaciones a Pagar",null,null,null,null,"P211010102",0,"P211010102;0"]
[null,212010207,"Sobrante de Caja",null,null,null,null,"P211010103",0,"P211010103;0"]
[null,212010208,"Transferencias Internas",null,null,null,null,"P211010104",0,"P211010104;0"]
[null,21202,"Provisiones",{"$f":"D351","v":0},{"$f":"E351","v":0},null,null,"P211010105",0,"P211010105;0"]
[null,2120201,"Provisiones",{"$f":"D352+D353+D354+D355+D356+D357+D358","v":0},{"$f":"E352+E353+E354+E355+E356+E357+E358","v":0},null,null,"P211010106",0,"P211010106;0"]
[null,212020101,"Obligaciones Fiscales",null,null,null,null,"P2110102",0,"P2110102;0"]
[null,212020102,"Aporte Ley 2157 INCOOP",null,null,null,null,"P211010201",0,"P211010201;0"]
[null,212020103,"Aportaciones a Devolver",null,null,null,null,"P211010202",0,"P211010202;0"]
[null,212020104,"Provisiones Varias",null,null,null,null,"P211010203",0,"P211010203;0"]
[null,212020105,"Excedentes a Distribuir",null,null,null,null,"P211010204",0,"P211010204;0"]
[null,212020106,"Obligaciones por Servicios",null,null,null,null,"P211010205",0,"P211010205;0"]
[null,212020107,"Obligaciones Sociales",null,null,null,null,"P211010206",0,"P211010206;0"]
[null,21203,"Fondos",{"$f":"D360+D363","v":0},{"$f":"E360+E363","v":0},null,null,"P2110103",0,"P2110103;0"]
[null,2120301,"Educación Cooperativa",{"$f":"D361+D362","v":0},{"$f":"E361+E362","v":0},null,null,"P211010301",0,"P211010301;0"]
[null,212030101,"Formación y Capacitación (70%)",null,null,null,null,"P211010302",0,"P211010302;0"]
[null,212030102,"Actividades sociales y recretativas (30%)",null,null,null,null,"P211010303",0,"P211010303;0"]
[null,2120302,"Otros Fondos",{"$f":"D364+D365+D366+D367+D368","v":0},{"$f":"E364+E365+E366+E367+E368","v":0},null,null,"P21102",0,"P21102;0"]
[null,212030201,"Entidades de Integración Cooperativa",null,null,null,null,"P2110201",0,"P2110201;0"]
[null,212030202,"Solidaridad",null,null,null,null,"P211020101",0,"P211020101;0"]
[null,212030203,"Fondo p/ Protección de Préstamos",null,null,null,null,"P211020102",0,"P211020102;0"]
[null,212030204,"Fondo p/ Diferencia de Cambio",null,null,null,null,"P211020103",0,"P211020103;0"]
[null,212030205,"Otros Fondos de Corto Plazo",null,null,null,null,"P211020104",0,"P211020104;0"]
[null,21204,"Ingreso Diferido",{"$f":"D370","v":0},{"$f":"E370","v":0},null,null,"P211020105",0,"P211020105;0"]
[null,2120401,"Ingreso Diferido",{"$f":"D371+D372+D373+D374","v":0},{"$f":"E371+E372+E373+E374","v":0},null,null,"P21103",0,"P21103;0"]
[null,212040101,"Intereses y Otros Accesorios s/ Refinanciación",null,null,null,null,"P2110301",0,"P2110301;0"]
[null,212040102,"Alquileres Cobrados por Adelantado",null,null,null,null,"P211030101",0,"P211030101;0"]
[null,212040103,"Rentas recibidas por Anticipado",null,null,null,null,"P211030102",{"$f":"+E316","v":0},"P211030102;0"]
[null,212040104,"Otros Ingresos Diferidos",null,null,null,null,"P211030103",0,"P211030103;0"]
[null,22,"EXIGIBLE A LARGO PLAZO",{"$f":"D376+D415","v":0},{"$f":"E376+E415","v":0},null,null,"P211030104",0,"P211030104;0"]
[null,221,"COMPROMISOS FINANCIEROS",{"$f":"D377+D391+D398","v":0},{"$f":"E377+E391+E398","v":0},null,null,"P211030105",0,"P211030105;0"]
[null,22101,"Deudas Financ c/Socios, No Socios, Ot Coop e Inst sin Fines de Lucro",{"$f":"D378+D383+D388","v":0},{"$f":"E378+E383+E388","v":0},null,null,"P211030106",0,"P211030106;0"]
[null,2210101,"Deudas Financieras con Socios",{"$f":"D379+D380+D381+D382","v":0},{"$f":"E379+E380+E381+E382","v":0},null,null,"P2110302",0,"P2110302;0"]
[null,221010101,"Ahorros a Plazo Captados de personas físicas o naturales",null,null,null,null,"P211030201",0,"P211030201;0"]
[null,221010102,"Ahorros a Plazo Captados de personas jurídicas",null,null,null,null,"P211030202",0,"P211030202;0"]
[null,221010103,"Ahorros Programados Captados",null,null,null,null,"P211030203",0,"P211030203;0"]
[null,221010104,"Otras Captaciones de Ahorros",0,0,null,null,"P211030204",0,"P211030204;0"]
[null,2210102,"Deudas Financieras con  No Socios",{"$f":"D384+D385+D386+D387","v":0},{"$f":"E384+E385+E386+E387","v":0},null,null,"P211030205",0,"P211030205;0"]
[null,221010201,"Ahorros a Plazo Captados de personas físicas o naturales",null,null,null,null,"P211030206",0,{"$f":"H384&\";\"&I384","v":"P211030206;0"}]
[null,221010202,"Ahorros a Plazo Captados de personas jurídicas",null,null,null,null,"P2110303",0,"P2110303;0"]
[null,221010203,"Ahorros Programados Captados",null,null,null,null,"P211030301",0,"P211030301;0"]
[null,221010204,"Otras Captaciones de Ahorros",null,null,null,null,"P211030302",0,"P211030302;0"]
[null,2210103,"Otras Deudas",{"$f":"D389+D390","v":0},{"$f":"E389+E390","v":0},null,null,"P211030303",0,"P211030303;0"]
[null,221010301,"Préstamos de Ot Coop e Inst. sin Fines Lucro",null,null,null,null,"P211030304",0,"P211030304;0"]
[null,221010302,"Títulos de Deuda-Bonos",null,null,null,null,"P211030305",0,"P211030305;0"]
[null,22102,"Deudas Financ Con Otras Entidades",{"$f":"D392","v":0},{"$f":"E392","v":0},null,null,"P212",0,"P212;0"]
[null,2210201,"Deudas Financ Con Otras Entidades",{"$f":"D393+D394+D395+D396+D397","v":0},{"$f":"E393+E394+E395+E396+E397","v":0},null,null,"P21201",0,"P21201;0"]
[null,221020101,"Deudas con Entitades Bancarias y Financieras",null,null,null,null,"P2120101",0,"P2120101;0"]
[null,221020102,"Sobregiro en Cuenta Corriente",null,null,null,null,"P212010101",0,"P212010101;0"]
[null,221020103,"Deudas con Organismos Nacionales no Bancarios",null,null,null,null,"P212010102",0,"P212010102;0"]
[null,221020104,"Deudas con Organismos Internacionales",null,null,null,null,"P212010103",0,"P212010103;0"]
[null,221020105,"Títulos de Deuda-Bonos",null,null,null,null,"P212010104",0,"P212010104;0"]
[null,22103,"Intereses a Pagar",{"$f":"D399+D404+D409","v":0},{"$f":"E399+E404+E409","v":0},null,null,"P2120102",0,"P2120102;0"]
[null,2210301,"Intereses a Pagar Socios",{"$f":"D400+D401+D402+D403","v":0},{"$f":"E400+E401+E402+E403","v":0},null,null,"P212010201",0,"P212010201;0"]
[null,221030101,"Intereses Devengados a Pagar Ahorros a Plazo personas físicas o naturales",null,null,null,null,"P212010202",0,"P212010202;0"]
[null,221030102,"Intereses Devengados a Pagar Ahorros a Plazo personas jurídicas",null,null,null,null,"P212010203",0,"P212010203;0"]
[null,221030103,"Intereses Devengados Ahorros Programados Captados",null,null,null,null,"P212010204",0,"P212010204;0"]
[null,221030104,"Intereses Devengados a Pagar Otras Captaciones de Ahorros",null,null,null,null,"P212010205",0,"P212010205;0"]
[null,2210302,"Intereses a Pagar No Socios",{"$f":"D405+D406+D407+D408","v":0},{"$f":"E405+E406+E407+E408","v":0},null,null,"P212010206",0,"P212010206;0"]
[null,221030201,"Intereses Devengados a Pagar Ahorros a Plazo personas físicas o naturales",null,null,null,null,"P212010207",{"$f":"+E348","v":0},"P212010207;0"]
[null,221030202,"Intereses Devengados a Pagar Ahorros a Plazo personas jurídicas",null,null,null,null,"P212010208",0,"P212010208;0"]
[null,221030203,"Intereses Devengados Ahorros Programados Captados",null,null,null,null,"P21202",0,"P21202;0"]
[null,221030204,"Intereses Devengados a Pagar Otras Captaciones de Ahorros",null,null,null,null,"P2120201",0,"P2120201;0"]
[null,2210303,"Otros Intereses a Pagar",{"$f":"D410+D411+D412+D413+D414","v":0},{"$f":"E410+E411+E412+E413+E414","v":0},null,null,"P212020101",0,"P212020101;0"]
[null,221030301,"Intereses Devengados a Pagar Préstamos de Ot Coop e Instsin Fines Lucro",null,null,null,null,"P212020102",0,"P212020102;0"]
[null,221030302,"Intereses Devengados a Pagar Deudas con Entitades Bancarias y Financieras",null,null,null,null,"P212020103",0,"P212020103;0"]
[null,221030303,"Intereses Devengados a Pagar Deudas con Organismos Nacionales No Bancarios",null,null,null,null,"P212020104",0,"P212020104;0"]
[null,221030304,"Intereses Devengados a Pagar Deudas con Organismos Internacionales",null,null,null,null,"P212020105",0,"P212020105;0"]
[null,221030305,"Intereses Devengados a Pagar por Títulos de Deuda-Bonos",null,null,null,null,"P212020106",0,"P212020106;0"]
[null,222,"COMPROMISOS NO FINANCIEROS",{"$f":"D416+D420+D426","v":0},{"$f":"E416+E420+E426","v":0},null,null,"P212020107",0,"P212020107;0"]
[null,22201,"Cuentas y Obligaciones a Pagar",{"$f":"D417","v":0},{"$f":"E417","v":0},null,null,"P21203",0,"P21203;0"]
[null,2220101,"Cuentas a Pagar",{"$f":"D418+D419","v":0},{"$f":"E418+E419","v":0},null,null,"P2120301",0,"P2120301;0"]
[null,222010101,"Cuentas a Pagar Proveedores",null,null,null,null,"P212030101",0,"P212030101;0"]
[null,222010102,"Otras Cuentas a Pagar",null,null,null,null,"P212030102",0,"P212030102;0"]
[null,22202,"Fondos",{"$f":"D421","v":0},{"$f":"E421","v":0},null,null,"P2120302",0,"P2120302;0"]
[null,2220201,"Otros Fondos",{"$f":"D422+D423+D424+D425","v":0},{"$f":"E422+E423+E424+E425","v":0},null,null,"P212030201",0,"P212030201;0"]
[null,222020101,"Solidaridad",null,null,null,null,"P212030202",0,"P212030202;0"]
[null,222020102,"Fondo p/ Protección de Préstamos",null,null,null,null,"P212030203",0,"P212030203;0"]
[null,222020103,"Fondo de Previsión para Despido",null,null,null,null,"P212030204",0,"P212030204;0"]
[null,222020104,"Otras previsiones para Contingencias",null,null,null,null,"P212030205",0,"P212030205;0"]
[null,22203,"Ingreso Diferido",{"$f":"D427","v":0},{"$f":"E427","v":0},null,null,"P21204",0,"P21204;0"]
[null,2220301,"Ingreso Diferido",{"$f":"D428+D429+D430+D431+D432","v":0},{"$f":"E428+E429+E430+E431+E432","v":0},null,null,"P2120401",0,"P2120401;0"]
[null,222030101,"Intereses y Otros Accesorios s/ Refinanciación",null,null,null,null,"P212040101",0,"P212040101;0"]
[null,222030102,"Alquileres Cobrados por Adelantado",null,null,null,null,"P212040102",0,"P212040102;0"]
[null,222030103,"Intereses y Comisiones recibidas por Anticipado",null,null,null,null,"P212040103",0,"P212040103;0"]
[null,222030104,"Rentas recibidas por Anticipado",null,null,null,null,"P212040104",0,"P212040104;0"]
[null,222030105,"Otros Ingresos Diferidos",null,null,null,null,"P22",0,"P22;0"]
[null,null,null,null,null,null,null,"P221",0,"P221;0"]
[null,3,"PATRIMONIO NETO",{"$f":"D435","v":0},{"$f":"E435","v":0},null,null,"P22101",0,"P22101;0"]
[null,31,"PATRIMONIO NETO",{"$f":"D436+D442+D456","v":0},{"$f":"E436+E442+E456","v":0},null,null,"P2210101",0,"P2210101;0"]
[null,311,"CAPITAL",{"$f":"D437","v":0},{"$f":"E437","v":0},null,null,"P221010101",0,"P221010101;0"]
[null,31101,"Capital Social",{"$f":"D438","v":0},{"$f":"E438","v":0},null,null,"P221010102",{"$f":"+E380","v":0},"P221010102;0"]
[null,3110101,"Capital Social",{"$f":"D439+D440+D441","v":0},{"$f":"E439+E440+E441","v":0},null,null,"P221010103",0,"P221010103;0"]
[null,311010101,"Capital Suscripto",null,null,null,null,"P221010104",0,"P221010104;0"]
[null,311010102,"Capital por Revalúo Ley 438/94",null,null,null,null,"P2210102",0,"P2210102;0"]
[null,311010103,"Menos: Socios Suscriptores",null,null,null,null,"P221010201",0,"P221010201;0"]
[null,312,"RESERVAS",{"$f":"D443+D451","v":0},{"$f":"E443+E451","v":0},null,null,"P221010202",0,"P221010202;0"]
[null,31201,"Capital Institucional",{"$f":"D444","v":0},{"$f":"E444","v":0},null,null,"P221010203",0,"P221010203;0"]
[null,3120101,"Capital Institucional",{"$f":"D445+D446+D447+D448+D449+D450","v":0},{"$f":"E445+E446+E447+E448+E449+E450","v":0},null,null,"P221010204",0,"P221010204;0"]
[null,312010101,"Reserva Legal",null,null,null,null,"P2210103",0,"P2210103;0"]
[null,312010102,"Reserva para Adquisición Activo Fijo",null,null,null,null,"P221010301",0,"P221010301;0"]
[null,312010103,"Otras Reservas y Fondos Irrepartibles",null,null,null,null,"P221010302",0,"P221010302;0"]
[null,312010104,"Donaciones de Capital",null,null,null,null,"P22102",0,{"$f":"H448&\";\"&I448","v":"P22102;0"}]
[null,312010105,"Donaciones Corrientes",null,null,null,null,"P2210201",0,"P2210201;0"]
[null,312010106,"Reserva Institucional",null,null,null,null,"P221020101",0,"P221020101;0"]
[null,31202,"Capital no Institucional",{"$f":"D452","v":0},{"$f":"E452","v":0},null,null,"P221020102",0,"P221020102;0"]
[null,3120201,"Capital no Institucional",{"$f":"D453+D454+D455","v":0},{"$f":"E453+E454+E455","v":0},null,null,"P221020103",0,"P221020103;0"]
[null,312020101,"Reserva de Revalúo",null,null,null,null,"P221020104",0,"P221020104;0"]
[null,312020102,"Reserva de Revalúo Irrepartible",null,null,null,null,"P221020105",0,"P221020105;0"]
[null,312020103,"Revalúo Técnico",null,null,null,null,"P22103",0,"P22103;0"]
[null,313,"RESULTADOS",{"$f":"D457","v":0},{"$f":"E457","v":0},null,null,"P2210301",0,"P2210301;0"]
[null,31301,"Resultados",{"$f":"D458+D461","v":0},{"$f":"E458+E461","v":0},null,null,"P221030101",0,"P221030101;0"]
[null,3130101,"Del Ejercicio",{"$f":"D459+D460","v":0},{"$f":"E459+E460","v":0},null,null,"P221030102",0,"P221030102;0"]
[null,313010101,"Excedentes del Ejercicio",null,null,null,null,"P221030103",0,"P221030103;0"]
[null,313010102,"(Pérdidas del Ejercicio)",null,null,null,null,"P221030104",0,"P221030104;0"]
[null,3130102,"Acumulado",{"$f":"D462+D463+D464","v":0},{"$f":"E462+E463+E464","v":0},null,null,"P2210302",0,"P2210302;0"]
[null,313010201,"Excedentes del Ejercicio anterior",null,null,null,null,"P221030201",0,"P221030201;0"]
[null,313010202,"(Pérdidas del Ejercicio anterior)",null,null,null,null,"P221030202",0,"P221030202;0"]
[null,313010203,"(Pérdidas Acumuladas)",null,null,null,null,"P221030203",0,"P221030203;0"]
[null,null,null,null,null,null,null,"P221030204",0,"P221030204;0"]
[null,null,null,null,null,null,null,"P2210303",0,"P2210303;0"]
[null,null,"Cuadratura 1",{"$f":"D6-D284-D434","v":0},{"$f":"E6-E284-E434","v":0},null,null,"P221030301",0,"P221030301;0"]
[null,null,null,null,null,null,null,"P221030302",0,"P221030302;0"]
[null,null,null,null,null,null,null,"P221030303",{"$f":"+E412","v":0},"P221030303;0"]
[null,null,"Cuadratura 2",{"$f":"D456-('Cuadro de Resultado'!D6-'Cuadro de Resultado'!D135)","v":0},{"$f":"E456-('Cuadro de Resultado'!E6-'Cuadro de Resultado'!E135)","v":0},null,null,"P221030304",0,"P221030304;0"]
[null,null,null,null,null,null,null,"P221030305",0,"P221030305;0"]
[null,null,null,null,null,null,null,"P222",0,"P222;0"]
[null,null,null,null,null,null,null,"P22201",0,"P22201;0"]
[null,null,null,null,null,null,null,"P2220101",0,"P2220101;0"]
[null,null,null,null,null,null,null,"P222010101",0,"P222010101;0"]
[null,null,null,null,null,null,null,"P222010102",0,"P222010102;0"]
[null,null,null,null,null,null,null,"P22202",0,"P22202;0"]
[null,null,null,null,null,null,null,"P2220201",0,"P2220201;0"]
[null,null,null,null,null,null,null,"P222020101",0,"P222020101;0"]
[null,null,null,null,null,null,null,"P222020102",0,"P222020102;0"]
[null,null,null,null,null,null,null,"P222020103",0,"P222020103;0"]
[null,null,null,null,null,null,null,"P222020104",0,"P222020104;0"]
[null,null,null,null,null,null,null,"P22203",0,"P22203;0"]
[null,null,null,null,null,null,null,"P2220301",0,"P2220301;0"]
[null,null,null,null,null,null,null,"P222030101",0,"P222030101;0"]
[null,null,null,null,null,null,null,"P222030102",0,"P222030102;0"]
[null,null,null,null,null,null,null,"P222030103",0,"P222030103;0"]
[null,null,null,null,null,null,null,"P222030104",0,"P222030104;0"]
[null,null,null,null,null,null,null,"P222030105",0,"P222030105;0"]
[]
[null,null,null,null,null,null,null,"P3",{"$f":"+E434","v":0},"P3;0"]
[null,null,null,null,null,null,null,"P31",0,"P31;0"]
[null,null,null,null,null,null,null,"P311",0,"P311;0"]
[null,null,null,null,null,null,null,"P31101",0,"P31101;0"]
[null,null,null,null,null,null,null,"P3110101",0,"P3110101;0"]
[null,null,null,null,null,null,null,"P311010101",0,"P311010101;0"]
[null,null,null,null,null,null,null,"P311010102",0,"P311010102;0"]
[null,null,null,null,null,null,null,"P311010103",0,"P311010103;0"]
[null,null,null,null,null,null,null,"P312",0,"P312;0"]
[null,null,null,null,null,null,null,"P31201",0,"P31201;0"]
[null,null,null,null,null,null,null,"P3120101",0,"P3120101;0"]
[null,null,null,null,null,null,null,"P312010101",0,"P312010101;0"]
[null,null,null,null,null,null,null,"P312010102",0,"P312010102;0"]
[null,null,null,null,null,null,null,"P312010103",0,"P312010103;0"]
[null,null,null,null,null,null,null,"P312010104",0,"P312010104;0"]
[null,null,null,null,null,null,null,"P312010105",0,"P312010105;0"]
[null,null,null,null,null,null,null,"P312010106",0,"P312010106;0"]
[null,null,null,null,null,null,null,"P31202",0,"P31202;0"]
[null,null,null,null,null,null,null,"P3120201",0,"P3120201;0"]
[null,null,null,null,null,null,null,"P312020101",0,"P312020101;0"]
[null,null,null,null,null,null,null,"P312020102",0,"P312020102;0"]
[null,null,null,null,null,null,null,"P312020103",0,{"$f":"H512&\";\"&I512","v":"P312020103;0"}]
[null,null,null,null,null,null,null,"P313",0,"P313;0"]
[null,null,null,null,null,null,null,"P31301",0,"P31301;0"]
[null,null,null,null,null,null,null,"P3130101",0,"P3130101;0"]
[null,null,null,null,null,null,null,"P313010101",0,"P313010101;0"]
[null,null,null,null,null,null,null,"P313010102",0,"P313010102;0"]
[null,null,null,null,null,null,null,"P3130102",0,"P3130102;0"]
[null,null,null,null,null,null,null,"P313010201",0,"P313010201;0"]
[null,null,null,null,null,null,null,"P313010202",0,"P313010202;0"]
[null,null,null,null,null,null,null,"P313010203",0,"P313010203;0"]
[]
[null,null,null,null,null,null,null,"I4",{"$f":"'Cuadro de Resultado'!E6","v":0},"I4;0"]
[null,null,null,null,null,null,null,"I41",{"$f":"'Cuadro de Resultado'!E7","v":0},"I41;0"]
[null,null,null,null,null,null,null,"I411",{"$f":"'Cuadro de Resultado'!E8","v":0},"I411;0"]
[null,null,null,null,null,null,null,"I41101",{"$f":"'Cuadro de Resultado'!E9","v":0},"I41101;0"]
[null,null,null,null,null,null,null,"I4110101",{"$f":"'Cuadro de Resultado'!E10","v":0},"I4110101;0"]
[null,null,null,null,null,null,null,"I411010101",{"$f":"'Cuadro de Resultado'!E11","v":0},"I411010101;0"]
[null,null,null,null,null,null,null,"I411010102",{"$f":"'Cuadro de Resultado'!E12","v":0},"I411010102;0"]
[null,null,null,null,null,null,null,"I411010103",{"$f":"'Cuadro de Resultado'!E13","v":0},"I411010103;0"]
[null,null,null,null,null,null,null,"I411010104",{"$f":"'Cuadro de Resultado'!E14","v":0},"I411010104;0"]
[null,null,null,null,null,null,null,"I411010105",{"$f":"'Cuadro de Resultado'!E15","v":0},"I411010105;0"]
[null,null,null,null,null,null,null,"I411010106",{"$f":"'Cuadro de Resultado'!E16","v":0},"I411010106;0"]
[null,null,null,null,null,null,null,"I411010107",{"$f":"'Cuadro de Resultado'!E17","v":0},"I411010107;0"]
[null,null,null,null,null,null,null,"I411010108",{"$f":"'Cuadro de Resultado'!E18","v":0},"I411010108;0"]
[null,null,null,null,null,null,null,"I411010109",{"$f":"'Cuadro de Resultado'!E19","v":0},"I411010109;0"]
[null,null,null,null,null,null,null,"I411010110",{"$f":"'Cuadro de Resultado'!E20","v":0},"I411010110;0"]
[null,null,null,null,null,null,null,"I411010111",{"$f":"'Cuadro de Resultado'!E21","v":0},"I411010111;0"]
[null,null,null,null,null,null,null,"I411010112",{"$f":"'Cuadro de Resultado'!E22","v":0},"I411010112;0"]
[null,null,null,null,null,null,null,"I4110102",{"$f":"'Cuadro de Resultado'!E23","v":0},"I4110102;0"]
[null,null,null,null,null,null,null,"I411010201",{"$f":"'Cuadro de Resultado'!E24","v":0},"I411010201;0"]
[null,null,null,null,null,null,null,"I411010202",{"$f":"'Cuadro de Resultado'!E25","v":0},"I411010202;0"]
[null,null,null,null,null,null,null,"I411010203",{"$f":"'Cuadro de Resultado'!E26","v":0},"I411010203;0"]
[null,null,null,null,null,null,null,"I411010204",{"$f":"'Cuadro de Resultado'!E27","v":0},"I411010204;0"]
[null,null,null,null,null,null,null,"I411010205",{"$f":"'Cuadro de Resultado'!E28","v":0},"I411010205;0"]
[null,null,null,null,null,null,null,"I411010206",{"$f":"'Cuadro de Resultado'!E29","v":0},"I411010206;0"]
[null,null,null,null,null,null,null,"I411010207",{"$f":"'Cuadro de Resultado'!E30","v":0},"I411010207;0"]
[null,null,null,null,null,null,null,"I411010208",{"$f":"'Cuadro de Resultado'!E31","v":0},"I411010208;0"]
[null,null,null,null,null,null,null,"I411010209",{"$f":"'Cuadro de Resultado'!E32","v":0},"I411010209;0"]
[null,null,null,null,null,null,null,"I411010210",{"$f":"'Cuadro de Resultado'!E33","v":0},"I411010210;0"]
[null,null,null,null,null,null,null,"I411010211",{"$f":"'Cuadro de Resultado'!E34","v":0},"I411010211;0"]
[null,null,null,null,null,null,null,"I411010212",{"$f":"'Cuadro de Resultado'!E35","v":0},"I411010212;0"]
[null,null,null,null,null,null,null,"I4110103",{"$f":"'Cuadro de Resultado'!E36","v":0},"I4110103;0"]
[null,null,null,null,null,null,null,"I411010301",{"$f":"'Cuadro de Resultado'!E37","v":0},"I411010301;0"]
[null,null,null,null,null,null,null,"I411010302",{"$f":"'Cuadro de Resultado'!E38","v":0},"I411010302;0"]
[null,null,null,null,null,null,null,"I411010303",{"$f":"'Cuadro de Resultado'!E39","v":0},"I411010303;0"]
[null,null,null,null,null,null,null,"I411010304",{"$f":"'Cuadro de Resultado'!E40","v":0},"I411010304;0"]
[null,null,null,null,null,null,null,"I411010305",{"$f":"'Cuadro de Resultado'!E41","v":0},"I411010305;0"]
[null,null,null,null,null,null,null,"I411010306",{"$f":"'Cuadro de Resultado'!E42","v":0},"I411010306;0"]
[null,null,null,null,null,null,null,"I411010307",{"$f":"'Cuadro de Resultado'!E43","v":0},"I411010307;0"]
[null,null,null,null,null,null,null,"I411010308",{"$f":"'Cuadro de Resultado'!E44","v":0},"I411010308;0"]
[null,null,null,null,null,null,null,"I411010309",{"$f":"'Cuadro de Resultado'!E45","v":0},"I411010309;0"]
[null,null,null,null,null,null,null,"I411010310",{"$f":"'Cuadro de Resultado'!E46","v":0},"I411010310;0"]
[null,null,null,null,null,null,null,"I411010311",{"$f":"'Cuadro de Resultado'!E47","v":0},"I411010311;0"]
[null,null,null,null,null,null,null,"I411010312",{"$f":"'Cuadro de Resultado'!E48","v":0},"I411010312;0"]
[null,null,null,null,null,null,null,"I4110104",{"$f":"'Cuadro de Resultado'!E49","v":0},"I4110104;0"]
[null,null,null,null,null,null,null,"I411010401",{"$f":"'Cuadro de Resultado'!E50","v":0},"I411010401;0"]
[null,null,null,null,null,null,null,"I411010402",{"$f":"'Cuadro de Resultado'!E51","v":0},"I411010402;0"]
[null,null,null,null,null,null,null,"I411010403",{"$f":"'Cuadro de Resultado'!E52","v":0},"I411010403;0"]
[null,null,null,null,null,null,null,"I411010404",{"$f":"'Cuadro de Resultado'!E53","v":0},"I411010404;0"]
[null,null,null,null,null,null,null,"I411010405",{"$f":"'Cuadro de Resultado'!E54","v":0},"I411010405;0"]
[null,null,null,null,null,null,null,"I411010406",{"$f":"'Cuadro de Resultado'!E55","v":0},"I411010406;0"]
[null,null,null,null,null,null,null,"I411010407",{"$f":"'Cuadro de Resultado'!E56","v":0},"I411010407;0"]
[null,null,null,null,null,null,null,"I411010408",{"$f":"'Cuadro de Resultado'!E57","v":0},"I411010408;0"]
[null,null,null,null,null,null,null,"I411010409",{"$f":"'Cuadro de Resultado'!E58","v":0},"I411010409;0"]
[null,null,null,null,null,null,null,"I411010410",{"$f":"'Cuadro de Resultado'!E59","v":0},{"$f":"H576&\";\"&I576","v":"I411010410;0"}]
[null,null,null,null,null,null,null,"I411010411",{"$f":"'Cuadro de Resultado'!E60","v":0},"I411010411;0"]
[null,null,null,null,null,null,null,"I411010412",{"$f":"'Cuadro de Resultado'!E61","v":0},"I411010412;0"]
[null,null,null,null,null,null,null,"I4110105",{"$f":"'Cuadro de Resultado'!E62","v":0},"I4110105;0"]
[null,null,null,null,null,null,null,"I411010501",{"$f":"'Cuadro de Resultado'!E63","v":0},"I411010501;0"]
[null,null,null,null,null,null,null,"I41102",{"$f":"'Cuadro de Resultado'!E64","v":0},"I41102;0"]
[null,null,null,null,null,null,null,"I4110201",{"$f":"'Cuadro de Resultado'!E65","v":0},"I4110201;0"]
[null,null,null,null,null,null,null,"I411020101",{"$f":"'Cuadro de Resultado'!E66","v":0},"I411020101;0"]
[null,null,null,null,null,null,null,"I411020102",{"$f":"'Cuadro de Resultado'!E67","v":0},"I411020102;0"]
[null,null,null,null,null,null,null,"I411020103",{"$f":"'Cuadro de Resultado'!E68","v":0},"I411020103;0"]
[null,null,null,null,null,null,null,"I411020104",{"$f":"'Cuadro de Resultado'!E69","v":0},"I411020104;0"]
[null,null,null,null,null,null,null,"I411020105",{"$f":"'Cuadro de Resultado'!E70","v":0},"I411020105;0"]
[null,null,null,null,null,null,null,"I411020106",{"$f":"'Cuadro de Resultado'!E71","v":0},"I411020106;0"]
[null,null,null,null,null,null,null,"I41103",{"$f":"'Cuadro de Resultado'!E72","v":0},"I41103;0"]
[null,null,null,null,null,null,null,"I4110301",{"$f":"'Cuadro de Resultado'!E73","v":0},"I4110301;0"]
[null,null,null,null,null,null,null,"I411030101",{"$f":"'Cuadro de Resultado'!E74","v":0},"I411030101;0"]
[null,null,null,null,null,null,null,"I411030102",{"$f":"'Cuadro de Resultado'!E75","v":0},"I411030102;0"]
[null,null,null,null,null,null,null,"I411030103",{"$f":"'Cuadro de Resultado'!E76","v":0},"I411030103;0"]
[null,null,null,null,null,null,null,"I4110302",{"$f":"'Cuadro de Resultado'!E77","v":0},"I4110302;0"]
[null,null,null,null,null,null,null,"I411030201",{"$f":"'Cuadro de Resultado'!E78","v":0},"I411030201;0"]
[null,null,null,null,null,null,null,"I411030202",{"$f":"'Cuadro de Resultado'!E79","v":0},"I411030202;0"]
[null,null,null,null,null,null,null,"I411030203",{"$f":"'Cuadro de Resultado'!E80","v":0},"I411030203;0"]
[null,null,null,null,null,null,null,"I411030204",{"$f":"'Cuadro de Resultado'!E81","v":0},"I411030204;0"]
[null,null,null,null,null,null,null,"I411030205",{"$f":"'Cuadro de Resultado'!E82","v":0},"I411030205;0"]
[null,null,null,null,null,null,null,"I411030206",{"$f":"'Cuadro de Resultado'!E83","v":0},"I411030206;0"]
[null,null,null,null,null,null,null,"I411030207",{"$f":"'Cuadro de Resultado'!E84","v":0},"I411030207;0"]
[null,null,null,null,null,null,null,"I411030208",{"$f":"'Cuadro de Resultado'!E85","v":0},"I411030208;0"]
[null,null,null,null,null,null,null,"I41104",{"$f":"'Cuadro de Resultado'!E86","v":0},"I41104;0"]
[null,null,null,null,null,null,null,"I4110401",{"$f":"'Cuadro de Resultado'!E87","v":0},"I4110401;0"]
[null,null,null,null,null,null,null,"I411040101",{"$f":"'Cuadro de Resultado'!E88","v":0},"I411040101;0"]
[null,null,null,null,null,null,null,"I411040102",{"$f":"'Cuadro de Resultado'!E89","v":0},"I411040102;0"]
[null,null,null,null,null,null,null,"I411040103",{"$f":"'Cuadro de Resultado'!E90","v":0},"I411040103;0"]
[null,null,null,null,null,null,null,"I4110402",{"$f":"'Cuadro de Resultado'!E91","v":0},"I4110402;0"]
[null,null,null,null,null,null,null,"I411040201",{"$f":"'Cuadro de Resultado'!E92","v":0},"I411040201;0"]
[null,null,null,null,null,null,null,"I411040202",{"$f":"'Cuadro de Resultado'!E93","v":0},"I411040202;0"]
[null,null,null,null,null,null,null,"I411040203",{"$f":"'Cuadro de Resultado'!E94","v":0},"I411040203;0"]
[null,null,null,null,null,null,null,"I411040204",{"$f":"'Cuadro de Resultado'!E95","v":0},"I411040204;0"]
[null,null,null,null,null,null,null,"I411040205",{"$f":"'Cuadro de Resultado'!E96","v":0},"I411040205;0"]
[null,null,null,null,null,null,null,"I411040206",{"$f":"'Cuadro de Resultado'!E97","v":0},"I411040206;0"]
[null,null,null,null,null,null,null,"I411040207",{"$f":"'Cuadro de Resultado'!E98","v":0},"I411040207;0"]
[null,null,null,null,null,null,null,"I411040208",{"$f":"'Cuadro de Resultado'!E99","v":0},"I411040208;0"]
[null,null,null,null,null,null,null,"I411040209",{"$f":"'Cuadro de Resultado'!E100","v":0},"I411040209;0"]
[null,null,null,null,null,null,null,"I411040210",{"$f":"'Cuadro de Resultado'!E101","v":0},"I411040210;0"]
[null,null,null,null,null,null,null,"I411040211",{"$f":"'Cuadro de Resultado'!E102","v":0},"I411040211;0"]
[null,null,null,null,null,null,null,"I41105",{"$f":"'Cuadro de Resultado'!E103","v":0},"I41105;0"]
[null,null,null,null,null,null,null,"I4110501",{"$f":"'Cuadro de Resultado'!E104","v":0},"I4110501;0"]
[null,null,null,null,null,null,null,"I411050101",{"$f":"'Cuadro de Resultado'!E105","v":0},"I411050101;0"]
[null,null,null,null,null,null,null,"I411050102",{"$f":"'Cuadro de Resultado'!E106","v":0},"I411050102;0"]
[null,null,null,null,null,null,null,"I411050103",{"$f":"'Cuadro de Resultado'!E107","v":0},"I411050103;0"]
[null,null,null,null,null,null,null,"I411050104",{"$f":"'Cuadro de Resultado'!E108","v":0},"I411050104;0"]
[null,null,null,null,null,null,null,"I411050105",{"$f":"'Cuadro de Resultado'!E109","v":0},"I411050105;0"]
[null,null,null,null,null,null,null,"I4110502",{"$f":"'Cuadro de Resultado'!E110","v":0},"I4110502;0"]
[null,null,null,null,null,null,null,"I411050201",{"$f":"'Cuadro de Resultado'!E111","v":0},"I411050201;0"]
[null,null,null,null,null,null,null,"I411050202",{"$f":"'Cuadro de Resultado'!E112","v":0},"I411050202;0"]
[null,null,null,null,null,null,null,"I411050203",{"$f":"'Cuadro de Resultado'!E113","v":0},"I411050203;0"]
[null,null,null,null,null,null,null,"I411050204",{"$f":"'Cuadro de Resultado'!E114","v":0},"I411050204;0"]
[null,null,null,null,null,null,null,"I411050205",{"$f":"'Cuadro de Resultado'!E115","v":0},"I411050205;0"]
[null,null,null,null,null,null,null,"I4110503",{"$f":"'Cuadro de Resultado'!E116","v":0},"I4110503;0"]
[null,null,null,null,null,null,null,"I411050301",{"$f":"'Cuadro de Resultado'!E117","v":0},"I411050301;0"]
[null,null,null,null,null,null,null,"I411050302",{"$f":"'Cuadro de Resultado'!E118","v":0},"I411050302;0"]
[null,null,null,null,null,null,null,"I42",{"$f":"'Cuadro de Resultado'!E119","v":0},"I42;0"]
[null,null,null,null,null,null,null,"I421",{"$f":"'Cuadro de Resultado'!E120","v":0},"I421;0"]
[null,null,null,null,null,null,null,"I42101",{"$f":"'Cuadro de Resultado'!E121","v":0},"I42101;0"]
[null,null,null,null,null,null,null,"I4210101",{"$f":"'Cuadro de Resultado'!E122","v":0},"I4210101;0"]
[null,null,null,null,null,null,null,"I421010101",{"$f":"'Cuadro de Resultado'!E123","v":0},{"$f":"H640&\";\"&I640","v":"I421010101;0"}]
[null,null,null,null,null,null,null,"I421010102",{"$f":"'Cuadro de Resultado'!E124","v":0},"I421010102;0"]
[null,null,null,null,null,null,null,"I421010103",{"$f":"'Cuadro de Resultado'!E125","v":0},"I421010103;0"]
[null,null,null,null,null,null,null,"I421010104",{"$f":"'Cuadro de Resultado'!E126","v":0},"I421010104;0"]
[null,null,null,null,null,null,null,"I421010105",{"$f":"'Cuadro de Resultado'!E127","v":0},"I421010105;0"]
[null,null,null,null,null,null,null,"I421010106",{"$f":"'Cuadro de Resultado'!E128","v":0},"I421010106;0"]
[null,null,null,null,null,null,null,"I421010107",{"$f":"'Cuadro de Resultado'!E129","v":0},"I421010107;0"]
[null,null,null,null,null,null,null,"I421010108",{"$f":"'Cuadro de Resultado'!E130","v":0},"I421010108;0"]
[null,null,null,null,null,null,null,"I42102",{"$f":"'Cuadro de Resultado'!E131","v":0},"I42102;0"]
[null,null,null,null,null,null,null,"I4210201",{"$f":"'Cuadro de Resultado'!E132","v":0},"I4210201;0"]
[null,null,null,null,null,null,null,"I421020101",{"$f":"'Cuadro de Resultado'!E133","v":0},"I421020101;0"]
[]
[null,null,null,null,null,null,null,"G5",{"$f":"'Cuadro de Resultado'!E135","v":0},"G5;0"]
[null,null,null,null,null,null,null,"G51",{"$f":"'Cuadro de Resultado'!E136","v":0},"G51;0"]
[null,null,null,null,null,null,null,"G511",{"$f":"'Cuadro de Resultado'!E137","v":0},"G511;0"]
[null,null,null,null,null,null,null,"G51101",{"$f":"'Cuadro de Resultado'!E138","v":0},"G51101;0"]
[null,null,null,null,null,null,null,"G5110101",{"$f":"'Cuadro de Resultado'!E139","v":0},"G5110101;0"]
[null,null,null,null,null,null,null,"G511010101",{"$f":"'Cuadro de Resultado'!E140","v":0},"G511010101;0"]
[null,null,null,null,null,null,null,"G511010102",{"$f":"'Cuadro de Resultado'!E141","v":0},"G511010102;0"]
[null,null,null,null,null,null,null,"G511010103",{"$f":"'Cuadro de Resultado'!E142","v":0},"G511010103;0"]
[null,null,null,null,null,null,null,"G511010104",{"$f":"'Cuadro de Resultado'!E143","v":0},"G511010104;0"]
[null,null,null,null,null,null,null,"G511010105",{"$f":"'Cuadro de Resultado'!E144","v":0},"G511010105;0"]
[null,null,null,null,null,null,null,"G511010106",{"$f":"'Cuadro de Resultado'!E145","v":0},"G511010106;0"]
[null,null,null,null,null,null,null,"G5110102",{"$f":"'Cuadro de Resultado'!E146","v":0},"G5110102;0"]
[null,null,null,null,null,null,null,"G511010201",{"$f":"'Cuadro de Resultado'!E147","v":0},"G511010201;0"]
[null,null,null,null,null,null,null,"G511010202",{"$f":"'Cuadro de Resultado'!E148","v":0},"G511010202;0"]
[null,null,null,null,null,null,null,"G511010203",{"$f":"'Cuadro de Resultado'!E149","v":0},"G511010203;0"]
[null,null,null,null,null,null,null,"G511010204",{"$f":"'Cuadro de Resultado'!E150","v":0},"G511010204;0"]
[null,null,null,null,null,null,null,"G511010205",{"$f":"'Cuadro de Resultado'!E151","v":0},"G511010205;0"]
[null,null,null,null,null,null,null,"G511010206",{"$f":"'Cuadro de Resultado'!E152","v":0},"G511010206;0"]
[null,null,null,null,null,null,null,"G5110103",{"$f":"'Cuadro de Resultado'!E153","v":0},"G5110103;0"]
[null,null,null,null,null,null,null,"G511010301",{"$f":"'Cuadro de Resultado'!E154","v":0},"G511010301;0"]
[null,null,null,null,null,null,null,"G511010302",{"$f":"'Cuadro de Resultado'!E155","v":0},"G511010302;0"]
[null,null,null,null,null,null,null,"G511010303",{"$f":"'Cuadro de Resultado'!E156","v":0},"G511010303;0"]
[null,null,null,null,null,null,null,"G511010304",{"$f":"'Cuadro de Resultado'!E157","v":0},"G511010304;0"]
[null,null,null,null,null,null,null,"G511010305",{"$f":"'Cuadro de Resultado'!E158","v":0},"G511010305;0"]
[null,null,null,null,null,null,null,"G511010306",{"$f":"'Cuadro de Resultado'!E159","v":0},"G511010306;0"]
[null,null,null,null,null,null,null,"G5110104",{"$f":"'Cuadro de Resultado'!E160","v":0},"G5110104;0"]
[null,null,null,null,null,null,null,"G511010401",{"$f":"'Cuadro de Resultado'!E161","v":0},"G511010401;0"]
[null,null,null,null,null,null,null,"G511010402",{"$f":"'Cuadro de Resultado'!E162","v":0},"G511010402;0"]
[null,null,null,null,null,null,null,"G511010403",{"$f":"'Cuadro de Resultado'!E163","v":0},"G511010403;0"]
[null,null,null,null,null,null,null,"G511010404",{"$f":"'Cuadro de Resultado'!E164","v":0},"G511010404;0"]
[null,null,null,null,null,null,null,"G511010405",{"$f":"'Cuadro de Resultado'!E165","v":0},"G511010405;0"]
[null,null,null,null,null,null,null,"G511010406",{"$f":"'Cuadro de Resultado'!E166","v":0},"G511010406;0"]
[null,null,null,null,null,null,null,"G511010407",{"$f":"'Cuadro de Resultado'!E167","v":0},"G511010407;0"]
[null,null,null,null,null,null,null,"G5110105",{"$f":"'Cuadro de Resultado'!E168","v":0},"G5110105;0"]
[null,null,null,null,null,null,null,"G511010501",{"$f":"'Cuadro de Resultado'!E169","v":0},"G511010501;0"]
[null,null,null,null,null,null,null,"G511010502",{"$f":"'Cuadro de Resultado'!E170","v":0},"G511010502;0"]
[null,null,null,null,null,null,null,"G511010503",{"$f":"'Cuadro de Resultado'!E171","v":0},"G511010503;0"]
[null,null,null,null,null,null,null,"G511010504",{"$f":"'Cuadro de Resultado'!E172","v":0},"G511010504;0"]
[null,null,null,null,null,null,null,"G511010505",{"$f":"'Cuadro de Resultado'!E173","v":0},"G511010505;0"]
[null,null,null,null,null,null,null,"G5110106",{"$f":"'Cuadro de Resultado'!E174","v":0},"G5110106;0"]
[null,null,null,null,null,null,null,"G511010601",{"$f":"'Cuadro de Resultado'!E175","v":0},"G511010601;0"]
[null,null,null,null,null,null,null,"G511010602",{"$f":"'Cuadro de Resultado'!E176","v":0},"G511010602;0"]
[null,null,null,null,null,null,null,"G511010603",{"$f":"'Cuadro de Resultado'!E177","v":0},"G511010603;0"]
[null,null,null,null,null,null,null,"G511010604",{"$f":"'Cuadro de Resultado'!E178","v":0},"G511010604;0"]
[null,null,null,null,null,null,null,"G511010605",{"$f":"'Cuadro de Resultado'!E179","v":0},"G511010605;0"]
[null,null,null,null,null,null,null,"G51102",{"$f":"'Cuadro de Resultado'!E180","v":0},"G51102;0"]
[null,null,null,null,null,null,null,"G5110201",{"$f":"'Cuadro de Resultado'!E181","v":0},"G5110201;0"]
[null,null,null,null,null,null,null,"G511020101",{"$f":"'Cuadro de Resultado'!E182","v":0},"G511020101;0"]
[null,null,null,null,null,null,null,"G511020102",{"$f":"'Cuadro de Resultado'!E183","v":0},"G511020102;0"]
[null,null,null,null,null,null,null,"G5110202",{"$f":"'Cuadro de Resultado'!E184","v":0},"G5110202;0"]
[null,null,null,null,null,null,null,"G511020201",{"$f":"'Cuadro de Resultado'!E185","v":0},"G511020201;0"]
[null,null,null,null,null,null,null,"G511020202",{"$f":"'Cuadro de Resultado'!E186","v":0},"G511020202;0"]
[null,null,null,null,null,null,null,"G511020203",{"$f":"'Cuadro de Resultado'!E187","v":0},{"$f":"H704&\";\"&I704","v":"G511020203;0"}]
[null,null,null,null,null,null,null,"G511020204",{"$f":"'Cuadro de Resultado'!E188","v":0},"G511020204;0"]
[null,null,null,null,null,null,null,"G511020205",{"$f":"'Cuadro de Resultado'!E189","v":0},"G511020205;0"]
[null,null,null,null,null,null,null,"G511020206",{"$f":"'Cuadro de Resultado'!E190","v":0},"G511020206;0"]
[null,null,null,null,null,null,null,"G511020207",{"$f":"'Cuadro de Resultado'!E191","v":0},"G511020207;0"]
[null,null,null,null,null,null,null,"G511020208",{"$f":"'Cuadro de Resultado'!E192","v":0},"G511020208;0"]
[null,null,null,null,null,null,null,"G511020209",{"$f":"'Cuadro de Resultado'!E193","v":0},"G511020209;0"]
[null,null,null,null,null,null,null,"G51103",{"$f":"'Cuadro de Resultado'!E194","v":0},"G51103;0"]
[null,null,null,null,null,null,null,"G5110301",{"$f":"'Cuadro de Resultado'!E195","v":0},"G5110301;0"]
[null,null,null,null,null,null,null,"G511030101",{"$f":"'Cuadro de Resultado'!E196","v":0},"G511030101;0"]
[null,null,null,null,null,null,null,"G511030102",{"$f":"'Cuadro de Resultado'!E197","v":0},"G511030102;0"]
[null,null,null,null,null,null,null,"G511030103",{"$f":"'Cuadro de Resultado'!E198","v":0},"G511030103;0"]
[null,null,null,null,null,null,null,"G511030104",{"$f":"'Cuadro de Resultado'!E199","v":0},"G511030104;0"]
[null,null,null,null,null,null,null,"G511030105",{"$f":"'Cuadro de Resultado'!E200","v":0},"G511030105;0"]
[null,null,null,null,null,null,null,"G511030106",{"$f":"'Cuadro de Resultado'!E201","v":0},"G511030106;0"]
[null,null,null,null,null,null,null,"G511030107",{"$f":"'Cuadro de Resultado'!E202","v":0},"G511030107;0"]
[null,null,null,null,null,null,null,"G511030108",{"$f":"'Cuadro de Resultado'!E203","v":0},"G511030108;0"]
[null,null,null,null,null,null,null,"G51104",{"$f":"'Cuadro de Resultado'!E204","v":0},"G51104;0"]
[null,null,null,null,null,null,null,"G5110401",{"$f":"'Cuadro de Resultado'!E205","v":0},"G5110401;0"]
[null,null,null,null,null,null,null,"G511040101",{"$f":"'Cuadro de Resultado'!E206","v":0},"G511040101;0"]
[null,null,null,null,null,null,null,"G511040102",{"$f":"'Cuadro de Resultado'!E207","v":0},"G511040102;0"]
[null,null,null,null,null,null,null,"G511040103",{"$f":"'Cuadro de Resultado'!E208","v":0},"G511040103;0"]
[null,null,null,null,null,null,null,"G511040104",{"$f":"'Cuadro de Resultado'!E209","v":0},"G511040104;0"]
[null,null,null,null,null,null,null,"G5110402",{"$f":"'Cuadro de Resultado'!E210","v":0},"G5110402;0"]
[null,null,null,null,null,null,null,"G511040201",{"$f":"'Cuadro de Resultado'!E211","v":0},"G511040201;0"]
[null,null,null,null,null,null,null,"G511040202",{"$f":"'Cuadro de Resultado'!E212","v":0},"G511040202;0"]
[null,null,null,null,null,null,null,"G5110403",{"$f":"'Cuadro de Resultado'!E213","v":0},"G5110403;0"]
[null,null,null,null,null,null,null,"G511040301",{"$f":"'Cuadro de Resultado'!E214","v":0},"G511040301;0"]
[null,null,null,null,null,null,null,"G511040302",{"$f":"'Cuadro de Resultado'!E215","v":0},"G511040302;0"]
[null,null,null,null,null,null,null,"G511040303",{"$f":"'Cuadro de Resultado'!E216","v":0},"G511040303;0"]
[null,null,null,null,null,null,null,"G511040304",{"$f":"'Cuadro de Resultado'!E217","v":0},"G511040304;0"]
[null,null,null,null,null,null,null,"G511040305",{"$f":"'Cuadro de Resultado'!E218","v":0},"G511040305;0"]
[null,null,null,null,null,null,null,"G511040306",{"$f":"'Cuadro de Resultado'!E219","v":0},"G511040306;0"]
[null,null,null,null,null,null,null,"G511040307",{"$f":"'Cuadro de Resultado'!E220","v":0},"G511040307;0"]
[null,null,null,null,null,null,null,"G511040308",{"$f":"'Cuadro de Resultado'!E221","v":0},"G511040308;0"]
[null,null,null,null,null,null,null,"G511040309",{"$f":"'Cuadro de Resultado'!E222","v":0},"G511040309;0"]
[null,null,null,null,null,null,null,"G511040310",{"$f":"'Cuadro de Resultado'!E223","v":0},"G511040310;0"]
[null,null,null,null,null,null,null,"G511040311",{"$f":"'Cuadro de Resultado'!E224","v":0},"G511040311;0"]
[null,null,null,null,null,null,null,"G511040312",{"$f":"'Cuadro de Resultado'!E225","v":0},"G511040312;0"]
[null,null,null,null,null,null,null,"G511040313",{"$f":"'Cuadro de Resultado'!E226","v":0},"G511040313;0"]
[null,null,null,null,null,null,null,"G511040314",{"$f":"'Cuadro de Resultado'!E227","v":0},"G511040314;0"]
[null,null,null,null,null,null,null,"G511040315",{"$f":"'Cuadro de Resultado'!E228","v":0},"G511040315;0"]
[null,null,null,null,null,null,null,"G511040316",{"$f":"'Cuadro de Resultado'!E229","v":0},"G511040316;0"]
[null,null,null,null,null,null,null,"G511040317",{"$f":"'Cuadro de Resultado'!E230","v":0},"G511040317;0"]
[null,null,null,null,null,null,null,"G511040318",{"$f":"'Cuadro de Resultado'!E231","v":0},"G511040318;0"]
[null,null,null,null,null,null,null,"G511040319",{"$f":"'Cuadro de Resultado'!E232","v":0},"G511040319;0"]
[null,null,null,null,null,null,null,"G511040320",{"$f":"'Cuadro de Resultado'!E233","v":0},"G511040320;0"]
[null,null,null,null,null,null,null,"G5110404",{"$f":"'Cuadro de Resultado'!E234","v":0},"G5110404;0"]
[null,null,null,null,null,null,null,"G511040401",{"$f":"'Cuadro de Resultado'!E235","v":0},"G511040401;0"]
[null,null,null,null,null,null,null,"G511040402",{"$f":"'Cuadro de Resultado'!E236","v":0},"G511040402;0"]
[null,null,null,null,null,null,null,"G511040403",{"$f":"'Cuadro de Resultado'!E237","v":0},"G511040403;0"]
[null,null,null,null,null,null,null,"G511040404",{"$f":"'Cuadro de Resultado'!E238","v":0},"G511040404;0"]
[null,null,null,null,null,null,null,"G511040405",{"$f":"'Cuadro de Resultado'!E239","v":0},"G511040405;0"]
[null,null,null,null,null,null,null,"G511040406",{"$f":"'Cuadro de Resultado'!E240","v":0},"G511040406;0"]
[null,null,null,null,null,null,null,"G511040407",{"$f":"'Cuadro de Resultado'!E241","v":0},"G511040407;0"]
[null,null,null,null,null,null,null,"G5110405",{"$f":"'Cuadro de Resultado'!E242","v":0},"G5110405;0"]
[null,null,null,null,null,null,null,"G511040501",{"$f":"'Cuadro de Resultado'!E243","v":0},"G511040501;0"]
[null,null,null,null,null,null,null,"G511040502",{"$f":"'Cuadro de Resultado'!E244","v":0},"G511040502;0"]
[null,null,null,null,null,null,null,"G511040503",{"$f":"'Cuadro de Resultado'!E245","v":0},"G511040503;0"]
[null,null,null,null,null,null,null,"G5110406",{"$f":"'Cuadro de Resultado'!E246","v":0},"G5110406;0"]
[null,null,null,null,null,null,null,"G511040601",{"$f":"'Cuadro de Resultado'!E247","v":0},"G511040601;0"]
[null,null,null,null,null,null,null,"G511040602",{"$f":"'Cuadro de Resultado'!E248","v":0},"G511040602;0"]
[null,null,null,null,null,null,null,"G511040603",{"$f":"'Cuadro de Resultado'!E249","v":0},"G511040603;0"]
[null,null,null,null,null,null,null,"G51105",{"$f":"'Cuadro de Resultado'!E250","v":0},"G51105;0"]
[null,null,null,null,null,null,null,"G5110501",{"$f":"'Cuadro de Resultado'!E251","v":0},{"$f":"H768&\";\"&I768","v":"G5110501;0"}]
[null,null,null,null,null,null,null,"G511050101",{"$f":"'Cuadro de Resultado'!E252","v":0},"G511050101;0"]
[null,null,null,null,null,null,null,"G511050102",{"$f":"'Cuadro de Resultado'!E253","v":0},"G511050102;0"]
[null,null,null,null,null,null,null,"G511050103",{"$f":"'Cuadro de Resultado'!E254","v":0},"G511050103;0"]
[null,null,null,null,null,null,null,"G511050104",{"$f":"'Cuadro de Resultado'!E255","v":0},"G511050104;0"]
[null,null,null,null,null,null,null,"G511050105",{"$f":"'Cuadro de Resultado'!E256","v":0},"G511050105;0"]
[null,null,null,null,null,null,null,"G511050106",{"$f":"'Cuadro de Resultado'!E257","v":0},"G511050106;0"]
[null,null,null,null,null,null,null,"G5110502",{"$f":"'Cuadro de Resultado'!E258","v":0},"G5110502;0"]
[null,null,null,null,null,null,null,"G511050201",{"$f":"'Cuadro de Resultado'!E259","v":0},"G511050201;0"]
[null,null,null,null,null,null,null,"G511050202",{"$f":"'Cuadro de Resultado'!E260","v":0},"G511050202;0"]
[null,null,null,null,null,null,null,"G511050203",{"$f":"'Cuadro de Resultado'!E261","v":0},"G511050203;0"]
[null,null,null,null,null,null,null,"G511050204",{"$f":"'Cuadro de Resultado'!E262","v":0},"G511050204;0"]
[null,null,null,null,null,null,null,"G511050205",{"$f":"'Cuadro de Resultado'!E263","v":0},"G511050205;0"]
[null,null,null,null,null,null,null,"G5110503",{"$f":"'Cuadro de Resultado'!E264","v":0},"G5110503;0"]
[null,null,null,null,null,null,null,"G511050301",{"$f":"'Cuadro de Resultado'!E265","v":0},"G511050301;0"]
[null,null,null,null,null,null,null,"G511050302",{"$f":"'Cuadro de Resultado'!E266","v":0},"G511050302;0"]
[null,null,null,null,null,null,null,"G511050303",{"$f":"'Cuadro de Resultado'!E267","v":0},"G511050303;0"]
[null,null,null,null,null,null,null,"G511050304",{"$f":"'Cuadro de Resultado'!E268","v":0},"G511050304;0"]
[null,null,null,null,null,null,null,"G511050305",{"$f":"'Cuadro de Resultado'!E269","v":0},"G511050305;0"]
[null,null,null,null,null,null,null,"G5110504",{"$f":"'Cuadro de Resultado'!E270","v":0},"G5110504;0"]
[null,null,null,null,null,null,null,"G511050401",{"$f":"'Cuadro de Resultado'!E271","v":0},"G511050401;0"]
[null,null,null,null,null,null,null,"G511050402",{"$f":"'Cuadro de Resultado'!E272","v":0},"G511050402;0"]
[null,null,null,null,null,null,null,"G511050403",{"$f":"'Cuadro de Resultado'!E273","v":0},"G511050403;0"]
[null,null,null,null,null,null,null,"G511050404",{"$f":"'Cuadro de Resultado'!E274","v":0},"G511050404;0"]
[null,null,null,null,null,null,null,"G511050405",{"$f":"'Cuadro de Resultado'!E275","v":0},"G511050405;0"]
[null,null,null,null,null,null,null,"G5110505",{"$f":"'Cuadro de Resultado'!E276","v":0},"G5110505;0"]
[null,null,null,null,null,null,null,"G511050501",{"$f":"'Cuadro de Resultado'!E277","v":0},"G511050501;0"]
[null,null,null,null,null,null,null,"G511050502",{"$f":"'Cuadro de Resultado'!E278","v":0},"G511050502;0"]
[null,null,null,null,null,null,null,"G511050503",{"$f":"'Cuadro de Resultado'!E279","v":0},"G511050503;0"]
[null,null,null,null,null,null,null,"G5110506",{"$f":"'Cuadro de Resultado'!E280","v":0},"G5110506;0"]
[null,null,null,null,null,null,null,"G511050601",{"$f":"'Cuadro de Resultado'!E281","v":0},"G511050601;0"]
[null,null,null,null,null,null,null,"G512",{"$f":"'Cuadro de Resultado'!E282","v":0},"G512;0"]
[null,null,null,null,null,null,null,"G51201",{"$f":"'Cuadro de Resultado'!E283","v":0},"G51201;0"]
[null,null,null,null,null,null,null,"G5120101",{"$f":"'Cuadro de Resultado'!E284","v":0},"G5120101;0"]
[null,null,null,null,null,null,null,"G512010101",{"$f":"'Cuadro de Resultado'!E285","v":0},"G512010101;0"]
[null,null,null,null,null,null,null,"G51202",{"$f":"'Cuadro de Resultado'!E286","v":0},"G51202;0"]
[null,null,null,null,null,null,null,"G5120201",{"$f":"'Cuadro de Resultado'!E287","v":0},"G5120201;0"]
[null,null,null,null,null,null,null,"G512020101",{"$f":"'Cuadro de Resultado'!E288","v":0},"G512020101;0"]
[null,null,null,null,null,null,null,"G512020102",{"$f":"'Cuadro de Resultado'!E289","v":0},"G512020102;0"]
[null,null,null,null,null,null,null,"G512020103",{"$f":"'Cuadro de Resultado'!E290","v":0},"G512020103;0"]
[null,null,null,null,null,null,null,"G512020104",{"$f":"'Cuadro de Resultado'!E291","v":0},"G512020104;0"]
[null,null,null,null,null,null,null,"G51203",{"$f":"'Cuadro de Resultado'!E292","v":0},"G51203;0"]
[null,null,null,null,null,null,null,"G5120301",{"$f":"'Cuadro de Resultado'!E293","v":0},"G5120301;0"]
[null,null,null,null,null,null,null,"G512030101",{"$f":"'Cuadro de Resultado'!E294","v":0},"G512030101;0"]
[null,null,null,null,null,null,null,"G512030102",{"$f":"'Cuadro de Resultado'!E295","v":0},"G512030102;0"]
[null,null,null,null,null,null,null,"G513",{"$f":"'Cuadro de Resultado'!E296","v":0},"G513;0"]
[null,null,null,null,null,null,null,"G51301",{"$f":"'Cuadro de Resultado'!E297","v":0},"G51301;0"]
[null,null,null,null,null,null,null,"G5130101",{"$f":"'Cuadro de Resultado'!E298","v":0},"G5130101;0"]
[null,null,null,null,null,null,null,"G513010101",{"$f":"'Cuadro de Resultado'!E299","v":0},"G513010101;0"]
[null,null,null,null,null,null,null,"G513010102",{"$f":"'Cuadro de Resultado'!E300","v":0},"G513010102;0"]
[null,null,null,null,null,null,null,"G513010103",{"$f":"'Cuadro de Resultado'!E301","v":0},"G513010103;0"]
[null,null,null,null,null,null,null,"G51302",{"$f":"'Cuadro de Resultado'!E302","v":0},"G51302;0"]
[null,null,null,null,null,null,null,"G5130201",{"$f":"'Cuadro de Resultado'!E303","v":0},"G5130201;0"]
[null,null,null,null,null,null,null,"G513020101",{"$f":"'Cuadro de Resultado'!E304","v":0},"G513020101;0"]
[null,null,null,null,null,null,null,"G51303",{"$f":"'Cuadro de Resultado'!E305","v":0},"G51303;0"]
[null,null,null,null,null,null,null,"G5130301",{"$f":"'Cuadro de Resultado'!E306","v":0},"G5130301;0"]
[null,null,null,null,null,null,null,"G513030101",{"$f":"'Cuadro de Resultado'!E307","v":0},"G513030101;0"]
[null,null,null,null,null,null,null,"G513030102",{"$f":"'Cuadro de Resultado'!E308","v":0},"G513030102;0"]
[null,null,null,null,null,null,null,"G52",{"$f":"'Cuadro de Resultado'!E309","v":0},"G52;0"]
[null,null,null,null,null,null,null,"G521",{"$f":"'Cuadro de Resultado'!E310","v":0},"G521;0"]
[null,null,null,null,null,null,null,"G52101",{"$f":"'Cuadro de Resultado'!E311","v":0},"G52101;0"]
[null,null,null,null,null,null,null,"G5210101",{"$f":"'Cuadro de Resultado'!E312","v":0},"G5210101;0"]
[null,null,null,null,null,null,null,"G521010101",{"$f":"'Cuadro de Resultado'!E313","v":0},"G521010101;0"]
[null,null,null,null,null,null,null,"G521010102",{"$f":"'Cuadro de Resultado'!E314","v":0},"G521010102;0"]
[null,null,null,null,null,null,null,"G521010103",{"$f":"'Cuadro de Resultado'!E315","v":0},{"$f":"H832&\";\"&I832","v":"G521010103;0"}]
[null,null,null,null,null,null,null,"G521010104",{"$f":"'Cuadro de Resultado'!E316","v":0},"G521010104;0"]
[null,null,null,null,null,null,null,"G521010105",{"$f":"'Cuadro de Resultado'!E317","v":0},"G521010105;0"]
[null,null,null,null,null,null,null,"G5210102",{"$f":"'Cuadro de Resultado'!E318","v":0},"G5210102;0"]
[null,null,null,null,null,null,null,"G521010201",{"$f":"'Cuadro de Resultado'!E319","v":0},"G521010201;0"]
[]
[null,null,null,null,null,null,null,"O7",{"$f":"'Cuenta de Orden'!E6","v":0},"O7;0"]
[null,null,null,null,null,null,null,"O71",{"$f":"'Cuenta de Orden'!E7","v":0},"O71;0"]
[null,null,null,null,null,null,null,"O711",{"$f":"'Cuenta de Orden'!E8","v":0},"O711;0"]
[null,null,null,null,null,null,null,"O71101",{"$f":"'Cuenta de Orden'!E9","v":0},"O71101;0"]
[null,null,null,null,null,null,null,"O7110101",{"$f":"'Cuenta de Orden'!E10","v":0},"O7110101;0"]
[null,null,null,null,null,null,null,"O711010101",{"$f":"'Cuenta de Orden'!E11","v":0},"O711010101;0"]
[null,null,null,null,null,null,null,"O711010102",{"$f":"'Cuenta de Orden'!E12","v":0},"O711010102;0"]
[null,null,null,null,null,null,null,"O711010103",{"$f":"'Cuenta de Orden'!E13","v":0},"O711010103;0"]
[null,null,null,null,null,null,null,"O711010104",{"$f":"'Cuenta de Orden'!E14","v":0},"O711010104;0"]
[null,null,null,null,null,null,null,"O711010105",{"$f":"'Cuenta de Orden'!E15","v":0},"O711010105;0"]
[null,null,null,null,null,null,null,"O711010106",{"$f":"'Cuenta de Orden'!E16","v":0},"O711010106;0"]
[null,null,null,null,null,null,null,"O711010107",{"$f":"'Cuenta de Orden'!E17","v":0},"O711010107;0"]
[null,null,null,null,null,null,null,"O711010108",{"$f":"'Cuenta de Orden'!E18","v":0},"O711010108;0"]
[null,null,null,null,null,null,null,"O711010109",{"$f":"'Cuenta de Orden'!E19","v":0},"O711010109;0"]
[null,null,null,null,null,null,null,"O711010110",{"$f":"'Cuenta de Orden'!E20","v":0},"O711010110;0"]
[null,null,null,null,null,null,null,"O7110102",{"$f":"'Cuenta de Orden'!E21","v":0},"O7110102;0"]
[null,null,null,null,null,null,null,"O711010201",{"$f":"'Cuenta de Orden'!E22","v":0},"O711010201;0"]
[null,null,null,null,null,null,null,"O711010202",{"$f":"'Cuenta de Orden'!E23","v":0},"O711010202;0"]
[null,null,null,null,null,null,null,"O72",{"$f":"'Cuenta de Orden'!E24","v":0},"O72;0"]
[null,null,null,null,null,null,null,"O721",{"$f":"'Cuenta de Orden'!E25","v":0},"O721;0"]
[null,null,null,null,null,null,null,"O72101",{"$f":"'Cuenta de Orden'!E26","v":0},"O72101;0"]
[null,null,null,null,null,null,null,"O7210101",{"$f":"'Cuenta de Orden'!E27","v":0},"O7210101;0"]
[null,null,null,null,null,null,null,"O721010101",{"$f":"'Cuenta de Orden'!E28","v":0},"O721010101;0"]
[null,null,null,null,null,null,null,"O721010102",{"$f":"'Cuenta de Orden'!E29","v":0},"O721010102;0"]
[null,null,null,null,null,null,null,"O721010103",{"$f":"'Cuenta de Orden'!E30","v":0},"O721010103;0"]
[null,null,null,null,null,null,null,"O721010104",{"$f":"'Cuenta de Orden'!E31","v":0},"O721010104;0"]
[null,null,null,null,null,null,null,"O721010105",{"$f":"'Cuenta de Orden'!E32","v":0},"O721010105;0"]
[null,null,null,null,null,null,null,"O721010106",{"$f":"'Cuenta de Orden'!E33","v":0},"O721010106;0"]
[null,null,null,null,null,null,null,"O721010107",{"$f":"'Cuenta de Orden'!E34","v":0},"O721010107;0"]
[null,null,null,null,null,null,null,"O721010108",{"$f":"'Cuenta de Orden'!E35","v":0},"O721010108;0"]
[null,null,null,null,null,null,null,"O721010109",{"$f":"'Cuenta de Orden'!E36","v":0},"O721010109;0"]
[null,null,null,null,null,null,null,"O721010110",{"$f":"'Cuenta de Orden'!E37","v":0},"O721010110;0"]
[null,null,null,null,null,null,null,"O7210102",{"$f":"'Cuenta de Orden'!E38","v":0},"O7210102;0"]
[null,null,null,null,null,null,null,"O721010201",{"$f":"'Cuenta de Orden'!E39","v":0},"O721010201;0"]
[null,null,null,null,null,null,null,"O721010202",{"$f":"'Cuenta de Orden'!E40","v":0},"O721010202;0"]
[]
[null,null,null,null,null,null,null,"O8",{"$f":"+'Cuenta de Orden'!E42","v":0},"O8;0"]
[null,null,null,null,null,null,null,"O81",{"$f":"+'Cuenta de Orden'!E43","v":0},"O81;0"]
[null,null,null,null,null,null,null,"O811",{"$f":"+'Cuenta de Orden'!E44","v":0},"O811;0"]
[null,null,null,null,null,null,null,"O81101",{"$f":"+'Cuenta de Orden'!E45","v":0},"O81101;0"]
[null,null,null,null,null,null,null,"O8110101",{"$f":"+'Cuenta de Orden'!E46","v":0},"O8110101;0"]
[null,null,null,null,null,null,null,"O811010101",{"$f":"+'Cuenta de Orden'!E47","v":0},"O811010101;0"]
[null,null,null,null,null,null,null,"O8110102",{"$f":"+'Cuenta de Orden'!E48","v":0},"O8110102;0"]
[null,null,null,null,null,null,null,"O811010201",{"$f":"+'Cuenta de Orden'!E49","v":0},"O811010201;0"]
[null,null,null,null,null,null,null,"O82",{"$f":"+'Cuenta de Orden'!E50","v":0},"O82;0"]
[null,null,null,null,null,null,null,"O821",{"$f":"+'Cuenta de Orden'!E51","v":0},"O821;0"]
[null,null,null,null,null,null,null,"O82101",{"$f":"+'Cuenta de Orden'!E52","v":0},"O82101;0"]
[null,null,null,null,null,null,null,"O8210101",{"$f":"+'Cuenta de Orden'!E53","v":0},"O8210101;0"]
[null,null,null,null,null,null,null,"O821010101",{"$f":"+'Cuenta de Orden'!E54","v":0},"O821010101;0"]
[null,null,null,null,null,null,null,"O8210102",{"$f":"+'Cuenta de Orden'!E55","v":0},"O8210102;0"]
[null,null,null,null,null,null,null,"O821010201",{"$f":"+'Cuenta de Orden'!E56","v":0},"O821010201;0"]

{"sheet":"Cuadro de Resultado","index":38,"n_rows":336,"n_cols":5,"rows_kept":336,"cut":false,"hidden":false,"merged":[[2,1,2,4],[3,1,3,3]]}
[]
[]
[null,"CUADRO DE RESULTADO"]
[null,"EJERCICIO",null,null,"AÑO"]
[null,"Cód. Cuenta","Descripción de Concepto","Ejercicio Anterior","Ejercicio Actual"]
[null,4,"INGRESOS",{"$f":"D7+D119","v":0},{"$f":"E7+E119","v":0}]
[null,41,"INGRESOS Operativos",{"$f":"D8","v":0},{"$f":"E8","v":0}]
[null,411,"Ingresos Operativos por Serv Financieros",{"$f":"D9+D64+D72+D86+D103","v":0},{"$f":"E9+E64+E72+E86+E103","v":0}]
[null,41101,"Intereses y Comisiones Cobrados por Créditos",{"$f":"D10+D23+D36+D49+D62","v":0},{"$f":"E10+E23+E36+E49+E62","v":0}]
[null,4110101,"Intereses Compensatorios Cobrados sobre Créditos",{"$f":"D11+D12+D13+D14+D15+D16+D17+D18+D19+D20+D21+D22","v":0},{"$f":"E11+E12+E13+E14+E15+E16+E17+E18+E19+E20+E21+E22","v":0}]
[null,411010101,"Intereses Compensatorios s/Amortizables"]
[null,411010102,"Intereses Compensatorios s/Plazo Único"]
[null,411010103,"Intereses Compensatorios p/Descuento de Documentos"]
[null,411010104,"Intereses Compensatorios s/Présta Cooperativas y Entidades sin Fines de Lucro"]
[null,411010105,"Intereses Compensatorios s/ Créditos Vinculados"]
[null,411010106,"Intereses Compensatorios s/ Préstamos a Ex Socios"]
[null,411010107,"Intereses Compensatorios s/ Créditos Judicializados"]
[null,411010108,"Intereses Compensatorios s/ Créditos Refinanciados"]
[null,411010109,"Intereses Compensatorios s/ Tarjetas de Crédito"]
[null,411010110,"Intereses Compensatorios s/ Créditos para Compra de Vivienda"]
[null,411010111,"Intereses Compensatorios s/ Créditos para remodelación de Vivienda"]
[null,411010112,"Intereses Compensatorios s/ Créditos Otorgados por las EIC"]
[null,4110102,"Comisiones Cobradas",{"$f":"D24+D25+D26+D27+D28+D29+D30+D31+D32+D33+D34+D35","v":0},{"$f":"E24+E25+E26+E27+E28+E29+E30+E31+E32+E33+E34+E35","v":0}]
[null,411010201,"Comisiones s/Amortizables"]
[null,411010202,"Comisiones s/Plazo Único"]
[null,411010203,"Comisiones p/Descuento de Documentos"]
[null,411010204,"Comisiones s/Présta Cooperativas y Entidades sin Fines de Lucro"]
[null,411010205,"Comisiones s/ Créditos Vinculados"]
[null,411010206,"Comisiones s/ Préstamos a Ex Socios"]
[null,411010207,"Comisiones s/ Créditos Judicializados"]
[null,411010208,"Comisiones s/ Créditos Refinanciados"]
[null,411010209,"Comisiones s/ Tarjetas de Crédito"]
[null,411010210,"Comisiones s/ Créditos para Compra de Vivienda"]
[null,411010211,"Comisiones s/ Créditos para remodelación de Vivienda"]
[null,411010212,"Comisiones s/ Créditos Otorgados por las EIC"]
[null,4110103,"Intereses Moratorios Cobrados",{"$f":"D37+D38+D39+D40+D41+D42+D43+D44+D45+D46+D47+D48","v":0},{"$f":"E37+E38+E39+E40+E41+E42+E43+E44+E45+E46+E47+E48","v":0}]
[null,411010301,"Intereses Moratorios s/Amortizables"]
[null,411010302,"Intereses Moratorios s/Plazo Único"]
[null,411010303,"Intereses Moratorios p/Descuento de Documentos"]
[null,411010304,"Intereses Moratorios s/Présta Cooperativas y Entidades sin Fines de Lucro"]
[null,411010305,"Intereses Moratorios s/ Créditos Vinculados"]
[null,411010306,"Intereses Moratorios s/ Préstamos a Ex Socios"]
[null,411010307,"Intereses Moratorios s/ Créditos Judicializados"]
[null,411010308,"Intereses Moratorios s/ Créditos Refinanciados"]
[null,411010309,"Intereses Moratorios s/ Tarjetas de Crédito"]
[null,411010310,"Intereses Moratorios s/ Créditos para Compra de Vivienda"]
[null,411010311,"Intereses Moratorios s/ Créditos para remodelación de Vivienda"]
[null,411010312,"Intereses Moratorios s/ Créditos Otorgados por las EIC"]
[null,4110104,"Intereses Punitorios Cobrados",{"$f":"D50+D51+D52+D53+D54+D55+D56+D57+D58+D59+D60+D61","v":0},{"$f":"E50+E51+E52+E53+E54+E55+E56+E57+E58+E59+E60+E61","v":0}]
[null,411010401,"Intereses Punitorios s/Amortizables"]
[null,411010402,"Intereses Punitorios s/Plazo Único"]
[null,411010403,"Intereses Punitorios p/Descuento de Documentos"]
[null,411010404,"Intereses Punitorios s/Présta Cooperativas y Entidades sin Fines de Lucro"]
[null,411010405,"Intereses Punitorios s/ Créditos Vinculados"]
[null,411010406,"Intereses Punitorios s/ Préstamos a Ex Socios"]
[null,411010407,"Intereses Punitorios s/ Créditos Judicializados"]
[null,411010408,"Intereses Punitorios s/ Créditos Refinanciados"]
[null,411010409,"Intereses Punitorios s/ Tarjetas de Crédito"]
[null,411010410,"Intereses Punitorios s/ Créditos para Compra de Vivienda"]
[null,411010411,"Intereses Punitorios s/ Créditos para remodelación de Vivienda"]
[null,411010412,"Intereses Punitorios s/ Créditos Otorgados por las EIC"]
[null,4110105,"Intereses y Accesorios s/Refinanciación",{"$f":"D63","v":0},{"$f":"E63","v":0}]
[null,411010501,"Intereses y Accesorios s/Refinanciación",0,0]
[null,41102,"Comisiones Cobradas sobre Servicios Financieros",{"$f":"D65","v":0},{"$f":"E65","v":0}]
[null,4110201,"Comisiones Cobradas sobre Servicios Financieros",{"$f":"D66+D67+D68+D69+D70+D71","v":0},{"$f":"E66+E67+E68+E69+E70+E71","v":0}]
[null,411020101,"Comisiones Cobradas s/ Tarjetas de Débito"]
[null,411020102,"Comisiones por emisión y renovación de Tarjetas de Débitos"]
[null,411020103,"Comisiones por emisión y renovación de Tarjetas de Créditos"]
[null,411020104,"Comisiones Cobradas s/ Cajeros Automáticos"]
[null,411020105,"Comisiones por servicios de fianzas, avales y otros"]
[null,411020106,"Comisiones por otros servicios Financieros"]
[null,41103,"Intereses Cobrados por Depósitos y Valores Financieros",{"$f":"D73+D77","v":0},{"$f":"E73+E77","v":0}]
[null,4110301,"Depósitos a la Vista",{"$f":"D74+D75+D76","v":0},{"$f":"E74+E75+E76","v":0}]
[null,411030101,"Intereses s/ Depósitos de Ahorro a la Vista Sector Cooperativo"]
[null,411030102,"Intereses s/ Depósitos a la Vista-Bancos"]
[null,411030103,"Intereses s/Depósitos a la Vista Otras Instituciones Financieras"]
[null,4110302,"Depósitos a Plazo",{"$f":"D78+D79+D80+D81+D82+D83+D84+D85","v":0},{"$f":"E78+E79+E80+E81+E82+E83+E84+E85","v":0}]
[null,411030201,"Intereses s/ CDA Bancos del País"]
[null,411030202,"Intereses sobre Valores emitidos por el Sector Público"]
[null,411030203,"Intereses sobre Valores emitidos por el Sector Privado"]
[null,411030204,"Intereses sobre Letras de Regulación Monetaria"]
[null,411030205,"Intereses sobre Depósitos a Plazo Otras Instituciones Financieras"]
[null,411030206,"Intereses s/Depósitos a Plazo Fijo Sector Cooperativo"]
[null,411030207,"Intereses s/Depósitos a Plazo Fijo Sector Bancos"]
[null,411030208,"Intereses s/Otros Valores"]
[null,41104,"Ingresos Operativos Varios",{"$f":"D87+D91","v":0},{"$f":"E87+E91","v":0}]
[null,4110401,"Desafectación de Previsiones",{"$f":"D88+D89+D90","v":0},{"$f":"E88+E89+E90","v":0}]
[null,411040101,"Previsiones p/ Créditos y otros activos"]
[null,411040102,"Previsiones Adicionales"]
[null,411040103,"Previsiones Opcionales para Coops Tipo C"]
[null,4110402,"Otros Ingresos Operativos Varios",{"$f":"D92+D93+D94+D95+D96+D97+D98+D99+D100+D101+D102","v":0},{"$f":"E92+E93+E94+E95+E96+E97+E98+E99+E100+E101+E102","v":0}]
[null,411040201,"Dividendos en Acciones y Participaciones"]
[null,411040202,"Participación en excedentes de Cooperativas"]
[null,411040203,"Cuotas de Ingreso no retornables"]
[null,411040204,"Créditos Liquidados por Incobrables Recuperados"]
[null,411040205,"Plusvalía por Venta de Inversiones"]
[null,411040206,"Rendimiento sobre Bienes Destinados a la Venta"]
[null,411040207,"Cuotas de Sostenimiento"]
[null,411040208,"Ingreso por Venta de Cartera"]
[null,411040209,"Descuentos en Cartera Comprada"]
[null,411040210,"Descuentos en Documentos comprados"]
[null,411040211,"Otros Ingresos y Servicios"]
[null,41105,"Ingresos por Ventas y Servicios no Financieros",{"$f":"D104+D110+D116","v":0},{"$f":"E104+E110+E116","v":0}]
[null,4110501,"Ventas y Servicios a Socios",{"$f":"D105+D106+D107+D108+D109","v":0},{"$f":"E105+E106+E107+E108+E109","v":0}]
[null,411050101,"Ventas de bienes"]
[null,411050102,"Servicios no Financieros"]
[null,411050103,"Servicios Básicos"]
[null,411050104,"Servicios de Protección a la Salud"]
[null,411050105,"Otros Ingresos y Servicios"]
[null,4110502,"Ventas y Servicios a No Socios",{"$f":"D111+D112+D113+D114+D115","v":0},{"$f":"E111+E112+E113+E114+E115","v":0}]
[null,411050201,"Ventas de bienes"]
[null,411050202,"Servicios no Financieros"]
[null,411050203,"Servicios Básicos"]
[null,411050204,"Servicios de Protección a la Salud"]
[null,411050205,"Otros Ingresos y Servicios"]
[null,4110503,"Educación Cooperativa",{"$f":"D117+D118","v":0},{"$f":"E117+E118","v":0}]
[null,411050301,"Servicios de Formación y Capacitación (70%)"]
[null,411050302,"Servicios de Actividades sociales y recretativas (30%)"]
[null,42,"INGRESOS NO OPERATIVOS",{"$f":"D120","v":0},{"$f":"E120","v":0}]
[null,421,"Ingresos Eventuales",{"$f":"D121+D131","v":0},{"$f":"E121+E131","v":0}]
[null,42101,"Ingresos Varios",{"$f":"D122","v":0},{"$f":"E122","v":0}]
[null,4210101,"Ingresos Varios",{"$f":"D123+D124+D125+D126+D127+D128+D129+D130","v":0},{"$f":"E123+E124+E125+E126+E127+E128+E129+E130","v":0}]
[null,421010101,"Excedente por Diferencia de Cambio"]
[null,421010102,"Utilidad en Venta de Activos Fijos"]
[null,421010103,"Utilidad en Venta de Bienes Adjudicados"]
[null,421010104,"Comisiones por Servicios de Cobranzas"]
[null,421010105,"Alquileres Cobrados"]
[null,421010106,"Ingresos Extraordinarios"]
[null,421010107,"Ingresos por Subsidios Recibidos"]
[null,421010108,"Otros Ingresos no Operativos"]
[null,42102,"Ingresos por Actividades Especiales",{"$f":"D132","v":0},{"$f":"E132","v":0}]
[null,4210201,"Ingresos por Actividades Especiales",{"$f":"D133","v":0},{"$f":"E133","v":0}]
[null,421020101,"Ingresos por Actividades Especiales"]
[]
[null,5,"EGRESOS",{"$f":"D136+D309","v":0},{"$f":"E136+E309","v":0}]
[null,51,"COSTOS Y GASTOS Operativos",{"$f":"D137+D282+D296","v":0},{"$f":"E137+E282+E296","v":0}]
[null,511,"Costos y Gastos Operativos Serv Financieros",{"$f":"D138+D180+D194+D204+D250","v":0},{"$f":"E138+E180+E194+E204+E250","v":0}]
[null,51101,"Intereses y Comisiones Pagados",{"$f":"D139+D146+D153+D160+D168+D174","v":0},{"$f":"E139+E146+E153+E160+E168+E174","v":0}]
[null,5110101,"Intereses Pagados por Captaciones Socios",{"$f":"D140+D141+D142+D143+D144+D145","v":0},{"$f":"E140+E141+E142+E143+E144+E145","v":0}]
[null,511010101,"Intereses Pagados p/Ahorro a la Vista personas físicas o naturales"]
[null,511010102,"Intereses Pagados p/ Ahorro a la Vista personas jurídicas"]
[null,511010103,"Intereses Pagados p/ Ahorros a Plazo personas físicas o naturales"]
[null,511010104,"Intereses Pagados p/ Ahorros a Plazo personas jurídicas"]
[null,511010105,"Intereses Pagados p/ Ahorros Programados Captados"]
[null,511010106,"Intereses Pagados p/ Otras Captaciones de Ahorros"]
[null,5110102,"Intereses Pagados por Captaciones No Socios",{"$f":"D147+D148+D149+D150+D151+D152","v":0},{"$f":"E147+E148+E149+E150+E151+E152","v":0}]
[null,511010201,"Intereses Pagados p/Ahorro a la Vista personas físicas o naturales"]
[null,511010202,"Intereses Pagados p/ Ahorro a la Vista personas jurídicas"]
[null,511010203,"Intereses Pagados p/ Ahorros a Plazo personas físicas o naturales"]
[null,511010204,"Intereses Pagados p/ Ahorros a Plazo personas jurídicas"]
[null,511010205,"Intereses Pagados p/ Ahorros Programados Captados"]
[null,511010206,"Intereses Pagados p/ Otras Captaciones de Ahorros"]
[null,5110103,"Intereses Pagados por Créditos Externos",{"$f":"D154+D155+D156+D157+D158+D159","v":0},{"$f":"E154+E155+E156+E157+E158+E159","v":0}]
[null,511010301,"Intereses Pagados a Otras Cooperativas e Instsin Fines de Lucro"]
[null,511010302,"Intereses Pagados a Entidades Bancarias y Financieras"]
[null,511010303,"Intereses Pagados por Deudas a Organismos Nacionales no Bancarios"]
[null,511010304,"Intereses Pagados por Deudas a Organismos Internacionales"]
[null,511010305,"Intereses Pagados por Títulos de Deuda-Bonos"]
[null,511010306,"Intereses Pagados por Sobregiros"]
[null,5110104,"Comisiones Pagadas por Servicios Financieros",{"$f":"D161+D162+D163+D164+D165+D166+D167","v":0},{"$f":"E161+E162+E163+E164+E165+E166+E167","v":0}]
[null,511010401,"Comisiones Pagadas por Servicios de Otras Cooperativas e Instsin Fines de Lucro"]
[null,511010402,"Comisiones Pagadas por Servicios Bancarios y Financieros"]
[null,511010403,"Comisiones Pagadas por Deudas a Organismos Nacionales no Bancarios"]
[null,511010404,"Comisiones Pagadas por Deudas a Organismos Internacionales"]
[null,511010405,"Comisiones Pagadas por Operaciones de Cobranza"]
[null,511010406,"Comisiones Pagadas por Títulos de Deuda-Bonos"]
[null,511010407,"Otras Comisiones Pagadas"]
[null,5110105,"Intereses Moratorios Pagados por Créditos Externos",{"$f":"D169+D170+D171+D172+D173","v":0},{"$f":"E169+E170+E171+E172+E173","v":0}]
[null,511010501,"Intereses Moratorios Pagados a Otras Cooperativas e Instsin Fines de Lucro"]
[null,511010502,"Intereses Moratorios Pagados a Entidades Bancarias y Financieras"]
[null,511010503,"Intereses Moratorios Pagados por Deudas a Organismos Nacionales no Bancarios"]
[null,511010504,"Intereses Moratorios Pagados por Deudas a Organismos Internacionales"]
[null,511010505,"Intereses Moratorios Pagados por Títulos de Deuda-Bonos"]
[null,5110106,"Intereses Punitorios Pagados por Créditos Externos",{"$f":"D175+D176+D177+D178+D179","v":0},{"$f":"E175+E176+E177+E178+E179","v":0}]
[null,511010601,"Intereses Punitorios Pagados a Otras Cooperativas e Instsin Fines de Lucro"]
[null,511010602,"Intereses Punitorios Pagados a Entidades Bancarias y Financieras"]
[null,511010603,"Intereses Punitorios Pagados por Deudas a Organismos Nacionales no Bancarios"]
[null,511010604,"Intereses Punitorios Pagados por Deudas a Organismos Internacionales"]
[null,511010605,"Intereses Punitorios Pagados por Títulos de Deuda-Bonos"]
[null,51102,"Previsiones",{"$f":"D181+D184","v":0},{"$f":"E181+E184","v":0}]
[null,5110201,"Previsiones para Créditos en Mora",{"$f":"D182+D183","v":0},{"$f":"E182+E183","v":0}]
[null,511020101,"Previsiones p/ Créditos"]
[null,511020102,"Previsiones Adicionales"]
[null,5110202,"Previsiones para Otros Activos de Riesgo",{"$f":"D185+D186+D187+D188+D189+D190+D191+D192+D193","v":0},{"$f":"E185+E186+E187+E188+E189+E190+E191+E192+E193","v":0}]
[null,511020201,"Previsiones para Depósitos a la Vista"]
[null,511020202,"Previsiones para Depósitos a Plazo, Valores Financieros e Inversiones Temporales"]
[null,511020203,"Previsiones para Cuentas a Cobrar"]
[null,511020204,"Previsiones para Otros Créditos"]
[null,511020205,"Previsiones sobre Inversiones"]
[null,511020206,"Previsiones sobre Activos Restringidos"]
[null,511020207,"Previsiones sobre Bienes Adjudicados a Realizar o Recibidos en Dación de Pago"]
[null,511020208,"Previsiones Existencias"]
[null,511020209,"Previsiones Créditos Diversos"]
[null,51103,"Otros Costos por Servicios Financieros",{"$f":"D195","v":0},{"$f":"E195","v":0}]
[null,5110301,"Otros Costos por Servicios Financieros",{"$f":"D196+D197+D198+D199+D200+D201+D202+D203","v":0},{"$f":"E196+E197+E198+E199+E200+E201+E202+E203","v":0}]
[null,511030101,"Sobrecosto en compra de Inversiones"]
[null,511030102,"Costo Procesamiento Tarjetas Débito"]
[null,511030103,"Costo Procesamiento Tarjetas Crédito"]
[null,511030104,"Descuentos Otorgados"]
[null,511030105,"Comisiones y Bonificaciones Pagadas"]
[null,511030106,"Costo Central de Riesgos INCOOP"]
[null,511030107,"Costo Fondo Garantía de Depósitos de Ahorros"]
[null,511030108,"Costos y Gastos Cajeros Automáticos"]
[null,51104,"Gastos Administrativos por Act Ahorro Cred",{"$f":"D205+D210+D213+D234+D242+D246","v":0},{"$f":"E205+E210+E213+E234+E242+E246","v":0}]
[null,5110401,"Gastos de Personal",{"$f":"D206+D207+D208+D209","v":0},{"$f":"E206+E207+E208+E209","v":0}]
[null,511040101,"Sueldos Personal Administrativo y Otros"]
[null,511040102,"Beneficios sociales"]
[null,511040103,"Horas Extras"]
[null,511040104,"Vacaciones"]
[null,5110402,"Honorarios",{"$f":"D211+D212","v":0},{"$f":"E211+E212","v":0}]
[null,511040201,"Honorarios Profesionales"]
[null,511040202,"Servicios de Terceros"]
[null,5110403,"Servicios y Gastos de Oficina",{"$f":"D214+D215+D216+D217+D218+D219+D220+D221+D222+D223+D224+D225+D226+D227+D228+D229+D230+D231+D232+D233","v":0},{"$f":"E214+E215+E216+E217+E218+E219+E220+E221+E222+E223+E224+E225+E226+E227+E228+E229+E230+E231+E232+E233","v":0}]
[null,511040301,"Servicios Públicos"]
[null,511040302,"Materiales, Utiles y Papeleria"]
[null,511040303,"Reparación y Mantenimiento"]
[null,511040304,"Procesamiento de Datos"]
[null,511040305,"Seguros"]
[null,511040306,"Alquileres Pagados"]
[null,511040307,"Combustibles y Lubricantes"]
[null,511040308,"Capacitación"]
[null,511040309,"Gastos de Movilidad y Transporte"]
[null,511040310,"Gastos de Viajes empleados"]
[null,511040311,"Gastos de Viajes terceros"]
[null,511040312,"Gastos de Estudios de Proyectos"]
[null,511040313,"Gastos Legales"]
[null,511040314,"Gastos Organización y Constitucion"]
[null,511040315,"Gastos de Reorganización"]
[null,511040316,"Patentes y Software Informáticos"]
[null,511040317,"Mejoras en Inmuebles de Terceros"]
[null,511040318,"Leasing Operativo"]
[null,511040319,"Bibliotecas, Obras de Arte y Otros"]
[null,511040320,"Bienes Tomados en Arrendamiento"]
[null,5110404,"Mercadeo",{"$f":"D235+D236+D237+D238+D239+D240+D241","v":0},{"$f":"E235+E236+E237+E238+E239+E240+E241","v":0}]
[null,511040401,"Publicidad"]
[null,511040402,"Patrocinios"]
[null,511040403,"Producción de Comerciales"]
[null,511040404,"Material publicitario"]
[null,511040405,"Estudios de Mercado"]
[null,511040406,"Artículos promocionales"]
[null,511040407,"Promociones y Sorteos"]
[null,5110405,"Impuestos y Tasas",{"$f":"D243+D244+D245","v":0},{"$f":"E243+E244+E245","v":0}]
[null,511040501,"Impuestos"]
[null,511040502,"Tasas"]
[null,511040503,"Cuota de Sostenimiento"]
[null,5110406,"Depreciaciones y Amortizaciones",{"$f":"D247+D248+D249","v":0},{"$f":"E247+E248+E249","v":0}]
[null,511040601,"Depreciación Permanente"]
[null,511040602,"Amortización Cargos Diferidos"]
[null,511040603,"Amortización para Intangibles"]
[null,51105,"Gastos de Gobernabilidad",{"$f":"D251+D258+D264+D270+D276+D280","v":0},{"$f":"E251+E258+E264+E270+E276+E280","v":0}]
[null,5110501,"Gastos del Consejo de Administración",{"$f":"D252+D253+D254+D255+D256+D257","v":0},{"$f":"E252+E253+E254+E255+E256+E257","v":0}]
[null,511050101,"Dietas"]
[null,511050102,"Gastos de Sesión"]
[null,511050103,"Gastos de Capacitación Directivos"]
[null,511050104,"Gastos de Viajes"]
[null,511050105,"Gastos de Representación"]
[null,511050106,"Remuneración al Comité Ejecutivo"]
[null,5110502,"Gastos de la Junta de Vigilancia",{"$f":"D259+D260+D261+D262+D263","v":0},{"$f":"E259+E260+E261+E262+E263","v":0}]
[null,511050201,"Dietas"]
[null,511050202,"Gastos de Sesión"]
[null,511050203,"Gastos de Capacitación Directivos"]
[null,511050204,"Gastos de Viajes"]
[null,511050205,"Gastos de Representación"]
[null,5110503,"Gastos del Órgano Electoral",{"$f":"D265+D266+D267+D268+D269","v":0},{"$f":"E265+E266+E267+E268+E269","v":0}]
[null,511050301,"Dietas"]
[null,511050302,"Gastos de Sesión"]
[null,511050303,"Gastos de Capacitación Directivos"]
[null,511050304,"Gastos de Viajes"]
[null,511050305,"Gastos de Representación"]
[null,5110504,"Gastos de Comités",{"$f":"D271+D272+D273+D274+D275","v":0},{"$f":"E271+E272+E273+E274+E275","v":0}]
[null,511050401,"Dietas"]
[null,511050402,"Gastos de Sesión"]
[null,511050403,"Gastos de Capacitación Comités"]
[null,511050404,"Gastos de Viajes"]
[null,511050405,"Gastos de Representación"]
[null,5110505,"Gastos de Asamblea",{"$f":"D277+D278+D279","v":0},{"$f":"E277+E278+E279","v":0}]
[null,511050501,"Organización de Asambleas"]
[null,511050502,"Publicaciones y convocatorias"]
[null,511050503,"Otros gastos de Asambleas"]
[null,5110506,"Otros Gastos de Gobernabilidad",{"$f":"D281","v":0},{"$f":"E281","v":0}]
[null,511050601,"Otros Gastos de Gobernabilidad"]
[null,512,"Costos y Gastos por Actividades no Financieras",{"$f":"D283+D286+D292","v":0},{"$f":"E283+E286+E292","v":0}]
[null,51201,"Costo de Ventas",{"$f":"D284","v":0},{"$f":"E284","v":0}]
[null,5120101,"Costo de Ventas",{"$f":"D285","v":0},{"$f":"E285","v":0}]
[null,512010101,"Costo de Venta de bienes y servicios"]
[null,51202,"Gastos Administrativos y Operativos",{"$f":"D287","v":0},{"$f":"E287","v":0}]
[null,5120201,"Gastos Administrativos y Operativos",{"$f":"D288+D289+D290+D291","v":0},{"$f":"E288+E289+E290+E291","v":0}]
[null,512020101,"Gastos Administrativos"]
[null,512020102,"Gastos Operativos"]
[null,512020103,"Previsiones por Mermas, Deterioro"]
[null,512020104,"Otros gastos"]
[null,51203,"Educación Cooperativa",{"$f":"D293","v":0},{"$f":"E293","v":0}]
[null,5120301,"Educación Cooperativa",{"$f":"D294+D295","v":0},{"$f":"E294+E295","v":0}]
[null,512030101,"Servicios de Formación y Capacitación (70%)"]
[null,512030102,"Servicios de Actividades sociales y recretativas (30%)"]
[null,513,"Otros Gastos y Pérdidas",{"$f":"D297+D302+D305","v":0},{"$f":"E297+E302+E305","v":0}]
[null,51301,"Pérdida en Operaciones Financieras",{"$f":"D298","v":0},{"$f":"E298","v":0}]
[null,5130101,"Pérdida en Operaciones Financieras",{"$f":"D299+D300+D301","v":0},{"$f":"E299+E300+E301","v":0}]
[null,513010101,"Pérdida por Venta de inversiones"]
[null,513010102,"Pérdida por Venta de Cartera de Créditos"]
[null,513010103,"Otras pérdidas financieras"]
[null,51302,"Pérdida en Venta de bienes",{"$f":"D303","v":0},{"$f":"E303","v":0}]
[null,5130201,"Pérdida en Venta de bienes",{"$f":"D304","v":0},{"$f":"E304","v":0}]
[null,513020101,"Pérdida en Venta de bienes adjudicados o Recibidos en Dación de Pago"]
[null,51303,"Gastos y Pérdidas eventuales",{"$f":"D306","v":0},{"$f":"E306","v":0}]
[null,5130301,"Gastos y Pérdidas eventuales",{"$f":"D307+D308","v":0},{"$f":"E307+E308","v":0}]
[null,513030101,"Créditos Liquidados por Incobrables"]
[null,513030102,"Intereses Devengados en ejercicios anteriores"]
[null,52,"Costos y Gastos no Operativos",{"$f":"D310","v":0},{"$f":"E310","v":0}]
[null,521,"Costos y Gastos no Operativos",{"$f":"D311","v":0},{"$f":"E311","v":0}]
[null,52101,"Costos y Gastos no Operativos",{"$f":"D312+D318","v":0},{"$f":"E312+E318","v":0}]
[null,5210101,"Costos y Gastos no Operativos",{"$f":"D313+D314+D315+D316+D317","v":0},{"$f":"E313+E314+E315+E316+E317","v":0}]
[null,521010101,"Pérdida en Venta de activos Fijos"]
[null,521010102,"Pérdida por Siniestros"]
[null,521010103,"Pérdida por robos"]
[null,521010104,"Gastos Extraordinarios"]
[null,521010105,"Pérdida por Diferencia de Cambio"]
[null,5210102,"Egresos por Actividades Especiales",{"$f":"D319","v":0},{"$f":"E319","v":0}]
[null,521010201,"Egresos por Actividades Especiales"]
[]
[null,6,"EXCEDENTES Y PÉRDIDAS",{"$f":"D322","v":0},{"$f":"E322","v":0}]
[null,61,"EXCEDENTES Y PÉRDIDAS",{"$f":"D323+D328","v":0},{"$f":"E323+E328","v":0}]
[null,611,"  Excedente",{"$f":"D324","v":0},{"$f":"E324","v":0}]
[null,61101,"   Del Ejercicio",{"$f":"D325","v":0},{"$f":"E325","v":0}]
[null,6110101,"   Del Ejercicio",{"$f":"D326+D327","v":0},{"$f":"E326+E327","v":0}]
[null,611010101,"Excedente Ordinario",{"$f":"D6-D135","v":0},{"$f":"E6-E135","v":0}]
[null,611010102,"Excedente Especial"]
[null,612,"  Pérdidas",{"$f":"D329","v":0},{"$f":"E329","v":0}]
[null,61201,"   Del Ejercicio",{"$f":"D330","v":0},{"$f":"E330","v":0}]
[null,6120101,"   Del Ejercicio",{"$f":"D331+D332","v":0},{"$f":"E331+E332","v":0}]
[null,612010101,"Pérdidas Ordinarias"]
[null,612010102,"Pérdidas Especiales"]
[]
[]
[]
[null,null,"Cuadratura",{"$f":"D6-D135-D321","v":0},{"$f":"E6-E135-E321","v":0}]

{"sheet":"Cuenta de Orden","index":39,"n_rows":56,"n_cols":5,"rows_kept":56,"cut":false,"hidden":false,"merged":[[2,1,2,4],[3,1,3,3]]}
[]
[]
[null,"CUENTA DE ORDEN"]
[null,"EJERCICIO",null,null," AÑO"]
[null,"Cód. Cuenta","Descripción de Concepto","Ejercicio Anterior","Ejercicio Actual"]
[null,7,"CUENTAS DE ORDEN DEUDORAS",{"$f":"D7+D24","v":0},{"$f":"E7+E24","v":0}]
[null,71,"CUENTAS DE ORDEN DEUDORAS",{"$f":"D8","v":0},{"$f":"E8","v":0}]
[null,711,"CUENTAS DE ORDEN DEUDORAS",{"$f":"D9","v":0},{"$f":"E9","v":0}]
[null,71101,"CUENTAS DE ORDEN DEUDORAS",{"$f":"D10+D21","v":0},{"$f":"E10+E21","v":0}]
[null,7110101,"De Control Administrativo",{"$f":"SUM(D11:D20)","v":0},{"$f":"SUM(E11:E20)","v":0}]
[null,711010101,"Garantias Reales recibidas"]
[null,711010102,"Comodities recibidos para Fijación de Precios"]
[null,711010103,"Préstamos Liquidados por Incobrables"]
[null,711010104,"Préstamos en Gestion Judicial"]
[null,711010105,"Préstamos Refinanciados"]
[null,711010106,"Pólizas de Seguros Contratadas"]
[null,711010107,"Bienes Adjudicados"]
[null,711010108,"Contratos en Arrendamiento Financiero"]
[null,711010109,"Mercaderias Recibidas en Consignación"]
[null,711010110,"Cupones recibidos por CDA a Plazo"]
[null,7110102,"De Contingencias",{"$f":"D22+D23","v":0},{"$f":"E22+E23","v":0}]
[null,711010201,"Deudores por Garantías Otorgadas"]
[null,711010202,"Intereses s/ Préstamos de Dudosa Recuperac"]
[null,72,"CUENTAS DE ORDEN DEUDORAS PER CONTRA"]
[null,721,"CUENTAS DE ORDEN DEUDORAS PER CONTRA"]
[null,72101,"CUENTAS DE ORDEN DEUDORAS PER CONTRA"]
[null,7210101,"De Control Administrativo"]
[null,721010101,"Otorgantes de Garantías Reales"]
[null,721010102,"Comodities para Fijacion de Precios Recibidos"]
[null,721010103,"Liquidación de préstamos por Incobrables"]
[null,721010104,"Préstamos Judicializados"]
[null,721010105,"Refinanciaciones de Préstamos"]
[null,721010106,"Polizas de Seguros"]
[null,721010107,"Adjudicaciones de Bienes"]
[null,721010108,"Arrendamientos Financieros Sobre Contratos"]
[null,721010109,"Acreedores por Mercaderias recibidas en Consignación"]
[null,721010110,"CDA a Plazo cupones recibidos"]
[null,7210102,"De Contingencias"]
[null,721010201,"Otorgantes de Garantías"]
[null,721010202,"Intereses de dudosa recuperación por Préstamos Concedidos"]
[]
[null,8,"CUENTAS DE ORDEN ACREEDORAS",{"$f":"D43+D50","v":0},{"$f":"E43+E50","v":0}]
[null,81,"CUENTAS DE ORDEN ACREEDORAS PER CONTRA",{"$f":"D44","v":0},{"$f":"E44","v":0}]
[null,811,"CUENTAS DE ORDEN ACREEDORAS PER CONTRA",{"$f":"D45","v":0},{"$f":"E45","v":0}]
[null,81101,"CUENTAS DE ORDEN ACREEDORAS PER CONTRA",{"$f":"D46+D48","v":0},{"$f":"E46+E48","v":0}]
[null,8110101,"De Control Administrativo",{"$f":"D47","v":0},{"$f":"E47","v":0}]
[null,811010101,"Aportes Compensatorios de Socios Retiros y Exc"]
[null,8110102,"De Contingencias",{"$f":"D49","v":0},{"$f":"E49","v":0}]
[null,811010201,"Demandas Legales"]
[null,82,"CUENTAS DE ORDEN ACREEDORAS",{"$f":"D51","v":0},{"$f":"E51","v":0}]
[null,821,"CUENTAS DE ORDEN ACREEDORAS",{"$f":"D52","v":0},{"$f":"E52","v":0}]
[null,82101,"CUENTAS DE ORDEN ACREEDORAS",{"$f":"D53+D55","v":0},{"$f":"E53+E55","v":0}]
[null,8210101,"De Control Administrativo",{"$f":"D54","v":0},{"$f":"E54","v":0}]
[null,821010101,"Aplicación de aportes a Compensac Retiros y Exc"]
[null,8210102,"De Contingencias",{"$f":"D56","v":0},{"$f":"E56","v":0}]
[null,821010201,"Defensas Legales"]

{"sheet":"Indicadores","index":40,"n_rows":57,"n_cols":4,"rows_kept":57,"cut":false,"hidden":false,"merged":[[2,0,2,2]]}
[]
[]
["INDICADORES FINANCIEROS PARA COOPERATIVAS DE AHORRO Y CRÉDITO"]
["Indicador","Descripción"]
["R1 -","Suficiencia de Previsiones para Cartera de Créditos",{"$f":"ABS('Balance General'!E53+'Balance General'!E76+'Balance General'!E86+'Balance General'!E168+'Balance General'!E191+'Balance General'!E201)*100/'Prev. 1.1'!I12","v":{"$error":"#DIV/0!"}}]
[]
["R2 -","Suficiencia de Previsiones para Otros Activos de Riesgo",{"$f":"ABS('Balance General'!E19+'Balance General'!E30+'Balance General'!E40+'Balance General'!E108+'Balance General'!E121+'Balance General'!E130+'Balance General'!E136+'Balance General'!E155+'Balance General'!E218+'Balance General'!E226+'Balance General'!E236+'Balance General'!E259+'Balance General'!E282)*100/('Prev. Depositos Vista'!F11+'Prev. Depositos Plazo'!F11+'Prev sobre Bienes adjudicados'!G8+'Prev s Otros Activos Riesgos'!F9+'Prev s Otras Inversiones'!F9)","v":{"$error":"#DIV/0!"}}]
[]
["R3 -","Índice de Solvencia Patrimonial",{"$f":"'Patrimonio Efectivo'!D21*100/'Activos ponderados'!E35","v":{"$error":"#DIV/0!"}}]
[]
["R4 -","Participación de cartera",{"$f":"D49*100/'Balance General'!E6","v":{"$error":"#DIV/0!"}}]
[]
["R5 -","Financiamiento de Activos con Endeudamiento",{"$f":"(D55+D57)*100/'Balance General'!E6","v":{"$error":"#DIV/0!"}}]
[]
["R6 -","Financiamiento de Activos con Patrimonio Total",{"$f":"'Balance General'!E434*100/'Balance General'!E6","v":{"$error":"#DIV/0!"}}]
[]
["R7 -","Margen de intermediación por actividades de ahorro y crédito",{"$f":"(('Cuadro de Resultado'!E10/((Indicadores!D53+Indicadores!C53)/2))-(('Cuadro de Resultado'!E139+'Cuadro de Resultado'!E146)/((Indicadores!D55+Indicadores!C55)/2)))*100","v":{"$error":"#DIV/0!"}}]
[]
["R8 - ","Gastos operativos en función de ingresos",{"$f":"'Cuadro de Resultado'!E136*100/'Cuadro de Resultado'!E6","v":{"$error":"#DIV/0!"}}]
[]
["R9 - ","Indice de gastos administrativos",{"$f":"(('Cuadro de Resultado'!E180+'Cuadro de Resultado'!E204+'Cuadro de Resultado'!E250)/(('Balance General'!E6+'Balance General'!D6)/2))*100","v":{"$error":"#DIV/0!"}}]
[]
["R10 - ","Indice de gastos de gobernabilidad",{"$f":"('Cuadro de Resultado'!E250-'Cuadro de Resultado'!E276)/'Cuadro de Resultado'!E6*100","v":{"$error":"#DIV/0!"}}]
[]
["R11 -","Rendimiento sobre el Activo Total",{"$f":"'Balance General'!E456/(('Balance General'!E6+'Balance General'!D6)/2)*100","v":{"$error":"#DIV/0!"}}]
[]
["R12 -","Rendimiento del Capital",{"$f":"'Balance General'!E456*100/'Balance General'!E436","v":{"$error":"#DIV/0!"}}]
[]
["R13 -","Índice de Liquidez",{"$f":"('Balance General'!E10+'Balance General'!E14+'Balance General'!E21+'Balance General'!E32+'Balance General'!E147)/Indicadores!D55*100","v":{"$error":"#DIV/0!"}}]
[]
["R14 -","Índice de Disponibilidades Inmediatas",{"$f":"('Balance General'!E10+'Balance General'!E13+'Balance General'!E21)/(Indicadores!D55*0.05)*100","v":{"$error":"#DIV/0!"}}]
[]
["R15 -","Indice de Morosidad",{"$f":"('Prev. 1.1'!D7+'Prev. 1.1'!D8+'Prev. 1.1'!D9+'Prev. 1.1'!D10+'Prev. 1.1'!D11)*100/Indicadores!D53","v":{"$error":"#DIV/0!"}}]
[]
["R16 -","Indice de Activos Improductivos",{"$f":"D51*100/'Balance General'!E6","v":{"$error":"#DIV/0!"}}]
[]
["R17 -","Financiamiento de Activos Improductivos",{"$f":"'Patrimonio Efectivo'!D21/Indicadores!D51*100","v":{"$error":"#DIV/0!"}}]
[]
["LCI -","Límite a Captaciones Individuales",{"$f":"'Concentración Ahorros'!D7*100/'Patrimonio Efectivo'!D21","v":{"$error":"#DIV/0!"}}]
[]
["CDEF -","Concentración de Depósitos en Entidades Financieras",{"$f":"'Depositos Coop. Gs'!F29*100/('Balance General'!E13+'Balance General'!E22+'Balance General'!E26+'Balance General'!E27+'Balance General'!E28+'Balance General'!E33+'Balance General'!E37+'Balance General'!E38+'Balance General'!E39+'Balance General'!E148+'Balance General'!E152+'Balance General'!E153+'Balance General'!E154)","v":{"$error":"#DIV/0!"}}]
[]
["CDC -","Concentración de Depósitos en Centrales y/o Bancos de propiedad cooperativa",{"$f":"'Depositos Centrales Gs'!F20*100/('Balance General'!E14+'Balance General'!E22+'Balance General'!E26+'Balance General'!E27+'Balance General'!E28+'Balance General'!E33+'Balance General'!E37+'Balance General'!E38+'Balance General'!E39+'Balance General'!E148+'Balance General'!E152+'Balance General'!E153+'Balance General'!E154)","v":{"$error":"#DIV/0!"}}]
[]
["LCS","Límite de Crédito por socio",{"$f":"'Concentración de Créditos'!D7*100/'Patrimonio Efectivo'!D21","v":{"$error":"#DIV/0!"}}]
[]
[]
["Demoninación","Fórmula",{"$f":"'Balance General'!D5","v":"Ejercicio Anterior"},{"$f":"'Balance General'!E5","v":"Ejercicio Actual"}]
["Cartera de Créditos Neta","11201 +  11202 +  12201 +  12202",{"$f":"'Balance General'!D42+'Balance General'!D65+'Balance General'!D157+'Balance General'!D180","v":0},{"$f":"'Balance General'!E42+'Balance General'!E65+'Balance General'!E157+'Balance General'!E180","v":0}]
[]
["Activos Improductivos","11101+ 111020103+  1120501 +  1220401+  1250401 + 1250201+ 11402+ 1250301 +  1240101",{"$f":"'Balance General'!D9+'Balance General'!D17+'Balance General'!D110+'Balance General'!D220+'Balance General'!D277+'Balance General'!D261+'Balance General'!D137+'Balance General'!D271+'Balance General'!D239","v":0},{"$f":"'Balance General'!E9+'Balance General'!E17+'Balance General'!E110+'Balance General'!E220+'Balance General'!E277+'Balance General'!E261+'Balance General'!E137+'Balance General'!E271+'Balance General'!E239","v":0}]
[]
["Cartera de Créditos Bruta","1120101+ 1120103  + 1120104 + 1120105 +  1120201 +  1120203 +  1120204+  1120206  + 1220101 + 1220103 + 1220104 + 1220105 + 1220201 + 1220203 + 1220204 + 1220206",{"$f":"'Balance General'!D43+'Balance General'!D55+'Balance General'!D58+'Balance General'!D63+'Balance General'!D66+'Balance General'!D78+'Balance General'!D81+'Balance General'!D90+'Balance General'!D158+'Balance General'!D170+'Balance General'!D173+'Balance General'!D178+'Balance General'!D181+'Balance General'!D193+'Balance General'!D196+'Balance General'!D205","v":0},{"$f":"'Balance General'!E43+'Balance General'!E55+'Balance General'!E58+'Balance General'!E63+'Balance General'!E66+'Balance General'!E78+'Balance General'!E81+'Balance General'!E90+'Balance General'!E158+'Balance General'!E170+'Balance General'!E173+'Balance General'!E178+'Balance General'!E181+'Balance General'!E193+'Balance General'!E196+'Balance General'!E205","v":0}]
[]
["Captaciones Totales"," 2110101+  2110102+  2210101+  2210102",{"$f":"'Balance General'!D288+'Balance General'!D295+'Balance General'!D378+'Balance General'!D383","v":0},{"$f":"'Balance General'!E288+'Balance General'!E295+'Balance General'!E378+'Balance General'!E383","v":0}]
[]
["Créditos externos","2110103 +  21102 +  2210103 + 22102",{"$f":"'Balance General'!D302+'Balance General'!D306+'Balance General'!D388+'Balance General'!D391","v":0},{"$f":"'Balance General'!E302+'Balance General'!E306+'Balance General'!E388+'Balance General'!E391","v":0}]